Workbook

Sheet Règlement
B2: Championnat de la section golf | L2: Liste des sorties
B4: Le Championnat débute le 1er septembre et se termine le 30 juin de l'année suivante. | L4: Date | M4: Parcours
L5: 2018-09-09 | M5: Feucherolles
B6: Tout participant à une sortie de la section marque : | L6: 2018-09-20 | M6: Rueil
C7: ● ses points de stableford net/brut si la compétition est enregistrée | L7: 2018-09-21 | M7: Les Aisses
C8: ● 18 points sur 18 trous ou 9 points sur 9 trous si la sortie n'est pas une compétition pour le classement en net | L8: 2018-09-22 | M8: Sologne
C9: ● 6 points sur 18 trous ou 3 points sur 9 trous si la sortie n'est pas une compétition pour le classement en brut | L9: 2018-10-02 | M9: Rueil
L10: 2018-10-05 | M10: Isle Adam
B11: Le gagnant est celui qui a le plus de points en fin de saison sur ses 5 meilleurs scores. | L11: 2018-10-16 | M11: Saint Nom La Breteche
B12: La remise des prix a lieu fin juin au cours du repas de clôture de la saison. | L12: 2018-10-18 | M12: Rueil
L13: 2018-10-20 | M13: Cergy Vauréal
L14: 2018-11-10 | M14: Fourqueux
B15: Rentrer des scores | L15: 2018-11-24 | M15: CH Hersant
L16: 2018-11-29 | M16: CH Marivaux
B17: Pour mettre à jour les scores d'une sortie, renseigner la date dans le menu déroulant en I2. | L17: 2018-12-13 | M17: Rueil virtuel
B18: Renseigner les scores net et brut pour les joueurs concernés. | L18: 2019-01-12 | M18: CH Ableiges
B19: Cliquer sur le bouton "Dispatcher". | L19: 2019-02-06 | M19: CH Yvelines
L20: 2019-02-10 | M20: Aigle
B21: Pour modifier un score déjà entré, le modifier directement dans la feuille du joueur. | L21: 2019-02-16 | M21: CH Seraincourt
L22: 2019-02-20 | M22: CH Marivaux
B23: Créer ou supprimer un nouveau joueur | L23: 2019-03-09 | M23: CH Yvelines
L24: 2019-03-10 | M24: National - Aigle
B25: Rentrer ses nom et prénom dans les cases et cliquer l'option voulue | L25: 2019-03-16 | M25: CH Hersant
L26: 2019-03-23 | M26: Tremblay sur Mauldre
C27: Nom : | D27: Prénom : | L27: 2019-03-28 | M27: Rueil
C28: BEHIRA | D28: Hermann | L28: 2019-04-06 | M28: Disney
L29: 2019-04-09 | M29: Rueil
L30: 2019-04-18 | M30: Rueil virtuel
B31: Remise à zéro des scores en début d'année | L31: 2019-04-25 | M31: Rueil
L32: 2019-04-28 | M32: Marivaux
B33: Utiliser (avec précaution) la macro Remise_à_zéro | L33: 2019-05-07 | M33: Rueil
L34: 2019-05-23 | M34: Rueil
L35: 2019-05-24 | M35: Haut Poitou
B36: Recharger une rencontre | L36: 2019-05-25 | M36: Mignaloux
L37: 2019-06-04 | M37: Rueil
B38: Pour revoir les scores d'une rencontre, utiliser la macro ChargerRencontre | L38: 2019-06-07 | M38: Isle Adam
L39: 2019-06-20 | M39: Rueil
L40: 2019-06-22 | M40: Golf Parc Hersant
L41: 2019-06-28 | M41: Vaucouleurs Rivière

Sheet Adhérents
B1: Mise à jour : | C1: 2019-06-28 | F1: Championnat_2018-2019
J2: 2019-06-28 | K2: =VLOOKUP(J2,Règlement!L5:M41,2,FALSE) -> Vaucouleurs Rivière
A3: Page | B3: Nom | C3: Prénom | D3: Index | E3: Cumul Net | F3: Cumul Brut | G3: Cumul 5 Net | H3: Cumul 5 brut | I3: Select | J3: Net | K3: Brut
A4: GATIGNOL_Christian | B4: =HYPERLINK("#'"&A4&"'!A1",INDIRECT(CONCATENATE("'",TEXT(A4,"0"),"'!$A$1"))) -> GATIGNOL | C4: =INDIRECT(CONCATENATE("'",TEXT(A4,"0"),"'!$B$1")) -> Christian | D4: =IF(ISBLANK($B4),"",VLOOKUP(CONCATENATE($B4," ",$C4),Table_membres,25,FALSE)) -> 29 | E4: =INDIRECT(CONCATENATE("'",TEXT(A4,"0"),"'!$c$29")) -> 357 | F4: =INDIRECT(CONCATENATE("'",TEXT(A4,"0"),"'!$f$29")) -> 86 | G4: =INDIRECT(CONCATENATE("'",TEXT(A4,"0"),"'!$c$30")) -> 184 | H4: =INDIRECT(CONCATENATE("'",TEXT(A4,"0"),"'!$f$30")) -> 44 | J4: 36 | K4: 11
A5: VILLANI_Mathieu | B5: =HYPERLINK("#'"&A5&"'!A1",INDIRECT(CONCATENATE("'",TEXT(A5,"0"),"'!$A$1"))) -> VILLANI | C5: =INDIRECT(CONCATENATE("'",TEXT(A5,"0"),"'!$B$1")) -> Mathieu | D5: =IF(ISBLANK($B5),"",VLOOKUP(CONCATENATE($B5," ",$C5),Table_membres,25,FALSE)) -> 10 | E5: =INDIRECT(CONCATENATE("'",TEXT(A5,"0"),"'!$c$29")) -> 433 | F5: =INDIRECT(CONCATENATE("'",TEXT(A5,"0"),"'!$f$29")) -> 253 | G5: =INDIRECT(CONCATENATE("'",TEXT(A5,"0"),"'!$c$30")) -> 182 | H5: =INDIRECT(CONCATENATE("'",TEXT(A5,"0"),"'!$f$30")) -> 122 | J5: 33 | K5: 20
A6: NOTARIANNI_Julien | B6: =HYPERLINK("#'"&A6&"'!A1",INDIRECT(CONCATENATE("'",TEXT(A6,"0"),"'!$A$1"))) -> NOTARIANNI | C6: =INDIRECT(CONCATENATE("'",TEXT(A6,"0"),"'!$B$1")) -> Julien | D6: =IF(ISBLANK($B6),"",VLOOKUP(CONCATENATE($B6," ",$C6),Table_membres,25,FALSE)) -> 15.5 | E6: =INDIRECT(CONCATENATE("'",TEXT(A6,"0"),"'!$c$29")) -> 242 | F6: =INDIRECT(CONCATENATE("'",TEXT(A6,"0"),"'!$f$29")) -> 131 | G6: =INDIRECT(CONCATENATE("'",TEXT(A6,"0"),"'!$c$30")) -> 174 | H6: =INDIRECT(CONCATENATE("'",TEXT(A6,"0"),"'!$f$30")) -> 103
A7: TRAVERS_Philippe | B7: =HYPERLINK("#'"&A7&"'!A1",INDIRECT(CONCATENATE("'",TEXT(A7,"0"),"'!$A$1"))) -> TRAVERS | C7: =INDIRECT(CONCATENATE("'",TEXT(A7,"0"),"'!$B$1")) -> Philippe | D7: =IF(ISBLANK($B7),"",VLOOKUP(CONCATENATE($B7," ",$C7),Table_membres,25,FALSE)) -> 34 | E7: =INDIRECT(CONCATENATE("'",TEXT(A7,"0"),"'!$c$29")) -> 261 | F7: =INDIRECT(CONCATENATE("'",TEXT(A7,"0"),"'!$f$29")) -> 63 | G7: =INDIRECT(CONCATENATE("'",TEXT(A7,"0"),"'!$c$30")) -> 172 | H7: =INDIRECT(CONCATENATE("'",TEXT(A7,"0"),"'!$f$30")) -> 39 | J7: 39 | K7: 10
A8: JANOT_Nicolas | B8: =HYPERLINK("#'"&A8&"'!A1",INDIRECT(CONCATENATE("'",TEXT(A8,"0"),"'!$A$1"))) -> JANOT | C8: =INDIRECT(CONCATENATE("'",TEXT(A8,"0"),"'!$B$1")) -> Nicolas | D8: =IF(ISBLANK($B8),"",VLOOKUP(CONCATENATE($B8," ",$C8),Table_membres,25,FALSE)) -> 33 | E8: =INDIRECT(CONCATENATE("'",TEXT(A8,"0"),"'!$c$29")) -> 285 | F8: =INDIRECT(CONCATENATE("'",TEXT(A8,"0"),"'!$f$29")) -> 58 | G8: =INDIRECT(CONCATENATE("'",TEXT(A8,"0"),"'!$c$30")) -> 172 | H8: =INDIRECT(CONCATENATE("'",TEXT(A8,"0"),"'!$f$30")) -> 38 | J8: 38 | K8: 13
A9: MHAMDI_Jalel | B9: =HYPERLINK("#'"&A9&"'!A1",INDIRECT(CONCATENATE("'",TEXT(A9,"0"),"'!$A$1"))) -> M'HAMDI | C9: =INDIRECT(CONCATENATE("'",TEXT(A9,"0"),"'!$B$1")) -> Jalel | D9: =IF(ISBLANK($B9),"",VLOOKUP(CONCATENATE($B9," ",$C9),Table_membres,25,FALSE)) -> 27.5 | E9: =INDIRECT(CONCATENATE("'",TEXT(A9,"0"),"'!$c$29")) -> 282 | F9: =INDIRECT(CONCATENATE("'",TEXT(A9,"0"),"'!$f$29")) -> 86 | G9: =INDIRECT(CONCATENATE("'",TEXT(A9,"0"),"'!$c$30")) -> 167 | H9: =INDIRECT(CONCATENATE("'",TEXT(A9,"0"),"'!$f$30")) -> 54
A10: BORDET_Bruno | B10: =HYPERLINK("#'"&A10&"'!A1",INDIRECT(CONCATENATE("'",TEXT(A10,"0"),"'!$A$1"))) -> BORDET | C10: =INDIRECT(CONCATENATE("'",TEXT(A10,"0"),"'!$B$1")) -> Bruno | D10: =IF(ISBLANK($B10),"",VLOOKUP(CONCATENATE($B10," ",$C10),Table_membres,25,FALSE)) -> 24.8 | E10: =INDIRECT(CONCATENATE("'",TEXT(A10,"0"),"'!$c$29")) -> 282 | F10: =INDIRECT(CONCATENATE("'",TEXT(A10,"0"),"'!$f$29")) -> 74 | G10: =INDIRECT(CONCATENATE("'",TEXT(A10,"0"),"'!$c$30")) -> 166 | H10: =INDIRECT(CONCATENATE("'",TEXT(A10,"0"),"'!$f$30")) -> 45 | J10: 23 | K10: 6
A11: GOBIN_Philippe | B11: =HYPERLINK("#'"&A11&"'!A1",INDIRECT(CONCATENATE("'",TEXT(A11,"0"),"'!$A$1"))) -> GOBIN | C11: =INDIRECT(CONCATENATE("'",TEXT(A11,"0"),"'!$B$1")) -> Philippe | D11: =IF(ISBLANK($B11),"",VLOOKUP(CONCATENATE($B11," ",$C11),Table_membres,25,FALSE)) -> 19.6 | E11: =INDIRECT(CONCATENATE("'",TEXT(A11,"0"),"'!$c$29")) -> 431 | F11: =INDIRECT(CONCATENATE("'",TEXT(A11,"0"),"'!$d$29")) -> 153 | G11: =INDIRECT(CONCATENATE("'",TEXT(A11,"0"),"'!$c$30")) -> 165 | H11: =INDIRECT(CONCATENATE("'",TEXT(A11,"0"),"'!$d$30")) -> 68 | J11: 20 | K11: 6
A12: LARRERE_Martin | B12: =HYPERLINK("#'"&A12&"'!A1",INDIRECT(CONCATENATE("'",TEXT(A12,"0"),"'!$A$1"))) -> LARRERE | C12: =INDIRECT(CONCATENATE("'",TEXT(A12,"0"),"'!$B$1")) -> Martin | D12: =IF(ISBLANK($B12),"",VLOOKUP(CONCATENATE($B12," ",$C12),Table_membres,25,FALSE)) -> 24.4 | E12: =INDIRECT(CONCATENATE("'",TEXT(A12,"0"),"'!$c$29")) -> 206 | F12: =INDIRECT(CONCATENATE("'",TEXT(A12,"0"),"'!$f$29")) -> 77 | G12: =INDIRECT(CONCATENATE("'",TEXT(A12,"0"),"'!$c$30")) -> 164 | H12: =INDIRECT(CONCATENATE("'",TEXT(A12,"0"),"'!$f$30")) -> 64
A13: LEFRANC_Virginie | B13: =HYPERLINK("#'"&A13&"'!A1",INDIRECT(CONCATENATE("'",TEXT(A13,"0"),"'!$A$1"))) -> LEFRANC | C13: =INDIRECT(CONCATENATE("'",TEXT(A13,"0"),"'!$B$1")) -> Virginie | D13: =IF(ISBLANK($B13),"",VLOOKUP(CONCATENATE($B13," ",$C13),Table_membres,25,FALSE)) -> 32.2 | E13: =INDIRECT(CONCATENATE("'",TEXT(A13,"0"),"'!$c$29")) -> 265 | F13: =INDIRECT(CONCATENATE("'",TEXT(A13,"0"),"'!$f$29")) -> 71 | G13: =INDIRECT(CONCATENATE("'",TEXT(A13,"0"),"'!$c$30")) -> 162 | H13: =INDIRECT(CONCATENATE("'",TEXT(A13,"0"),"'!$f$30")) -> 39 | J13: 22 | K13: 5
A14: SZAFIR_Patrick | B14: =HYPERLINK("#'"&A14&"'!A1",INDIRECT(CONCATENATE("'",TEXT(A14,"0"),"'!$A$1"))) -> SZAFIR | C14: =INDIRECT(CONCATENATE("'",TEXT(A14,"0"),"'!$B$1")) -> Patrick | D14: =IF(ISBLANK($B14),"",VLOOKUP(CONCATENATE($B14," ",$C14),Table_membres,25,FALSE)) -> 19.3 | E14: =INDIRECT(CONCATENATE("'",TEXT(A14,"0"),"'!$c$29")) -> 313 | F14: =INDIRECT(CONCATENATE("'",TEXT(A14,"0"),"'!$f$29")) -> 118 | G14: =INDIRECT(CONCATENATE("'",TEXT(A14,"0"),"'!$c$30")) -> 160 | H14: =INDIRECT(CONCATENATE("'",TEXT(A14,"0"),"'!$f$30")) -> 66 | J14: 25 | K14: 8
A15: COULOMB_Thierry | B15: =HYPERLINK("#'"&A15&"'!A1",INDIRECT(CONCATENATE("'",TEXT(A15,"0"),"'!$A$1"))) -> COULOMB | C15: =INDIRECT(CONCATENATE("'",TEXT(A15,"0"),"'!$B$1")) -> Thierry | D15: =IF(ISBLANK($B15),"",VLOOKUP(CONCATENATE($B15," ",$C15),Table_membres,25,FALSE)) -> 19.8 | E15: =INDIRECT(CONCATENATE("'",TEXT(A15,"0"),"'!$c$29")) -> 379 | F15: =INDIRECT(CONCATENATE("'",TEXT(A15,"0"),"'!$f$29")) -> 135 | G15: =INDIRECT(CONCATENATE("'",TEXT(A15,"0"),"'!$c$30")) -> 160 | H15: =INDIRECT(CONCATENATE("'",TEXT(A15,"0"),"'!$f$30")) -> 66 | J15: 33 | K15: 16
A16: YUSTOS_Philippe | B16: =HYPERLINK("#'"&A16&"'!A1",INDIRECT(CONCATENATE("'",TEXT(A16,"0"),"'!$A$1"))) -> YUSTOS | C16: =INDIRECT(CONCATENATE("'",TEXT(A16,"0"),"'!$B$1")) -> Philippe | D16: =IF(ISBLANK($B16),"",VLOOKUP(CONCATENATE($B16," ",$C16),Table_membres,25,FALSE)) -> 26 | E16: =INDIRECT(CONCATENATE("'",TEXT(A16,"0"),"'!$c$29")) -> 300 | F16: =INDIRECT(CONCATENATE("'",TEXT(A16,"0"),"'!$f$29")) -> 83 | G16: =INDIRECT(CONCATENATE("'",TEXT(A16,"0"),"'!$c$30")) -> 159 | H16: =INDIRECT(CONCATENATE("'",TEXT(A16,"0"),"'!$f$30")) -> 44 | J16: 25 | K16: 7
A17: LACHAZETTE_Franck | B17: =HYPERLINK("#'"&A17&"'!A1",INDIRECT(CONCATENATE("'",TEXT(A17,"0"),"'!$A$1"))) -> LACHAZETTE | C17: =INDIRECT(CONCATENATE("'",TEXT(A17,"0"),"'!$B$1")) -> Franck | D17: =IF(ISBLANK($B17),"",VLOOKUP(CONCATENATE($B17," ",$C17),Table_membres,25,FALSE)) -> 15.9 | E17: =INDIRECT(CONCATENATE("'",TEXT(A17,"0"),"'!$c$29")) -> 281 | F17: =INDIRECT(CONCATENATE("'",TEXT(A17,"0"),"'!$f$29")) -> 126 | G17: =INDIRECT(CONCATENATE("'",TEXT(A17,"0"),"'!$c$30")) -> 157 | H17: =INDIRECT(CONCATENATE("'",TEXT(A17,"0"),"'!$f$30")) -> 80 | J17: 29 | K17: 14
A18: DOGUIN_Pierre | B18: =HYPERLINK("#'"&A18&"'!A1",INDIRECT(CONCATENATE("'",TEXT(A18,"0"),"'!$A$1"))) -> DOGUIN | C18: =INDIRECT(CONCATENATE("'",TEXT(A18,"0"),"'!$B$1")) -> Pierre | D18: =IF(ISBLANK($B18),"",VLOOKUP(CONCATENATE($B18," ",$C18),Table_membres,25,FALSE)) -> 21.5 | E18: =INDIRECT(CONCATENATE("'",TEXT(A18,"0"),"'!$c$29")) -> 465 | F18: =INDIRECT(CONCATENATE("'",TEXT(A18,"0"),"'!$f$29")) -> 165 | G18: =INDIRECT(CONCATENATE("'",TEXT(A18,"0"),"'!$c$30")) -> 157 | H18: =INDIRECT(CONCATENATE("'",TEXT(A18,"0"),"'!$f$30")) -> 62 | J18: 21 | K18: 8
A19: ROBERT_Valérie | B19: =HYPERLINK("#'"&A19&"'!A1",INDIRECT(CONCATENATE("'",TEXT(A19,"0"),"'!$A$1"))) -> ROBERT | C19: =INDIRECT(CONCATENATE("'",TEXT(A19,"0"),"'!$B$1")) -> Valérie | D19: =IF(ISBLANK($B19),"",VLOOKUP(CONCATENATE($B19," ",$C19),Table_membres,25,FALSE)) -> 25 | E19: =INDIRECT(CONCATENATE("'",TEXT(A19,"0"),"'!$c$29")) -> 360 | F19: =INDIRECT(CONCATENATE("'",TEXT(A19,"0"),"'!$f$29")) -> 114 | G19: =INDIRECT(CONCATENATE("'",TEXT(A19,"0"),"'!$c$30")) -> 156 | H19: =INDIRECT(CONCATENATE("'",TEXT(A19,"0"),"'!$f$30")) -> 52 | J19: 29 | K19: 11
A20: GOBIN_Lydie | B20: =HYPERLINK("#'"&A20&"'!A1",INDIRECT(CONCATENATE("'",TEXT(A20,"0"),"'!$A$1"))) -> GOBIN | C20: =INDIRECT(CONCATENATE("'",TEXT(A20,"0"),"'!$B$1")) -> Lydie | D20: =IF(ISBLANK($B20),"",VLOOKUP(CONCATENATE($B20," ",$C20),Table_membres,25,FALSE)) -> 34 | E20: =INDIRECT(CONCATENATE("'",TEXT(A20,"0"),"'!$c$29")) -> 208 | F20: =INDIRECT(CONCATENATE("'",TEXT(A20,"0"),"'!$f$29")) -> 31 | G20: =INDIRECT(CONCATENATE("'",TEXT(A20,"0"),"'!$c$30")) -> 155 | H20: =INDIRECT(CONCATENATE("'",TEXT(A20,"0"),"'!$f$30")) -> 27 | J20: 34 | K20: 6
A21: VINAY_Guillaume | B21: =HYPERLINK("#'"&A21&"'!A1",INDIRECT(CONCATENATE("'",TEXT(A21,"0"),"'!$A$1"))) -> VINAY | C21: =INDIRECT(CONCATENATE("'",TEXT(A21,"0"),"'!$B$1")) -> Guillaume | D21: =IF(ISBLANK($B21),"",VLOOKUP(CONCATENATE($B21," ",$C21),Table_membres,25,FALSE)) -> 20.5 | E21: =INDIRECT(CONCATENATE("'",TEXT(A21,"0"),"'!$c$29")) -> 225 | F21: =INDIRECT(CONCATENATE("'",TEXT(A21,"0"),"'!$f$29")) -> 86 | G21: =INDIRECT(CONCATENATE("'",TEXT(A21,"0"),"'!$c$30")) -> 153 | H21: =INDIRECT(CONCATENATE("'",TEXT(A21,"0"),"'!$f$30")) -> 62 | J21: 31 | K21: 12
A22: DASCOTTE_Philippe | B22: =HYPERLINK("#'"&A22&"'!A1",INDIRECT(CONCATENATE("'",TEXT(A22,"0"),"'!$A$1"))) -> DASCOTTE | C22: =INDIRECT(CONCATENATE("'",TEXT(A22,"0"),"'!$B$1")) -> Philippe | D22: =IF(ISBLANK($B22),"",VLOOKUP(CONCATENATE($B22," ",$C22),Table_membres,25,FALSE)) -> 38 | E22: =INDIRECT(CONCATENATE("'",TEXT(A22,"0"),"'!$c$29")) -> 196 | F22: =INDIRECT(CONCATENATE("'",TEXT(A22,"0"),"'!$f$29")) -> 36 | G22: =INDIRECT(CONCATENATE("'",TEXT(A22,"0"),"'!$c$30")) -> 151 | H22: =INDIRECT(CONCATENATE("'",TEXT(A22,"0"),"'!$f$30")) -> 22
A23: GERSON_David | B23: =HYPERLINK("#'"&A23&"'!A1",INDIRECT(CONCATENATE("'",TEXT(A23,"0"),"'!$A$1"))) -> GERSON | C23: =INDIRECT(CONCATENATE("'",TEXT(A23,"0"),"'!$B$1")) -> David | D23: =IF(ISBLANK($B23),"",VLOOKUP(CONCATENATE($B23," ",$C23),Table_membres,25,FALSE)) -> 21.6 | E23: =INDIRECT(CONCATENATE("'",TEXT(A23,"0"),"'!$c$29")) -> 274 | F23: =INDIRECT(CONCATENATE("'",TEXT(A23,"0"),"'!$f$29")) -> 92 | G23: =INDIRECT(CONCATENATE("'",TEXT(A23,"0"),"'!$c$30")) -> 143 | H23: =INDIRECT(CONCATENATE("'",TEXT(A23,"0"),"'!$f$30")) -> 52 | J23: 24 | K23: 8
A24: NGUYEN_Jean-Paul | B24: =HYPERLINK("#'"&A24&"'!A1",INDIRECT(CONCATENATE("'",TEXT(A24,"0"),"'!$A$1"))) -> NGUYEN | C24: =INDIRECT(CONCATENATE("'",TEXT(A24,"0"),"'!$B$1")) -> Jean-Paul | D24: =IF(ISBLANK($B24),"",VLOOKUP(CONCATENATE($B24," ",$C24),Table_membres,25,FALSE)) -> 20.3 | E24: =INDIRECT(CONCATENATE("'",TEXT(A24,"0"),"'!$c$29")) -> 206 | F24: =INDIRECT(CONCATENATE("'",TEXT(A24,"0"),"'!$f$29")) -> 66 | G24: =INDIRECT(CONCATENATE("'",TEXT(A24,"0"),"'!$c$30")) -> 138 | H24: =INDIRECT(CONCATENATE("'",TEXT(A24,"0"),"'!$f$30")) -> 47
A25: BOISSERPE_Patrick | B25: =HYPERLINK("#'"&A25&"'!A1",INDIRECT(CONCATENATE("'",TEXT(A25,"0"),"'!$A$1"))) -> BOISSERPE | C25: =INDIRECT(CONCATENATE("'",TEXT(A25,"0"),"'!$B$1")) -> Patrick | D25: =IF(ISBLANK($B25),"",VLOOKUP(CONCATENATE($B25," ",$C25),Table_membres,25,FALSE)) -> 34.5 | E25: =INDIRECT(CONCATENATE("'",TEXT(A25,"0"),"'!$c$29")) -> 257 | F25: =INDIRECT(CONCATENATE("'",TEXT(A25,"0"),"'!$f$29")) -> 43 | G25: =INDIRECT(CONCATENATE("'",TEXT(A25,"0"),"'!$c$30")) -> 138 | H25: =INDIRECT(CONCATENATE("'",TEXT(A25,"0"),"'!$f$30")) -> 27 | J25: 28 | K25: 2
A26: RIONDET_Jean-Claude | B26: =HYPERLINK("#'"&A26&"'!A1",INDIRECT(CONCATENATE("'",TEXT(A26,"0"),"'!$A$1"))) -> RIONDET | C26: =INDIRECT(CONCATENATE("'",TEXT(A26,"0"),"'!$B$1")) -> Jean-Claude | D26: =IF(ISBLANK($B26),"",VLOOKUP(CONCATENATE($B26," ",$C26),Table_membres,25,FALSE)) -> 32 | E26: =INDIRECT(CONCATENATE("'",TEXT(A26,"0"),"'!$c$29")) -> 189 | F26: =INDIRECT(CONCATENATE("'",TEXT(A26,"0"),"'!$f$29")) -> 45 | G26: =INDIRECT(CONCATENATE("'",TEXT(A26,"0"),"'!$c$30")) -> 136 | H26: =INDIRECT(CONCATENATE("'",TEXT(A26,"0"),"'!$f$30")) -> 34
A27: DOGUIN_Dominique | B27: =HYPERLINK("#'"&A27&"'!A1",INDIRECT(CONCATENATE("'",TEXT(A27,"0"),"'!$A$1"))) -> DOGUIN-SFEZ | C27: =INDIRECT(CONCATENATE("'",TEXT(A27,"0"),"'!$B$1")) -> Dominique | D27: =IF(ISBLANK($B27),"",VLOOKUP(CONCATENATE($B27," ",$C27),Table_membres,25,FALSE)) -> 32.5 | E27: =INDIRECT(CONCATENATE("'",TEXT(A27,"0"),"'!$c$29")) -> 172 | F27: =INDIRECT(CONCATENATE("'",TEXT(A27,"0"),"'!$f$29")) -> 38 | G27: =INDIRECT(CONCATENATE("'",TEXT(A27,"0"),"'!$c$30")) -> 136 | H27: =INDIRECT(CONCATENATE("'",TEXT(A27,"0"),"'!$f$30")) -> 32 | J27: 24 | K27: 2
A28: PIERRE_Philippe | B28: =HYPERLINK("#'"&A28&"'!A1",INDIRECT(CONCATENATE("'",TEXT(A28,"0"),"'!$A$1"))) -> PIERRE | C28: =INDIRECT(CONCATENATE("'",TEXT(A28,"0"),"'!$B$1")) -> Philippe | D28: =IF(ISBLANK($B28),"",VLOOKUP(CONCATENATE($B28," ",$C28),Table_membres,25,FALSE)) -> 29.1 | E28: =INDIRECT(CONCATENATE("'",TEXT(A28,"0"),"'!$c$29")) -> 188 | F28: =INDIRECT(CONCATENATE("'",TEXT(A28,"0"),"'!$f$29")) -> 56 | G28: =INDIRECT(CONCATENATE("'",TEXT(A28,"0"),"'!$c$30")) -> 134 | H28: =INDIRECT(CONCATENATE("'",TEXT(A28,"0"),"'!$f$30")) -> 39 | J28: 30 | K28: 11
A29: MOISSON_Bernard | B29: =HYPERLINK("#'"&A29&"'!A1",INDIRECT(CONCATENATE("'",TEXT(A29,"0"),"'!$A$1"))) -> MOISSON | C29: =INDIRECT(CONCATENATE("'",TEXT(A29,"0"),"'!$B$1")) -> Bernard | D29: =IF(ISBLANK($B29),"",VLOOKUP(CONCATENATE($B29," ",$C29),Table_membres,25,FALSE)) -> 31.7 | E29: =INDIRECT(CONCATENATE("'",TEXT(A29,"0"),"'!$c$29")) -> 163 | F29: =INDIRECT(CONCATENATE("'",TEXT(A29,"0"),"'!$f$29")) -> 36 | G29: =INDIRECT(CONCATENATE("'",TEXT(A29,"0"),"'!$c$30")) -> 130 | H29: =INDIRECT(CONCATENATE("'",TEXT(A29,"0"),"'!$f$30")) -> 29
A30: GATIGNOL_Patricia | B30: =HYPERLINK("#'"&A30&"'!A1",INDIRECT(CONCATENATE("'",TEXT(A30,"0"),"'!$A$1"))) -> GATIGNOL | C30: =INDIRECT(CONCATENATE("'",TEXT(A30,"0"),"'!$B$1")) -> Patricia | D30: =IF(ISBLANK($B30),"",VLOOKUP(CONCATENATE($B30," ",$C30),Table_membres,25,FALSE)) -> 38 | E30: =INDIRECT(CONCATENATE("'",TEXT(A30,"0"),"'!$c$29")) -> 179 | F30: =INDIRECT(CONCATENATE("'",TEXT(A30,"0"),"'!$f$29")) -> 34 | G30: =INDIRECT(CONCATENATE("'",TEXT(A30,"0"),"'!$c$30")) -> 122 | H30: =INDIRECT(CONCATENATE("'",TEXT(A30,"0"),"'!$f$30")) -> 24 | J30: 22 | K30: 4
A31: VERBRAEKEN_Erik | B31: =HYPERLINK("#'"&A31&"'!A1",INDIRECT(CONCATENATE("'",TEXT(A31,"0"),"'!$A$1"))) -> VERBRAEKEN | C31: =INDIRECT(CONCATENATE("'",TEXT(A31,"0"),"'!$B$1")) -> Erik | D31: =IF(ISBLANK($B31),"",VLOOKUP(CONCATENATE($B31," ",$C31),Table_membres,25,FALSE)) -> 34.5 | E31: =INDIRECT(CONCATENATE("'",TEXT(A31,"0"),"'!$c$29")) -> 194 | F31: =INDIRECT(CONCATENATE("'",TEXT(A31,"0"),"'!$f$29")) -> 63 | G31: =INDIRECT(CONCATENATE("'",TEXT(A31,"0"),"'!$c$30")) -> 113 | H31: =INDIRECT(CONCATENATE("'",TEXT(A31,"0"),"'!$f$30")) -> 42 | J31: 26 | K31: 2
A32: MABILE_Claude | B32: =HYPERLINK("#'"&A32&"'!A1",INDIRECT(CONCATENATE("'",TEXT(A32,"0"),"'!$A$1"))) -> MABILE | C32: =INDIRECT(CONCATENATE("'",TEXT(A32,"0"),"'!$B$1")) -> Claude | D32: =IF(ISBLANK($B32),"",VLOOKUP(CONCATENATE($B32," ",$C32),Table_membres,25,FALSE)) -> 17.6 | E32: =INDIRECT(CONCATENATE("'",TEXT(A32,"0"),"'!$c$29")) -> 174 | F32: =INDIRECT(CONCATENATE("'",TEXT(A32,"0"),"'!$f$29")) -> 60 | G32: =INDIRECT(CONCATENATE("'",TEXT(A32,"0"),"'!$c$30")) -> 111 | H32: =INDIRECT(CONCATENATE("'",TEXT(A32,"0"),"'!$f$30")) -> 39
A33: CHEREL_Louis | B33: =HYPERLINK("#'"&A33&"'!A1",INDIRECT(CONCATENATE("'",TEXT(A33,"0"),"'!$A$1"))) -> CHEREL | C33: =INDIRECT(CONCATENATE("'",TEXT(A33,"0"),"'!$B$1")) -> Louis | D33: =IF(ISBLANK($B33),"",VLOOKUP(CONCATENATE($B33," ",$C33),Table_membres,25,FALSE)) -> 35.5 | E33: =INDIRECT(CONCATENATE("'",TEXT(A33,"0"),"'!$c$29")) -> 127 | F33: =INDIRECT(CONCATENATE("'",TEXT(A33,"0"),"'!$f$29")) -> 31 | G33: =INDIRECT(CONCATENATE("'",TEXT(A33,"0"),"'!$c$30")) -> 100 | H33: =INDIRECT(CONCATENATE("'",TEXT(A33,"0"),"'!$f$30")) -> 24
A34: BERNARD_Yvon | B34: =HYPERLINK("#'"&A34&"'!A1",INDIRECT(CONCATENATE("'",TEXT(A34,"0"),"'!$A$1"))) -> BERNARD | C34: =INDIRECT(CONCATENATE("'",TEXT(A34,"0"),"'!$B$1")) -> Yvon | D34: =IF(ISBLANK($B34),"",VLOOKUP(CONCATENATE($B34," ",$C34),Table_membres,25,FALSE)) -> 32.5 | E34: =INDIRECT(CONCATENATE("'",TEXT(A34,"0"),"'!$c$29")) -> 80 | F34: =INDIRECT(CONCATENATE("'",TEXT(A34,"0"),"'!$f$29")) -> 28 | G34: =INDIRECT(CONCATENATE("'",TEXT(A34,"0"),"'!$c$30")) -> 80 | H34: =INDIRECT(CONCATENATE("'",TEXT(A34,"0"),"'!$f$30")) -> 28
A35: ROME_Virginie | B35: =HYPERLINK("#'"&A35&"'!A1",INDIRECT(CONCATENATE("'",TEXT(A35,"0"),"'!$A$1"))) -> ROME | C35: =INDIRECT(CONCATENATE("'",TEXT(A35,"0"),"'!$B$1")) -> Virginie | D35: =IF(ISBLANK($B35),"",VLOOKUP(CONCATENATE($B35," ",$C35),Table_membres,25,FALSE)) -> 34.5 | E35: =INDIRECT(CONCATENATE("'",TEXT(A35,"0"),"'!$c$29")) -> 80 | F35: =INDIRECT(CONCATENATE("'",TEXT(A35,"0"),"'!$f$29")) -> 17 | G35: =INDIRECT(CONCATENATE("'",TEXT(A35,"0"),"'!$c$30")) -> 80 | H35: =INDIRECT(CONCATENATE("'",TEXT(A35,"0"),"'!$f$30")) -> 17
A36: PICARD_Luc | B36: =HYPERLINK("#'"&A36&"'!A1",INDIRECT(CONCATENATE("'",TEXT(A36,"0"),"'!$A$1"))) -> PICARD | C36: =INDIRECT(CONCATENATE("'",TEXT(A36,"0"),"'!$B$1")) -> Luc | D36: =IF(ISBLANK($B36),"",VLOOKUP(CONCATENATE($B36," ",$C36),Table_membres,25,FALSE)) -> 46 | E36: =INDIRECT(CONCATENATE("'",TEXT(A36,"0"),"'!$c$29")) -> 78 | F36: =INDIRECT(CONCATENATE("'",TEXT(A36,"0"),"'!$f$29")) -> 10 | G36: =INDIRECT(CONCATENATE("'",TEXT(A36,"0"),"'!$c$30")) -> 78 | H36: =INDIRECT(CONCATENATE("'",TEXT(A36,"0"),"'!$f$30")) -> 10
A37: SZAFIR_Nathalie | B37: =HYPERLINK("#'"&A37&"'!A1",INDIRECT(CONCATENATE("'",TEXT(A37,"0"),"'!$A$1"))) -> SZAFIR | C37: =INDIRECT(CONCATENATE("'",TEXT(A37,"0"),"'!$B$1")) -> Nathalie | D37: =IF(ISBLANK($B37),"",VLOOKUP(CONCATENATE($B37," ",$C37),Table_membres,25,FALSE)) -> 54 | E37: =INDIRECT(CONCATENATE("'",TEXT(A37,"0"),"'!$c$29")) -> 76 | F37: =INDIRECT(CONCATENATE("'",TEXT(A37,"0"),"'!$f$29")) -> 9 | G37: =INDIRECT(CONCATENATE("'",TEXT(A37,"0"),"'!$c$30")) -> 76 | H37: =INDIRECT(CONCATENATE("'",TEXT(A37,"0"),"'!$f$30")) -> 9
A38: LE BON_Jean-François | B38: =HYPERLINK("#'"&A38&"'!A1",INDIRECT(CONCATENATE("'",TEXT(A38,"0"),"'!$A$1"))) -> LE BON | C38: =INDIRECT(CONCATENATE("'",TEXT(A38,"0"),"'!$B$1")) -> Jean-François | D38: =IF(ISBLANK($B38),"",VLOOKUP(CONCATENATE($B38," ",$C38),Table_membres,25,FALSE)) -> 9 | E38: =INDIRECT(CONCATENATE("'",TEXT(A38,"0"),"'!$c$29")) -> 75 | F38: =INDIRECT(CONCATENATE("'",TEXT(A38,"0"),"'!$f$29")) -> 44 | G38: =INDIRECT(CONCATENATE("'",TEXT(A38,"0"),"'!$c$30")) -> 75 | H38: =INDIRECT(CONCATENATE("'",TEXT(A38,"0"),"'!$f$30")) -> 44
A39: BOUTEAUX_Anne-Marie | B39: =HYPERLINK("#'"&A39&"'!A1",INDIRECT(CONCATENATE("'",TEXT(A39,"0"),"'!$A$1"))) -> PICARD | C39: =INDIRECT(CONCATENATE("'",TEXT(A39,"0"),"'!$B$1")) -> Anne-Marie | D39: =IF(ISBLANK($B39),"",VLOOKUP(CONCATENATE($B39," ",$C39),Table_membres,25,FALSE)) -> 54 | E39: =INDIRECT(CONCATENATE("'",TEXT(A39,"0"),"'!$c$29")) -> 74 | F39: =INDIRECT(CONCATENATE("'",TEXT(A39,"0"),"'!$f$29")) -> 14 | G39: =INDIRECT(CONCATENATE("'",TEXT(A39,"0"),"'!$c$30")) -> 74 | H39: =INDIRECT(CONCATENATE("'",TEXT(A39,"0"),"'!$f$30")) -> 14
A40: GU_Qin | B40: =HYPERLINK("#'"&A40&"'!A1",INDIRECT(CONCATENATE("'",TEXT(A40,"0"),"'!$A$1"))) -> GU | C40: =INDIRECT(CONCATENATE("'",TEXT(A40,"0"),"'!$B$1")) -> Qin | D40: =IF(ISBLANK($B40),"",VLOOKUP(CONCATENATE($B40," ",$C40),Table_membres,25,FALSE)) -> 45 | E40: =INDIRECT(CONCATENATE("'",TEXT(A40,"0"),"'!$c$29")) -> 63 | F40: =INDIRECT(CONCATENATE("'",TEXT(A40,"0"),"'!$f$29")) -> 12 | G40: =INDIRECT(CONCATENATE("'",TEXT(A40,"0"),"'!$c$30")) -> 63 | H40: =INDIRECT(CONCATENATE("'",TEXT(A40,"0"),"'!$f$30")) -> 12
A41: PECH_Jean-François | B41: =HYPERLINK("#'"&A41&"'!A1",INDIRECT(CONCATENATE("'",TEXT(A41,"0"),"'!$A$1"))) -> PECH | C41: =INDIRECT(CONCATENATE("'",TEXT(A41,"0"),"'!$B$1")) -> Jean-François | D41: =IF(ISBLANK($B41),"",VLOOKUP(CONCATENATE($B41," ",$C41),Table_membres,25,FALSE)) -> 54 | E41: =INDIRECT(CONCATENATE("'",TEXT(A41,"0"),"'!$c$29")) -> 46 | F41: =INDIRECT(CONCATENATE("'",TEXT(A41,"0"),"'!$f$29")) -> 15 | G41: =INDIRECT(CONCATENATE("'",TEXT(A41,"0"),"'!$c$30")) -> 45 | H41: =INDIRECT(CONCATENATE("'",TEXT(A41,"0"),"'!$f$30")) -> 15
A42: WERMESTER_Stéphane | B42: =HYPERLINK("#'"&A42&"'!A1",INDIRECT(CONCATENATE("'",TEXT(A42,"0"),"'!$A$1"))) -> WERMESTER | C42: =INDIRECT(CONCATENATE("'",TEXT(A42,"0"),"'!$B$1")) -> Stéphane | D42: =IF(ISBLANK($B42),"",VLOOKUP(CONCATENATE($B42," ",$C42),Table_membres,25,FALSE)) -> 53 | E42: =INDIRECT(CONCATENATE("'",TEXT(A42,"0"),"'!$c$29")) -> 43 | F42: =INDIRECT(CONCATENATE("'",TEXT(A42,"0"),"'!$f$29")) -> 7 | G42: =INDIRECT(CONCATENATE("'",TEXT(A42,"0"),"'!$c$30")) -> 43 | H42: =INDIRECT(CONCATENATE("'",TEXT(A42,"0"),"'!$f$30")) -> 7
A43: PHULPIN_Brigitte | B43: =HYPERLINK("#'"&A43&"'!A1",INDIRECT(CONCATENATE("'",TEXT(A43,"0"),"'!$A$1"))) -> PHULPIN | C43: =INDIRECT(CONCATENATE("'",TEXT(A43,"0"),"'!$B$1")) -> Brigitte | D43: =IF(ISBLANK($B43),"",VLOOKUP(CONCATENATE($B43," ",$C43),Table_membres,25,FALSE)) -> 28 | E43: =INDIRECT(CONCATENATE("'",TEXT(A43,"0"),"'!$c$29")) -> 37 | F43: =INDIRECT(CONCATENATE("'",TEXT(A43,"0"),"'!$f$29")) -> 13 | G43: =INDIRECT(CONCATENATE("'",TEXT(A43,"0"),"'!$c$30")) -> 37 | H43: =INDIRECT(CONCATENATE("'",TEXT(A43,"0"),"'!$f$30")) -> 13
A44: BENCHECROUN_Danielle | B44: =HYPERLINK("#'"&A44&"'!A1",INDIRECT(CONCATENATE("'",TEXT(A44,"0"),"'!$A$1"))) -> BENCHECROUN | C44: =INDIRECT(CONCATENATE("'",TEXT(A44,"0"),"'!$B$1")) -> Danielle | D44: =IF(ISBLANK($B44),"",VLOOKUP(CONCATENATE($B44," ",$C44),Table_membres,25,FALSE)) -> 42 | E44: =INDIRECT(CONCATENATE("'",TEXT(A44,"0"),"'!$c$29")) -> 37 | F44: =INDIRECT(CONCATENATE("'",TEXT(A44,"0"),"'!$f$29")) -> 1 | G44: =INDIRECT(CONCATENATE("'",TEXT(A44,"0"),"'!$c$30")) -> 37 | H44: =INDIRECT(CONCATENATE("'",TEXT(A44,"0"),"'!$f$30")) -> 1
A45: LOPEZ_Cédric | B45: =HYPERLINK("#'"&A45&"'!A1",INDIRECT(CONCATENATE("'",TEXT(A45,"0"),"'!$A$1"))) -> LOPEZ | C45: =INDIRECT(CONCATENATE("'",TEXT(A45,"0"),"'!$B$1")) -> Cédric | D45: =IF(ISBLANK($B45),"",VLOOKUP(CONCATENATE($B45," ",$C45),Table_membres,25,FALSE)) -> 54 | E45: =INDIRECT(CONCATENATE("'",TEXT(A45,"0"),"'!$c$29")) -> 36 | F45: =INDIRECT(CONCATENATE("'",TEXT(A45,"0"),"'!$f$29")) -> 12 | G45: =INDIRECT(CONCATENATE("'",TEXT(A45,"0"),"'!$c$30")) -> 36 | H45: =INDIRECT(CONCATENATE("'",TEXT(A45,"0"),"'!$f$30")) -> 12
A46: ROUSSEAU_Jean-Marc | B46: =HYPERLINK("#'"&A46&"'!A1",INDIRECT(CONCATENATE("'",TEXT(A46,"0"),"'!$A$1"))) -> ROUSSEAU | C46: =INDIRECT(CONCATENATE("'",TEXT(A46,"0"),"'!$B$1")) -> Jean-Marc | D46: =IF(ISBLANK($B46),"",VLOOKUP(CONCATENATE($B46," ",$C46),Table_membres,25,FALSE)) -> 54 | E46: =INDIRECT(CONCATENATE("'",TEXT(A46,"0"),"'!$c$29")) -> 36 | F46: =INDIRECT(CONCATENATE("'",TEXT(A46,"0"),"'!$f$29")) -> 12 | G46: =INDIRECT(CONCATENATE("'",TEXT(A46,"0"),"'!$c$30")) -> 36 | H46: =INDIRECT(CONCATENATE("'",TEXT(A46,"0"),"'!$f$30")) -> 12
A47: BENCHECROUN_Nagib | B47: =HYPERLINK("#'"&A47&"'!A1",INDIRECT(CONCATENATE("'",TEXT(A47,"0"),"'!$A$1"))) -> BENCHECROUN | C47: =INDIRECT(CONCATENATE("'",TEXT(A47,"0"),"'!$B$1")) -> Nagib | D47: =IF(ISBLANK($B47),"",VLOOKUP(CONCATENATE($B47," ",$C47),Table_membres,25,FALSE)) -> 54 | E47: =INDIRECT(CONCATENATE("'",TEXT(A47,"0"),"'!$c$29")) -> 28 | F47: =INDIRECT(CONCATENATE("'",TEXT(A47,"0"),"'!$f$29")) -> 1 | G47: =INDIRECT(CONCATENATE("'",TEXT(A47,"0"),"'!$c$30")) -> 28 | H47: =INDIRECT(CONCATENATE("'",TEXT(A47,"0"),"'!$f$30")) -> 1
A48: DELDIQUE_Denise | B48: =HYPERLINK("#'"&A48&"'!A1",INDIRECT(CONCATENATE("'",TEXT(A48,"0"),"'!$A$1"))) -> DELDIQUE | C48: =INDIRECT(CONCATENATE("'",TEXT(A48,"0"),"'!$B$1")) -> Denise | D48: =IF(ISBLANK($B48),"",VLOOKUP(CONCATENATE($B48," ",$C48),Table_membres,25,FALSE)) -> 54 | E48: =INDIRECT(CONCATENATE("'",TEXT(A48,"0"),"'!$c$29")) -> 27 | F48: =INDIRECT(CONCATENATE("'",TEXT(A48,"0"),"'!$f$29")) -> 9 | G48: =INDIRECT(CONCATENATE("'",TEXT(A48,"0"),"'!$c$30")) -> 27 | H48: =INDIRECT(CONCATENATE("'",TEXT(A48,"0"),"'!$f$30")) -> 9
A49: PAUL_Albert | B49: =HYPERLINK("#'"&A49&"'!A1",INDIRECT(CONCATENATE("'",TEXT(A49,"0"),"'!$A$1"))) -> PAUL | C49: =INDIRECT(CONCATENATE("'",TEXT(A49,"0"),"'!$B$1")) -> Albert | D49: =IF(ISBLANK($B49),"",VLOOKUP(CONCATENATE($B49," ",$C49),Table_membres,25,FALSE)) -> 54 | E49: =INDIRECT(CONCATENATE("'",TEXT(A49,"0"),"'!$c$29")) -> 27 | F49: =INDIRECT(CONCATENATE("'",TEXT(A49,"0"),"'!$f$29")) -> 9 | G49: =INDIRECT(CONCATENATE("'",TEXT(A49,"0"),"'!$c$30")) -> 27 | H49: =INDIRECT(CONCATENATE("'",TEXT(A49,"0"),"'!$f$30")) -> 9
A50: BORDET_Dominique | B50: =HYPERLINK("#'"&A50&"'!A1",INDIRECT(CONCATENATE("'",TEXT(A50,"0"),"'!$A$1"))) -> BORDET | C50: =INDIRECT(CONCATENATE("'",TEXT(A50,"0"),"'!$B$1")) -> Dominique | D50: =IF(ISBLANK($B50),"",VLOOKUP(CONCATENATE($B50," ",$C50),Table_membres,25,FALSE)) -> 42 | E50: =INDIRECT(CONCATENATE("'",TEXT(A50,"0"),"'!$c$29")) -> 24 | F50: =INDIRECT(CONCATENATE("'",TEXT(A50,"0"),"'!$d$29")) -> 4 | G50: =INDIRECT(CONCATENATE("'",TEXT(A50,"0"),"'!$c$30")) -> 24 | H50: =INDIRECT(CONCATENATE("'",TEXT(A50,"0"),"'!$d$30")) -> 4 | J50: 24 | K50: 4
A51: KUHFUSS MONVAL_Luce | B51: =HYPERLINK("#'"&A51&"'!A1",INDIRECT(CONCATENATE("'",TEXT(A51,"0"),"'!$A$1"))) -> KUHFUSS MONVAL | C51: =INDIRECT(CONCATENATE("'",TEXT(A51,"0"),"'!$B$1")) -> Luce | D51: =IF(ISBLANK($B51),"",VLOOKUP(CONCATENATE($B51," ",$C51),Table_membres,25,FALSE)) -> 48 | E51: =INDIRECT(CONCATENATE("'",TEXT(A51,"0"),"'!$c$29")) -> 21 | F51: =INDIRECT(CONCATENATE("'",TEXT(A51,"0"),"'!$f$29")) -> 1 | G51: =INDIRECT(CONCATENATE("'",TEXT(A51,"0"),"'!$c$30")) -> 21 | H51: =INDIRECT(CONCATENATE("'",TEXT(A51,"0"),"'!$f$30")) -> 1
A52: DOGUIN_Yohann | B52: =HYPERLINK("#'"&A52&"'!A1",INDIRECT(CONCATENATE("'",TEXT(A52,"0"),"'!$A$1"))) -> DOGUIN | C52: =INDIRECT(CONCATENATE("'",TEXT(A52,"0"),"'!$B$1")) -> Yohann | D52: =IF(ISBLANK($B52),"",VLOOKUP(CONCATENATE($B52," ",$C52),Table_membres,25,FALSE)) -> 50 | E52: =INDIRECT(CONCATENATE("'",TEXT(A52,"0"),"'!$c$29")) -> 18 | F52: =INDIRECT(CONCATENATE("'",TEXT(A52,"0"),"'!$f$29")) -> 6 | G52: =INDIRECT(CONCATENATE("'",TEXT(A52,"0"),"'!$c$30")) -> 18 | H52: =INDIRECT(CONCATENATE("'",TEXT(A52,"0"),"'!$f$30")) -> 6
A53: TERNEL_Cyprien | B53: =HYPERLINK("#'"&A53&"'!A1",INDIRECT(CONCATENATE("'",TEXT(A53,"0"),"'!$A$1"))) -> TERNEL | C53: =INDIRECT(CONCATENATE("'",TEXT(A53,"0"),"'!$B$1")) -> Cyprien | D53: =IF(ISBLANK($B53),"",VLOOKUP(CONCATENATE($B53," ",$C53),Table_membres,25,FALSE)) -> 21.8 | E53: =INDIRECT(CONCATENATE("'",TEXT(A53,"0"),"'!$c$29")) -> 18 | F53: =INDIRECT(CONCATENATE("'",TEXT(A53,"0"),"'!$f$29")) -> 6 | G53: =INDIRECT(CONCATENATE("'",TEXT(A53,"0"),"'!$c$30")) -> 18 | H53: =INDIRECT(CONCATENATE("'",TEXT(A53,"0"),"'!$f$30")) -> 6
A54: WATIER_Laurent | B54: =HYPERLINK("#'"&A54&"'!A1",INDIRECT(CONCATENATE("'",TEXT(A54,"0"),"'!$A$1"))) -> WATIER | C54: =INDIRECT(CONCATENATE("'",TEXT(A54,"0"),"'!$B$1")) -> Laurent | D54: =IF(ISBLANK($B54),"",VLOOKUP(CONCATENATE($B54," ",$C54),Table_membres,25,FALSE)) -> 50 | E54: =INDIRECT(CONCATENATE("'",TEXT(A54,"0"),"'!$c$29")) -> 18 | F54: =INDIRECT(CONCATENATE("'",TEXT(A54,"0"),"'!$f$29")) -> 2 | G54: =INDIRECT(CONCATENATE("'",TEXT(A54,"0"),"'!$c$30")) -> 18 | H54: =INDIRECT(CONCATENATE("'",TEXT(A54,"0"),"'!$f$30")) -> 2
A55: BEAUCHET_Sandra | B55: =HYPERLINK("#'"&A55&"'!A1",INDIRECT(CONCATENATE("'",TEXT(A55,"0"),"'!$A$1"))) -> BEAUCHET | C55: =INDIRECT(CONCATENATE("'",TEXT(A55,"0"),"'!$B$1")) -> Sandra | D55: =IF(ISBLANK($B55),"",VLOOKUP(CONCATENATE($B55," ",$C55),Table_membres,25,FALSE)) -> 54 | E55: =INDIRECT(CONCATENATE("'",TEXT(A55,"0"),"'!$c$29")) -> 9 | F55: =INDIRECT(CONCATENATE("'",TEXT(A55,"0"),"'!$f$29")) -> 3 | G55: =INDIRECT(CONCATENATE("'",TEXT(A55,"0"),"'!$c$30")) -> 9 | H55: =INDIRECT(CONCATENATE("'",TEXT(A55,"0"),"'!$f$30")) -> 3
A56: BRUNEAU_Thomas | B56: =HYPERLINK("#'"&A56&"'!A1",INDIRECT(CONCATENATE("'",TEXT(A56,"0"),"'!$A$1"))) -> BRUNEAU | C56: =INDIRECT(CONCATENATE("'",TEXT(A56,"0"),"'!$B$1")) -> Thomas | D56: =IF(ISBLANK($B56),"",VLOOKUP(CONCATENATE($B56," ",$C56),Table_membres,25,FALSE)) -> 54 | E56: =INDIRECT(CONCATENATE("'",TEXT(A56,"0"),"'!$c$29")) -> 9 | F56: =INDIRECT(CONCATENATE("'",TEXT(A56,"0"),"'!$f$29")) -> 3 | G56: =INDIRECT(CONCATENATE("'",TEXT(A56,"0"),"'!$c$30")) -> 9 | H56: =INDIRECT(CONCATENATE("'",TEXT(A56,"0"),"'!$f$30")) -> 3
A57: CRESTOIS_Christine | B57: =HYPERLINK("#'"&A57&"'!A1",INDIRECT(CONCATENATE("'",TEXT(A57,"0"),"'!$A$1"))) -> CRESTOIS | C57: =INDIRECT(CONCATENATE("'",TEXT(A57,"0"),"'!$B$1")) -> Christine | D57: =IF(ISBLANK($B57),"",VLOOKUP(CONCATENATE($B57," ",$C57),Table_membres,25,FALSE)) -> 54 | E57: =INDIRECT(CONCATENATE("'",TEXT(A57,"0"),"'!$c$29")) -> 9 | F57: =INDIRECT(CONCATENATE("'",TEXT(A57,"0"),"'!$f$29")) -> 3 | G57: =INDIRECT(CONCATENATE("'",TEXT(A57,"0"),"'!$c$30")) -> 9 | H57: =INDIRECT(CONCATENATE("'",TEXT(A57,"0"),"'!$f$30")) -> 3
A58: CRESTOIS_Laurent | B58: =HYPERLINK("#'"&A58&"'!A1",INDIRECT(CONCATENATE("'",TEXT(A58,"0"),"'!$A$1"))) -> CRESTOIS | C58: =INDIRECT(CONCATENATE("'",TEXT(A58,"0"),"'!$B$1")) -> Laurent | D58: =IF(ISBLANK($B58),"",VLOOKUP(CONCATENATE($B58," ",$C58),Table_membres,25,FALSE)) -> 54 | E58: =INDIRECT(CONCATENATE("'",TEXT(A58,"0"),"'!$c$29")) -> 9 | F58: =INDIRECT(CONCATENATE("'",TEXT(A58,"0"),"'!$f$29")) -> 3 | G58: =INDIRECT(CONCATENATE("'",TEXT(A58,"0"),"'!$c$30")) -> 9 | H58: =INDIRECT(CONCATENATE("'",TEXT(A58,"0"),"'!$f$30")) -> 3
A59: ELMALEH_Alfred | B59: =HYPERLINK("#'"&A59&"'!A1",INDIRECT(CONCATENATE("'",TEXT(A59,"0"),"'!$A$1"))) -> ELMALEH | C59: =INDIRECT(CONCATENATE("'",TEXT(A59,"0"),"'!$B$1")) -> Alfred | D59: =IF(ISBLANK($B59),"",VLOOKUP(CONCATENATE($B59," ",$C59),Table_membres,25,FALSE)) -> 54 | E59: =INDIRECT(CONCATENATE("'",TEXT(A59,"0"),"'!$c$29")) -> 9 | F59: =INDIRECT(CONCATENATE("'",TEXT(A59,"0"),"'!$f$29")) -> 3 | G59: =INDIRECT(CONCATENATE("'",TEXT(A59,"0"),"'!$c$30")) -> 9 | H59: =INDIRECT(CONCATENATE("'",TEXT(A59,"0"),"'!$f$30")) -> 3
A60: PONSOT-JACQUIN_Catherine | B60: =HYPERLINK("#'"&A60&"'!A1",INDIRECT(CONCATENATE("'",TEXT(A60,"0"),"'!$A$1"))) -> PONSOT-JACQUIN | C60: =INDIRECT(CONCATENATE("'",TEXT(A60,"0"),"'!$B$1")) -> Catherine | D60: =IF(ISBLANK($B60),"",VLOOKUP(CONCATENATE($B60," ",$C60),Table_membres,25,FALSE)) -> 54 | E60: =INDIRECT(CONCATENATE("'",TEXT(A60,"0"),"'!$c$29")) -> 9 | F60: =INDIRECT(CONCATENATE("'",TEXT(A60,"0"),"'!$f$29")) -> 3 | G60: =INDIRECT(CONCATENATE("'",TEXT(A60,"0"),"'!$c$30")) -> 9 | H60: =INDIRECT(CONCATENATE("'",TEXT(A60,"0"),"'!$f$30")) -> 3

Sheet Modèle (hidden)
A1: NOM | B1: Prénom | D1: =HYPERLINK("#Adhérents!A1","Retour") -> Retour
A3: Date Sortie | B3: Parcours | C3: Net | D3: Brut | E3: Net+ | F3: Brut+ | G3: Rang Net | H3: Rang Brut
E4: =C4-ROW(C4)/1000 -> -0.004 | F4: =D4-ROW(D4)/1000 -> -0.004 | G4: =RANK(E4,$E$4:$E$28) -> 1 | H4: =RANK(F4,$F$4:$F$28) -> 1
E5: =C5-ROW(C5)/1000 -> -0.005 | F5: -0.005 | G5: 2 | H5: =RANK(F5,$F$4:$F$28) -> 2
E6: -0.006 | F6: -0.006 | G6: 3 | H6: =RANK(F6,$F$4:$F$28) -> 3
E7: -0.007 | F7: -0.007 | G7: 4 | H7: 4
E8: -0.008 | F8: -0.008 | G8: 5 | H8: 5
E9: -0.009 | F9: -0.009 | G9: 6 | H9: 6
E10: -0.01 | F10: -0.01 | G10: 7 | H10: 7
E11: -0.011 | F11: -0.011 | G11: 8 | H11: 8
E12: -0.012 | F12: -0.012 | G12: 9 | H12: 9
E13: -0.013 | F13: -0.013 | G13: 10 | H13: 10
E14: -0.014 | F14: -0.014 | G14: 11 | H14: 11
E15: -0.015 | F15: -0.015 | G15: 12 | H15: 12
E16: -0.016 | F16: -0.016 | G16: 13 | H16: 13
E17: -0.017 | F17: -0.017 | G17: 14 | H17: 14
E18: -0.018 | F18: -0.018 | G18: 15 | H18: 15
E19: -0.019 | F19: -0.019 | G19: 16 | H19: 16
E20: -0.02 | F20: -0.02 | G20: 17 | H20: 17
E21: -0.021 | F21: -0.021 | G21: 18 | H21: 18
E22: -0.022 | F22: -0.022 | G22: 19 | H22: 19
E23: -0.023 | F23: -0.023 | G23: 20 | H23: 20
E24: -0.024 | F24: -0.024 | G24: 21 | H24: 21
E25: -0.025 | F25: -0.025 | G25: 22 | H25: 22
E26: -0.026 | F26: -0.026 | G26: 23 | H26: 23
E27: -0.027 | F27: -0.027 | G27: 24 | H27: 24
E28: -0.028 | F28: -0.028 | G28: 25 | H28: 25
B29: Cumul total | C29: =SUM(C4:C28) -> 0 | D29: =SUM(D4:D28) -> 0
B30: 5 meilleurs scores | C30: =INDEX(C4:C28,MATCH(1,G4:G28,0))+INDEX(C4:C28,MATCH(2,G4:G28,0))+INDEX(C4:C28,MATCH(3,G4:G28,0))+INDEX(C4:C28,MATCH(4,G4:G28,0))+INDEX(C4:C28,MATCH(5,G4:G28,0)) -> 0 | D30: =INDEX(D4:D28,MATCH(1,H4:H28,0))+INDEX(D4:D28,MATCH(2,H4:H28,0))+INDEX(D4:D28,MATCH(3,H4:H28,0))+INDEX(D4:D28,MATCH(4,H4:H28,0))+INDEX(D4:D28,MATCH(5,H4:H28,0)) -> 0

Sheet BEAUCHET_Sandra
A1: BEAUCHET | B1: Sandra | F1: =HYPERLINK("#Adhérents!A1","Retour") -> Retour
A3: Date Sortie | B3: Parcours | C3: Net | D3: Net+ | E3: Rang Net | F3: Brut | G3: Brut+ | H3: Rang Brut
A4: 2019-04-25 | B4: Rueil | C4: 9 | D4: =C4+ROW(C4)/1000 -> 9.004 | E4: =RANK(D4,$D$4:$D$28) -> 1 | F4: 3 | G4: =F4+ROW(F4)/1000 -> 3.004 | H4: =RANK(G4,$G$4:$G$28) -> 1
D5: 0.005 | E5: =RANK(D5,$D$4:$D$28) -> 25 | G5: 0.005 | H5: =RANK(G5,$G$4:$G$28) -> 25
D6: 0.006 | E6: 24 | G6: 0.006 | H6: =RANK(G6,$G$4:$G$28) -> 24
D7: 0.007 | E7: 23 | G7: 0.007 | H7: 23
D8: 0.008 | E8: 22 | G8: 0.008 | H8: 22
D9: 0.009 | E9: 21 | G9: 0.009 | H9: 21
D10: 0.01 | E10: 20 | G10: 0.01 | H10: 20
D11: 0.011 | E11: 19 | G11: 0.011 | H11: 19
D12: 0.012 | E12: 18 | G12: 0.012 | H12: 18
D13: 0.013 | E13: 17 | G13: 0.013 | H13: 17
D14: 0.014 | E14: 16 | G14: 0.014 | H14: 16
D15: 0.015 | E15: 15 | G15: 0.015 | H15: 15
D16: 0.016 | E16: 14 | G16: 0.016 | H16: 14
D17: 0.017 | E17: 13 | G17: 0.017 | H17: 13
D18: 0.018 | E18: 12 | G18: 0.018 | H18: 12
D19: 0.019 | E19: 11 | G19: 0.019 | H19: 11
D20: 0.02 | E20: 10 | G20: 0.02 | H20: 10
D21: 0.021 | E21: 9 | G21: 0.021 | H21: 9
D22: 0.022 | E22: 8 | G22: 0.022 | H22: 8
D23: 0.023 | E23: 7 | G23: 0.023 | H23: 7
D24: 0.024 | E24: 6 | G24: 0.024 | H24: 6
D25: 0.025 | E25: 5 | G25: 0.025 | H25: 5
D26: 0.026 | E26: 4 | G26: 0.026 | H26: 4
D27: 0.027 | E27: 3 | G27: 0.027 | H27: 3
D28: 0.028 | E28: 2 | G28: 0.028 | H28: 2
B29: Cumul total | C29: =SUM(C4:C28) -> 9 | F29: =SUM(F4:F28) -> 3
B30: 5 meilleurs scores | C30: =INDEX(C4:C28,MATCH(1,E4:E28,0))+INDEX(C4:C28,MATCH(2,E4:E28,0))+INDEX(C4:C28,MATCH(3,E4:E28,0))+INDEX(C4:C28,MATCH(4,E4:E28,0))+INDEX(C4:C28,MATCH(5,E4:E28,0)) -> 9 | F30: =INDEX(F4:F28,MATCH(1,H4:H28,0))+INDEX(F4:F28,MATCH(2,H4:H28,0))+INDEX(F4:F28,MATCH(3,H4:H28,0))+INDEX(F4:F28,MATCH(4,H4:H28,0))+INDEX(F4:F28,MATCH(5,H4:H28,0)) -> 3

Sheet BENCHECROUN_Danielle
A1: BENCHECROUN | B1: Danielle | F1: =HYPERLINK("#Adhérents!A1","Retour") -> Retour
A3: Date Sortie | B3: Parcours | C3: Net | D3: Net+ | E3: Rang Net | F3: Brut | G3: Brut+ | H3: Rang Brut
A4: 2018-10-05 | B4: Isle Adam | C4: 13 | D4: =C4+ROW(C4)/1000 -> 13.004 | E4: =RANK(D4,$D$4:$D$28) -> 2 | F4: 0 | G4: =F4+ROW(F4)/1000 -> 0.004 | H4: =RANK(G4,$G$4:$G$28) -> 25
A5: 2018-10-20 | B5: Cergy Vauréal | C5: 24 | D5: 24.005 | E5: =RANK(D5,$D$4:$D$28) -> 1 | F5: 1 | G5: 1.005 | H5: =RANK(G5,$G$4:$G$28) -> 1
D6: 0.006 | E6: 25 | G6: 0.006 | H6: =RANK(G6,$G$4:$G$28) -> 24
D7: 0.007 | E7: 24 | G7: 0.007 | H7: 23
D8: 0.008 | E8: 23 | G8: 0.008 | H8: 22
D9: 0.009 | E9: 22 | G9: 0.009 | H9: 21
D10: 0.01 | E10: 21 | G10: 0.01 | H10: 20
D11: 0.011 | E11: 20 | G11: 0.011 | H11: 19
D12: 0.012 | E12: 19 | G12: 0.012 | H12: 18
D13: 0.013 | E13: 18 | G13: 0.013 | H13: 17
D14: 0.014 | E14: 17 | G14: 0.014 | H14: 16
D15: 0.015 | E15: 16 | G15: 0.015 | H15: 15
D16: 0.016 | E16: 15 | G16: 0.016 | H16: 14
D17: 0.017 | E17: 14 | G17: 0.017 | H17: 13
D18: 0.018 | E18: 13 | G18: 0.018 | H18: 12
D19: 0.019 | E19: 12 | G19: 0.019 | H19: 11
D20: 0.02 | E20: 11 | G20: 0.02 | H20: 10
D21: 0.021 | E21: 10 | G21: 0.021 | H21: 9
D22: 0.022 | E22: 9 | G22: 0.022 | H22: 8
D23: 0.023 | E23: 8 | G23: 0.023 | H23: 7
D24: 0.024 | E24: 7 | G24: 0.024 | H24: 6
D25: 0.025 | E25: 6 | G25: 0.025 | H25: 5
D26: 0.026 | E26: 5 | G26: 0.026 | H26: 4
D27: 0.027 | E27: 4 | G27: 0.027 | H27: 3
D28: 0.028 | E28: 3 | G28: 0.028 | H28: 2
B29: Cumul total | C29: =SUM(C4:C28) -> 37 | F29: =SUM(F4:F28) -> 1
B30: 5 meilleurs scores | C30: =INDEX(C4:C28,MATCH(1,E4:E28,0))+INDEX(C4:C28,MATCH(2,E4:E28,0))+INDEX(C4:C28,MATCH(3,E4:E28,0))+INDEX(C4:C28,MATCH(4,E4:E28,0))+INDEX(C4:C28,MATCH(5,E4:E28,0)) -> 37 | F30: =INDEX(F4:F28,MATCH(1,H4:H28,0))+INDEX(F4:F28,MATCH(2,H4:H28,0))+INDEX(F4:F28,MATCH(3,H4:H28,0))+INDEX(F4:F28,MATCH(4,H4:H28,0))+INDEX(F4:F28,MATCH(5,H4:H28,0)) -> 1

Sheet BENCHECROUN_Nagib
A1: BENCHECROUN | B1: Nagib | F1: =HYPERLINK("#Adhérents!A1","Retour") -> Retour
A3: Date Sortie | B3: Parcours | C3: Net | D3: Net+ | E3: Rang Net | F3: Brut | G3: Brut+ | H3: Rang Brut
A4: 2018-10-05 | B4: Isle Adam | C4: 12 | D4: =C4+ROW(C4)/1000 -> 12.004 | E4: =RANK(D4,$D$4:$D$28) -> 2 | F4: 1 | G4: =F4+ROW(F4)/1000 -> 1.004 | H4: =RANK(G4,$G$4:$G$28) -> 1
A5: 2018-10-20 | B5: Cergy Vauréal | C5: 16 | D5: 16.005 | E5: =RANK(D5,$D$4:$D$28) -> 1 | F5: 0 | G5: 0.005 | H5: =RANK(G5,$G$4:$G$28) -> 25
D6: 0.006 | E6: 25 | G6: 0.006 | H6: =RANK(G6,$G$4:$G$28) -> 24
D7: 0.007 | E7: 24 | G7: 0.007 | H7: 23
D8: 0.008 | E8: 23 | G8: 0.008 | H8: 22
D9: 0.009 | E9: 22 | G9: 0.009 | H9: 21
D10: 0.01 | E10: 21 | G10: 0.01 | H10: 20
D11: 0.011 | E11: 20 | G11: 0.011 | H11: 19
D12: 0.012 | E12: 19 | G12: 0.012 | H12: 18
D13: 0.013 | E13: 18 | G13: 0.013 | H13: 17
D14: 0.014 | E14: 17 | G14: 0.014 | H14: 16
D15: 0.015 | E15: 16 | G15: 0.015 | H15: 15
D16: 0.016 | E16: 15 | G16: 0.016 | H16: 14
D17: 0.017 | E17: 14 | G17: 0.017 | H17: 13
D18: 0.018 | E18: 13 | G18: 0.018 | H18: 12
D19: 0.019 | E19: 12 | G19: 0.019 | H19: 11
D20: 0.02 | E20: 11 | G20: 0.02 | H20: 10
D21: 0.021 | E21: 10 | G21: 0.021 | H21: 9
D22: 0.022 | E22: 9 | G22: 0.022 | H22: 8
D23: 0.023 | E23: 8 | G23: 0.023 | H23: 7
D24: 0.024 | E24: 7 | G24: 0.024 | H24: 6
D25: 0.025 | E25: 6 | G25: 0.025 | H25: 5
D26: 0.026 | E26: 5 | G26: 0.026 | H26: 4
D27: 0.027 | E27: 4 | G27: 0.027 | H27: 3
D28: 0.028 | E28: 3 | G28: 0.028 | H28: 2
B29: Cumul total | C29: =SUM(C4:C28) -> 28 | F29: =SUM(F4:F28) -> 1
B30: 5 meilleurs scores | C30: =INDEX(C4:C28,MATCH(1,E4:E28,0))+INDEX(C4:C28,MATCH(2,E4:E28,0))+INDEX(C4:C28,MATCH(3,E4:E28,0))+INDEX(C4:C28,MATCH(4,E4:E28,0))+INDEX(C4:C28,MATCH(5,E4:E28,0)) -> 28 | F30: =INDEX(F4:F28,MATCH(1,H4:H28,0))+INDEX(F4:F28,MATCH(2,H4:H28,0))+INDEX(F4:F28,MATCH(3,H4:H28,0))+INDEX(F4:F28,MATCH(4,H4:H28,0))+INDEX(F4:F28,MATCH(5,H4:H28,0)) -> 1

Sheet BERNARD_Yvon
A1: BERNARD | B1: Yvon | F1: =HYPERLINK("#Adhérents!A1","Retour") -> Retour
A3: Date Sortie | B3: Parcours | C3: Net | D3: Net+ | E3: Rang Net | F3: Brut | G3: Brut+ | H3: Rang Brut
A4: 2019-01-12 | B4: CH Ableiges | C4: 35 | D4: =C4+ROW(C4)/1000 -> 35.004 | E4: =RANK(D4,$D$4:$D$28) -> 1 | F4: 10 | G4: =F4+ROW(F4)/1000 -> 10.004 | H4: =RANK(G4,$G$4:$G$28) -> 1
A5: 2018-12-13 | B5: Rueil virtuel | C5: 9 | D5: 9.005 | E5: =RANK(D5,$D$4:$D$28) -> 4 | F5: 3 | G5: 3.005 | H5: =RANK(G5,$G$4:$G$28) -> 4
A6: 2019-04-06 | B6: Disney | C6: 18 | D6: 18.006 | E6: 3 | F6: 6 | G6: 6.006 | H6: =RANK(G6,$G$4:$G$28) -> 3
A7: 2019-04-28 | B7: Marivaux | C7: 18 | D7: 18.007 | E7: 2 | F7: 9 | G7: 9.007 | H7: 2
D8: 0.008 | E8: 25 | G8: 0.008 | H8: 25
D9: 0.009 | E9: 24 | G9: 0.009 | H9: 24
D10: 0.01 | E10: 23 | G10: 0.01 | H10: 23
D11: 0.011 | E11: 22 | G11: 0.011 | H11: 22
D12: 0.012 | E12: 21 | G12: 0.012 | H12: 21
D13: 0.013 | E13: 20 | G13: 0.013 | H13: 20
D14: 0.014 | E14: 19 | G14: 0.014 | H14: 19
D15: 0.015 | E15: 18 | G15: 0.015 | H15: 18
D16: 0.016 | E16: 17 | G16: 0.016 | H16: 17
D17: 0.017 | E17: 16 | G17: 0.017 | H17: 16
D18: 0.018 | E18: 15 | G18: 0.018 | H18: 15
D19: 0.019 | E19: 14 | G19: 0.019 | H19: 14
D20: 0.02 | E20: 13 | G20: 0.02 | H20: 13
D21: 0.021 | E21: 12 | G21: 0.021 | H21: 12
D22: 0.022 | E22: 11 | G22: 0.022 | H22: 11
D23: 0.023 | E23: 10 | G23: 0.023 | H23: 10
D24: 0.024 | E24: 9 | G24: 0.024 | H24: 9
D25: 0.025 | E25: 8 | G25: 0.025 | H25: 8
D26: 0.026 | E26: 7 | G26: 0.026 | H26: 7
D27: 0.027 | E27: 6 | G27: 0.027 | H27: 6
D28: 0.028 | E28: 5 | G28: 0.028 | H28: 5
B29: Cumul total | C29: =SUM(C4:C28) -> 80 | F29: =SUM(F4:F28) -> 28
B30: 5 meilleurs scores | C30: =INDEX(C4:C28,MATCH(1,E4:E28,0))+INDEX(C4:C28,MATCH(2,E4:E28,0))+INDEX(C4:C28,MATCH(3,E4:E28,0))+INDEX(C4:C28,MATCH(4,E4:E28,0))+INDEX(C4:C28,MATCH(5,E4:E28,0)) -> 80 | F30: =INDEX(F4:F28,MATCH(1,H4:H28,0))+INDEX(F4:F28,MATCH(2,H4:H28,0))+INDEX(F4:F28,MATCH(3,H4:H28,0))+INDEX(F4:F28,MATCH(4,H4:H28,0))+INDEX(F4:F28,MATCH(5,H4:H28,0)) -> 28

Sheet BOISSERPE_Patrick
A1: BOISSERPE | B1: Patrick | F1: =HYPERLINK("#Adhérents!A1","Retour") -> Retour
A3: Date Sortie | B3: Parcours | C3: Net | D3: Net+ | E3: Rang Net | F3: Brut | G3: Brut+ | H3: Rang Brut
A4: 2018-09-21 | B4: Les Aisses | C4: 16 | D4: =C4+ROW(C4)/1000 -> 16.004 | E4: =RANK(D4,$D$4:$D$28) -> 11 | F4: 1 | G4: =F4+ROW(F4)/1000 -> 1.004 | H4: =RANK(G4,$G$4:$G$28) -> 12
A5: 2018-09-22 | B5: Sologne | C5: 18 | D5: 18.005 | E5: =RANK(D5,$D$4:$D$28) -> 10 | F5: 6 | G5: 6.005 | H5: =RANK(G5,$G$4:$G$28) -> 4
A6: 2018-10-05 | B6: Isle Adam | C6: 29 | D6: 29.006 | E6: 2 | F6: 3 | G6: 3.006 | H6: =RANK(G6,$G$4:$G$28) -> 9
A7: 2018-10-16 | B7: Saint Nom La Breteche | C7: 18 | D7: 18.007 | E7: 9 | F7: 6 | G7: 6.007 | H7: 3
A8: 2019-02-06 | B8: CH Yvelines | C8: 23 | D8: 23.008 | E8: 5 | F8: 1 | G8: 1.008 | H8: 11
A9: 2019-03-10 | B9: National - Aigle | C9: 18 | D9: 18.009 | E9: 8 | F9: 6 | G9: 6.009 | H9: 2
A10: 2018-12-13 | B10: Rueil virtuel | C10: 9 | D10: 9.01 | E10: 12 | F10: 3 | G10: 3.01 | H10: 8
A11: 2019-04-18 | B11: Rueil virtuel | D11: 0.011 | E11: 25 | G11: 0.011 | H11: 25
A12: 2019-05-24 | B12: Haut Poitou | C12: 18 | D12: 18.012 | E12: 7 | F12: 6 | G12: 6.012 | H12: 1
A13: 2019-05-25 | B13: Mignaloux | C13: 28 | D13: 28.013 | E13: 4 | F13: 3 | G13: 3.013 | H13: 7
A14: 2019-06-07 | B14: Isle Adam | C14: 30 | D14: =C14+ROW(C14)/1000 -> 30.014 | E14: 1 | F14: 3 | G14: 3.014 | H14: 6
A15: 2019-06-22 | B15: Golf Parc Hersant | C15: 22 | D15: 22.015 | E15: 6 | F15: 3 | G15: 3.015 | H15: 5
A16: 2019-06-28 | B16: Vaucouleurs Rivière | C16: 28 | D16: 28.016 | E16: 3 | F16: 2 | G16: 2.016 | H16: 10
D17: 0.017 | E17: 24 | G17: 0.017 | H17: 24
D18: =C18+ROW(C18)/1000 -> 0.018 | E18: 23 | G18: 0.018 | H18: 23
D19: 0.019 | E19: 22 | G19: 0.019 | H19: 22
D20: 0.02 | E20: 21 | G20: 0.02 | H20: 21
D21: 0.021 | E21: 20 | G21: 0.021 | H21: 20
D22: 0.022 | E22: 19 | G22: 0.022 | H22: 19
D23: 0.023 | E23: 18 | G23: 0.023 | H23: 18
D24: 0.024 | E24: 17 | G24: 0.024 | H24: 17
D25: 0.025 | E25: 16 | G25: 0.025 | H25: 16
D26: 0.026 | E26: 15 | G26: 0.026 | H26: 15
D27: 0.027 | E27: 14 | G27: 0.027 | H27: 14
D28: 0.028 | E28: 13 | G28: 0.028 | H28: 13
B29: Cumul total | C29: =SUM(C4:C28) -> 257 | F29: =SUM(F4:F28) -> 43
B30: 5 meilleurs scores | C30: =INDEX(C4:C28,MATCH(1,E4:E28,0))+INDEX(C4:C28,MATCH(2,E4:E28,0))+INDEX(C4:C28,MATCH(3,E4:E28,0))+INDEX(C4:C28,MATCH(4,E4:E28,0))+INDEX(C4:C28,MATCH(5,E4:E28,0)) -> 138 | F30: =INDEX(F4:F28,MATCH(1,H4:H28,0))+INDEX(F4:F28,MATCH(2,H4:H28,0))+INDEX(F4:F28,MATCH(3,H4:H28,0))+INDEX(F4:F28,MATCH(4,H4:H28,0))+INDEX(F4:F28,MATCH(5,H4:H28,0)) -> 27

Sheet BORDET_Bruno
A1: BORDET | B1: Bruno | F1: =HYPERLINK("#Adhérents!A1","Retour") -> Retour
A3: Date Sortie | B3: Parcours | C3: Net | D3: Net+ | E3: Rang Net | F3: Brut | G3: Brut+ | H3: Rang Brut
A4: 2018-09-09 | B4: Feucherolles | C4: 31 | D4: =C4+ROW(C4)/1000 -> 31.004 | E4: =RANK(D4,$D$4:$D$28) -> 3 | F4: 6 | G4: =F4+ROW(F4)/1000 -> 6.004 | H4: =RANK(G4,$G$4:$G$28) -> 7
A5: 2018-11-10 | B5: Fourqueux | C5: 24 | D5: 24.005 | E5: =RANK(D5,$D$4:$D$28) -> 7 | F5: 5 | G5: 5.005 | H5: =RANK(G5,$G$4:$G$28) -> 9
A6: 2018-11-24 | B6: CH Hersant | C6: 18 | D6: 18.006 | E6: 10 | F6: 6 | G6: 6.006 | H6: =RANK(G6,$G$4:$G$28) -> 6
A7: 2018-11-29 | B7: CH Marivaux | C7: 24 | D7: 24.007 | E7: 6 | F7: 4 | G7: 4.007 | H7: 10
A8: 2019-02-06 | B8: CH Yvelines | C8: 36 | D8: 36.008 | E8: 2 | F8: 9 | G8: 9.008 | H8: 3
A9: 2019-02-10 | B9: Aigle | C9: 18 | D9: 18.009 | E9: 9 | F9: 6 | G9: 6.009 | H9: 5
A10: 2019-02-20 | B10: CH Marivaux | C10: 44 | D10: 44.01 | E10: 1 | F10: 14 | G10: 14.01 | H10: 1
A11: 2019-03-16 | B11: CH Hersant | C11: 26 | D11: 26.011 | E11: 5 | F11: 5 | G11: 5.011 | H11: 8
A12: 2019-04-18 | B12: Rueil virtuel | C12: 9 | D12: 9.012 | E12: 11 | F12: 3 | G12: 3.012 | H12: 11
A13: 2019-04-28 | B13: Marivaux | C13: 29 | D13: 29.013 | E13: 4 | F13: 10 | G13: 10.013 | H13: 2
A14: 2019-06-28 | B14: Vaucouleurs Rivière | C14: 23 | D14: =C14+ROW(C14)/1000 -> 23.014 | E14: 8 | F14: 6 | G14: 6.014 | H14: 4
D15: 0.015 | E15: 25 | G15: 0.015 | H15: 25
D16: 0.016 | E16: 24 | G16: 0.016 | H16: 24
D17: 0.017 | E17: 23 | G17: 0.017 | H17: 23
D18: =C18+ROW(C18)/1000 -> 0.018 | E18: 22 | G18: 0.018 | H18: 22
D19: 0.019 | E19: 21 | G19: 0.019 | H19: 21
D20: 0.02 | E20: 20 | G20: 0.02 | H20: 20
D21: 0.021 | E21: 19 | G21: 0.021 | H21: 19
D22: 0.022 | E22: 18 | G22: 0.022 | H22: 18
D23: 0.023 | E23: 17 | G23: 0.023 | H23: 17
D24: 0.024 | E24: 16 | G24: 0.024 | H24: 16
D25: 0.025 | E25: 15 | G25: 0.025 | H25: 15
D26: 0.026 | E26: 14 | G26: 0.026 | H26: 14
D27: 0.027 | E27: 13 | G27: 0.027 | H27: 13
D28: 0.028 | E28: 12 | G28: 0.028 | H28: 12
B29: Cumul total | C29: =SUM(C4:C28) -> 282 | F29: =SUM(F4:F28) -> 74
B30: 5 meilleurs scores | C30: =INDEX(C4:C28,MATCH(1,E4:E28,0))+INDEX(C4:C28,MATCH(2,E4:E28,0))+INDEX(C4:C28,MATCH(3,E4:E28,0))+INDEX(C4:C28,MATCH(4,E4:E28,0))+INDEX(C4:C28,MATCH(5,E4:E28,0)) -> 166 | F30: =INDEX(F4:F28,MATCH(1,H4:H28,0))+INDEX(F4:F28,MATCH(2,H4:H28,0))+INDEX(F4:F28,MATCH(3,H4:H28,0))+INDEX(F4:F28,MATCH(4,H4:H28,0))+INDEX(F4:F28,MATCH(5,H4:H28,0)) -> 45

Sheet BORDET_Dominique
A1: BORDET | B1: Dominique | D1: =HYPERLINK("#Adhérents!A1","Retour") -> Retour
A3: Date Sortie | B3: Parcours | C3: Net | D3: Brut | E3: Net+ | F3: Brut+ | G3: Rang Net | H3: Rang Brut
A4: 2019-06-28 | B4: Vaucouleurs Rivière | C4: 24 | D4: 4 | E4: =C4-ROW(C4)/1000 -> 23.996 | F4: =D4-ROW(D4)/1000 -> 3.996 | G4: =RANK(E4,$E$4:$E$28) -> 1 | H4: =RANK(F4,$F$4:$F$28) -> 1
E5: =C5-ROW(C5)/1000 -> -0.005 | F5: -0.005 | G5: 2 | H5: =RANK(F5,$F$4:$F$28) -> 2
E6: -0.006 | F6: -0.006 | G6: 3 | H6: =RANK(F6,$F$4:$F$28) -> 3
E7: -0.007 | F7: -0.007 | G7: 4 | H7: 4
E8: -0.008 | F8: -0.008 | G8: 5 | H8: 5
E9: -0.009 | F9: -0.009 | G9: 6 | H9: 6
E10: -0.01 | F10: -0.01 | G10: 7 | H10: 7
E11: -0.011 | F11: -0.011 | G11: 8 | H11: 8
E12: -0.012 | F12: -0.012 | G12: 9 | H12: 9
E13: -0.013 | F13: -0.013 | G13: 10 | H13: 10
E14: -0.014 | F14: -0.014 | G14: 11 | H14: 11
E15: -0.015 | F15: -0.015 | G15: 12 | H15: 12
E16: -0.016 | F16: -0.016 | G16: 13 | H16: 13
E17: -0.017 | F17: -0.017 | G17: 14 | H17: 14
E18: -0.018 | F18: -0.018 | G18: 15 | H18: 15
E19: -0.019 | F19: -0.019 | G19: 16 | H19: 16
E20: -0.02 | F20: -0.02 | G20: 17 | H20: 17
E21: -0.021 | F21: -0.021 | G21: 18 | H21: 18
E22: -0.022 | F22: -0.022 | G22: 19 | H22: 19
E23: -0.023 | F23: -0.023 | G23: 20 | H23: 20
E24: -0.024 | F24: -0.024 | G24: 21 | H24: 21
E25: -0.025 | F25: -0.025 | G25: 22 | H25: 22
E26: -0.026 | F26: -0.026 | G26: 23 | H26: 23
E27: -0.027 | F27: -0.027 | G27: 24 | H27: 24
E28: -0.028 | F28: -0.028 | G28: 25 | H28: 25
B29: Cumul total | C29: =SUM(C4:C28) -> 24 | D29: =SUM(D4:D28) -> 4
B30: 5 meilleurs scores | C30: =INDEX(C4:C28,MATCH(1,G4:G28,0))+INDEX(C4:C28,MATCH(2,G4:G28,0))+INDEX(C4:C28,MATCH(3,G4:G28,0))+INDEX(C4:C28,MATCH(4,G4:G28,0))+INDEX(C4:C28,MATCH(5,G4:G28,0)) -> 24 | D30: =INDEX(D4:D28,MATCH(1,H4:H28,0))+INDEX(D4:D28,MATCH(2,H4:H28,0))+INDEX(D4:D28,MATCH(3,H4:H28,0))+INDEX(D4:D28,MATCH(4,H4:H28,0))+INDEX(D4:D28,MATCH(5,H4:H28,0)) -> 4

Sheet BRUNEAU_Thomas
A1: BRUNEAU | B1: Thomas | F1: =HYPERLINK("#Adhérents!A1","Retour") -> Retour
A3: Date Sortie | B3: Parcours | C3: Net | D3: Net+ | E3: Rang Net | F3: Brut | G3: Brut+ | H3: Rang Brut
A4: 2018-10-02 | B4: Rueil | C4: 9 | D4: =C4+ROW(C4)/1000 -> 9.004 | E4: =RANK(D4,$D$4:$D$28) -> 1 | F4: 3 | G4: =F4+ROW(F4)/1000 -> 3.004 | H4: =RANK(G4,$G$4:$G$28) -> 1
D5: 0.005 | E5: =RANK(D5,$D$4:$D$28) -> 25 | G5: 0.005 | H5: =RANK(G5,$G$4:$G$28) -> 25
D6: 0.006 | E6: 24 | G6: 0.006 | H6: =RANK(G6,$G$4:$G$28) -> 24
D7: 0.007 | E7: 23 | G7: 0.007 | H7: 23
D8: 0.008 | E8: 22 | G8: 0.008 | H8: 22
D9: 0.009 | E9: 21 | G9: 0.009 | H9: 21
D10: 0.01 | E10: 20 | G10: 0.01 | H10: 20
D11: 0.011 | E11: 19 | G11: 0.011 | H11: 19
D12: 0.012 | E12: 18 | G12: 0.012 | H12: 18
D13: 0.013 | E13: 17 | G13: 0.013 | H13: 17
D14: 0.014 | E14: 16 | G14: 0.014 | H14: 16
D15: 0.015 | E15: 15 | G15: 0.015 | H15: 15
D16: 0.016 | E16: 14 | G16: 0.016 | H16: 14
D17: 0.017 | E17: 13 | G17: 0.017 | H17: 13
D18: 0.018 | E18: 12 | G18: 0.018 | H18: 12
D19: 0.019 | E19: 11 | G19: 0.019 | H19: 11
D20: 0.02 | E20: 10 | G20: 0.02 | H20: 10
D21: 0.021 | E21: 9 | G21: 0.021 | H21: 9
D22: 0.022 | E22: 8 | G22: 0.022 | H22: 8
D23: 0.023 | E23: 7 | G23: 0.023 | H23: 7
D24: 0.024 | E24: 6 | G24: 0.024 | H24: 6
D25: 0.025 | E25: 5 | G25: 0.025 | H25: 5
D26: 0.026 | E26: 4 | G26: 0.026 | H26: 4
D27: 0.027 | E27: 3 | G27: 0.027 | H27: 3
D28: 0.028 | E28: 2 | G28: 0.028 | H28: 2
B29: Cumul total | C29: =SUM(C4:C28) -> 9 | F29: =SUM(F4:F28) -> 3
B30: 5 meilleurs scores | C30: =INDEX(C4:C28,MATCH(1,E4:E28,0))+INDEX(C4:C28,MATCH(2,E4:E28,0))+INDEX(C4:C28,MATCH(3,E4:E28,0))+INDEX(C4:C28,MATCH(4,E4:E28,0))+INDEX(C4:C28,MATCH(5,E4:E28,0)) -> 9 | F30: =INDEX(F4:F28,MATCH(1,H4:H28,0))+INDEX(F4:F28,MATCH(2,H4:H28,0))+INDEX(F4:F28,MATCH(3,H4:H28,0))+INDEX(F4:F28,MATCH(4,H4:H28,0))+INDEX(F4:F28,MATCH(5,H4:H28,0)) -> 3

Sheet BOUTEAUX_Anne-Marie
A1: PICARD | B1: Anne-Marie | F1: =HYPERLINK("#Adhérents!A1","Retour") -> Retour
A3: Date Sortie | B3: Parcours | C3: Net | D3: Net+ | E3: Rang Net | F3: Brut | G3: Brut+ | H3: Rang Brut
A4: 2018-10-20 | B4: Cergy Vauréal | C4: 16 | D4: =C4+ROW(C4)/1000 -> 16.004 | E4: =RANK(D4,$D$4:$D$28) -> 2 | F4: 0 | G4: =F4+ROW(F4)/1000 -> 0.004 | H4: =RANK(G4,$G$4:$G$28) -> 25
A5: 2018-11-10 | B5: Fourqueux | C5: 10 | D5: 10.005 | E5: =RANK(D5,$D$4:$D$28) -> 3 | F5: 3 | G5: 3.005 | H5: =RANK(G5,$G$4:$G$28) -> 4
A6: 2018-12-13 | B6: Rueil virtuel | C6: 9 | D6: 9.006 | E6: 5 | F6: 3 | G6: 3.006 | H6: =RANK(G6,$G$4:$G$28) -> 3
A7: 2019-04-18 | B7: Rueil virtuel | C7: 9 | D7: 9.007 | E7: 4 | F7: 3 | G7: 3.007 | H7: 2
A8: 2019-06-22 | B8: Golf Parc Hersant | C8: 30 | D8: 30.008 | E8: 1 | F8: 5 | G8: 5.008 | H8: 1
D9: 0.009 | E9: 25 | G9: 0.009 | H9: 24
D10: 0.01 | E10: 24 | G10: 0.01 | H10: 23
D11: 0.011 | E11: 23 | G11: 0.011 | H11: 22
D12: 0.012 | E12: 22 | G12: 0.012 | H12: 21
D13: 0.013 | E13: 21 | G13: 0.013 | H13: 20
D14: =C14+ROW(C14)/1000 -> 0.014 | E14: 20 | G14: 0.014 | H14: 19
D15: 0.015 | E15: 19 | G15: 0.015 | H15: 18
D16: 0.016 | E16: 18 | G16: 0.016 | H16: 17
D17: 0.017 | E17: 17 | G17: 0.017 | H17: 16
D18: =C18+ROW(C18)/1000 -> 0.018 | E18: 16 | G18: 0.018 | H18: 15
D19: 0.019 | E19: 15 | G19: 0.019 | H19: 14
D20: 0.02 | E20: 14 | G20: 0.02 | H20: 13
D21: 0.021 | E21: 13 | G21: 0.021 | H21: 12
D22: 0.022 | E22: 12 | G22: 0.022 | H22: 11
D23: 0.023 | E23: 11 | G23: 0.023 | H23: 10
D24: 0.024 | E24: 10 | G24: 0.024 | H24: 9
D25: 0.025 | E25: 9 | G25: 0.025 | H25: 8
D26: 0.026 | E26: 8 | G26: 0.026 | H26: 7
D27: 0.027 | E27: 7 | G27: 0.027 | H27: 6
D28: 0.028 | E28: 6 | G28: 0.028 | H28: 5
B29: Cumul total | C29: =SUM(C4:C28) -> 74 | F29: =SUM(F4:F28) -> 14
B30: 5 meilleurs scores | C30: =INDEX(C4:C28,MATCH(1,E4:E28,0))+INDEX(C4:C28,MATCH(2,E4:E28,0))+INDEX(C4:C28,MATCH(3,E4:E28,0))+INDEX(C4:C28,MATCH(4,E4:E28,0))+INDEX(C4:C28,MATCH(5,E4:E28,0)) -> 74 | F30: =INDEX(F4:F28,MATCH(1,H4:H28,0))+INDEX(F4:F28,MATCH(2,H4:H28,0))+INDEX(F4:F28,MATCH(3,H4:H28,0))+INDEX(F4:F28,MATCH(4,H4:H28,0))+INDEX(F4:F28,MATCH(5,H4:H28,0)) -> 14

Sheet CHEREL_Louis
A1: CHEREL | B1: Louis | F1: =HYPERLINK("#Adhérents!A1","Retour") -> Retour
A3: Date Sortie | B3: Parcours | C3: Net | D3: Net+ | E3: Rang Net | F3: Brut | G3: Brut+ | H3: Rang Brut
A4: 2018-09-09 | B4: Feucherolles | C4: 31 | D4: =C4+ROW(C4)/1000 -> 31.004 | E4: =RANK(D4,$D$4:$D$28) -> 1 | F4: 3 | G4: =F4+ROW(F4)/1000 -> 3.004 | H4: =RANK(G4,$G$4:$G$28) -> 7
A5: 2018-11-10 | B5: Fourqueux | C5: 15 | D5: 15.005 | E5: =RANK(D5,$D$4:$D$28) -> 5 | F5: 1 | G5: 1.005 | H5: =RANK(G5,$G$4:$G$28) -> 8
A6: 2019-02-10 | B6: Aigle | C6: 18 | D6: 18.006 | E6: 4 | F6: 6 | G6: 6.006 | H6: =RANK(G6,$G$4:$G$28) -> 3
A7: 2018-12-13 | B7: Rueil virtuel | C7: 9 | D7: 9.007 | E7: 8 | F7: 3 | G7: 3.007 | H7: 6
A8: 2019-03-23 | B8: Tremblay sur Mauldre | C8: 18 | D8: 18.008 | E8: 3 | F8: 6 | G8: 6.008 | H8: 2
A9: 2019-04-06 | B9: Disney | C9: 18 | D9: 18.009 | E9: 2 | F9: 6 | G9: 6.009 | H9: 1
A10: 2019-04-18 | B10: Rueil virtuel | C10: 9 | D10: 9.01 | E10: 7 | F10: 3 | G10: 3.01 | H10: 5
A11: 2019-05-23 | B11: Rueil | C11: 9 | D11: 9.011 | E11: 6 | F11: 3 | G11: 3.011 | H11: 4
D12: 0.012 | E12: 25 | G12: 0.012 | H12: 25
D13: 0.013 | E13: 24 | G13: 0.013 | H13: 24
D14: =C14+ROW(C14)/1000 -> 0.014 | E14: 23 | G14: 0.014 | H14: 23
D15: 0.015 | E15: 22 | G15: 0.015 | H15: 22
D16: 0.016 | E16: 21 | G16: 0.016 | H16: 21
D17: 0.017 | E17: 20 | G17: 0.017 | H17: 20
D18: =C18+ROW(C18)/1000 -> 0.018 | E18: 19 | G18: 0.018 | H18: 19
D19: 0.019 | E19: 18 | G19: 0.019 | H19: 18
D20: 0.02 | E20: 17 | G20: 0.02 | H20: 17
D21: 0.021 | E21: 16 | G21: 0.021 | H21: 16
D22: 0.022 | E22: 15 | G22: 0.022 | H22: 15
D23: 0.023 | E23: 14 | G23: 0.023 | H23: 14
D24: 0.024 | E24: 13 | G24: 0.024 | H24: 13
D25: 0.025 | E25: 12 | G25: 0.025 | H25: 12
D26: 0.026 | E26: 11 | G26: 0.026 | H26: 11
D27: 0.027 | E27: 10 | G27: 0.027 | H27: 10
D28: 0.028 | E28: 9 | G28: 0.028 | H28: 9
B29: Cumul total | C29: =SUM(C4:C28) -> 127 | F29: =SUM(F4:F28) -> 31
B30: 5 meilleurs scores | C30: =INDEX(C4:C28,MATCH(1,E4:E28,0))+INDEX(C4:C28,MATCH(2,E4:E28,0))+INDEX(C4:C28,MATCH(3,E4:E28,0))+INDEX(C4:C28,MATCH(4,E4:E28,0))+INDEX(C4:C28,MATCH(5,E4:E28,0)) -> 100 | F30: =INDEX(F4:F28,MATCH(1,H4:H28,0))+INDEX(F4:F28,MATCH(2,H4:H28,0))+INDEX(F4:F28,MATCH(3,H4:H28,0))+INDEX(F4:F28,MATCH(4,H4:H28,0))+INDEX(F4:F28,MATCH(5,H4:H28,0)) -> 24

Sheet CRESTOIS_Christine
A1: CRESTOIS | B1: Christine | F1: =HYPERLINK("#Adhérents!A1","Retour") -> Retour
A3: Date Sortie | B3: Parcours | C3: Net | D3: Net+ | E3: Rang Net | F3: Brut | G3: Brut+ | H3: Rang Brut
A4: 2018-12-13 | B4: Rueil virtuel | C4: 9 | D4: =C4+ROW(C4)/1000 -> 9.004 | E4: =RANK(D4,$D$4:$D$28) -> 1 | F4: 3 | G4: =F4+ROW(F4)/1000 -> 3.004 | H4: =RANK(G4,$G$4:$G$28) -> 1
D5: 0.005 | E5: =RANK(D5,$D$4:$D$28) -> 25 | G5: 0.005 | H5: =RANK(G5,$G$4:$G$28) -> 25
D6: 0.006 | E6: 24 | G6: 0.006 | H6: =RANK(G6,$G$4:$G$28) -> 24
D7: 0.007 | E7: 23 | G7: 0.007 | H7: 23
D8: 0.008 | E8: 22 | G8: 0.008 | H8: 22
D9: 0.009 | E9: 21 | G9: 0.009 | H9: 21
D10: 0.01 | E10: 20 | G10: 0.01 | H10: 20
D11: 0.011 | E11: 19 | G11: 0.011 | H11: 19
D12: 0.012 | E12: 18 | G12: 0.012 | H12: 18
D13: 0.013 | E13: 17 | G13: 0.013 | H13: 17
D14: 0.014 | E14: 16 | G14: 0.014 | H14: 16
D15: 0.015 | E15: 15 | G15: 0.015 | H15: 15
D16: 0.016 | E16: 14 | G16: 0.016 | H16: 14
D17: 0.017 | E17: 13 | G17: 0.017 | H17: 13
D18: 0.018 | E18: 12 | G18: 0.018 | H18: 12
D19: 0.019 | E19: 11 | G19: 0.019 | H19: 11
D20: 0.02 | E20: 10 | G20: 0.02 | H20: 10
D21: 0.021 | E21: 9 | G21: 0.021 | H21: 9
D22: 0.022 | E22: 8 | G22: 0.022 | H22: 8
D23: 0.023 | E23: 7 | G23: 0.023 | H23: 7
D24: 0.024 | E24: 6 | G24: 0.024 | H24: 6
D25: 0.025 | E25: 5 | G25: 0.025 | H25: 5
D26: 0.026 | E26: 4 | G26: 0.026 | H26: 4
D27: 0.027 | E27: 3 | G27: 0.027 | H27: 3
D28: 0.028 | E28: 2 | G28: 0.028 | H28: 2
B29: Cumul total | C29: =SUM(C4:C28) -> 9 | F29: =SUM(F4:F28) -> 3
B30: 5 meilleurs scores | C30: =INDEX(C4:C28,MATCH(1,E4:E28,0))+INDEX(C4:C28,MATCH(2,E4:E28,0))+INDEX(C4:C28,MATCH(3,E4:E28,0))+INDEX(C4:C28,MATCH(4,E4:E28,0))+INDEX(C4:C28,MATCH(5,E4:E28,0)) -> 9 | F30: =INDEX(F4:F28,MATCH(1,H4:H28,0))+INDEX(F4:F28,MATCH(2,H4:H28,0))+INDEX(F4:F28,MATCH(3,H4:H28,0))+INDEX(F4:F28,MATCH(4,H4:H28,0))+INDEX(F4:F28,MATCH(5,H4:H28,0)) -> 3

Sheet CRESTOIS_Laurent
A1: CRESTOIS | B1: Laurent | F1: =HYPERLINK("#Adhérents!A1","Retour") -> Retour
A3: Date Sortie | B3: Parcours | C3: Net | D3: Net+ | E3: Rang Net | F3: Brut | G3: Brut+ | H3: Rang Brut
A4: 2018-12-13 | B4: Rueil virtuel | C4: 9 | D4: =C4+ROW(C4)/1000 -> 9.004 | E4: =RANK(D4,$D$4:$D$28) -> 1 | F4: 3 | G4: =F4+ROW(F4)/1000 -> 3.004 | H4: =RANK(G4,$G$4:$G$28) -> 1
D5: 0.005 | E5: =RANK(D5,$D$4:$D$28) -> 25 | G5: 0.005 | H5: =RANK(G5,$G$4:$G$28) -> 25
D6: 0.006 | E6: 24 | G6: 0.006 | H6: =RANK(G6,$G$4:$G$28) -> 24
D7: 0.007 | E7: 23 | G7: 0.007 | H7: 23
D8: 0.008 | E8: 22 | G8: 0.008 | H8: 22
D9: 0.009 | E9: 21 | G9: 0.009 | H9: 21
D10: 0.01 | E10: 20 | G10: 0.01 | H10: 20
D11: 0.011 | E11: 19 | G11: 0.011 | H11: 19
D12: 0.012 | E12: 18 | G12: 0.012 | H12: 18
D13: 0.013 | E13: 17 | G13: 0.013 | H13: 17
D14: 0.014 | E14: 16 | G14: 0.014 | H14: 16
D15: 0.015 | E15: 15 | G15: 0.015 | H15: 15
D16: 0.016 | E16: 14 | G16: 0.016 | H16: 14
D17: 0.017 | E17: 13 | G17: 0.017 | H17: 13
D18: 0.018 | E18: 12 | G18: 0.018 | H18: 12
D19: 0.019 | E19: 11 | G19: 0.019 | H19: 11
D20: 0.02 | E20: 10 | G20: 0.02 | H20: 10
D21: 0.021 | E21: 9 | G21: 0.021 | H21: 9
D22: 0.022 | E22: 8 | G22: 0.022 | H22: 8
D23: 0.023 | E23: 7 | G23: 0.023 | H23: 7
D24: 0.024 | E24: 6 | G24: 0.024 | H24: 6
D25: 0.025 | E25: 5 | G25: 0.025 | H25: 5
D26: 0.026 | E26: 4 | G26: 0.026 | H26: 4
D27: 0.027 | E27: 3 | G27: 0.027 | H27: 3
D28: 0.028 | E28: 2 | G28: 0.028 | H28: 2
B29: Cumul total | C29: =SUM(C4:C28) -> 9 | F29: =SUM(F4:F28) -> 3
B30: 5 meilleurs scores | C30: =INDEX(C4:C28,MATCH(1,E4:E28,0))+INDEX(C4:C28,MATCH(2,E4:E28,0))+INDEX(C4:C28,MATCH(3,E4:E28,0))+INDEX(C4:C28,MATCH(4,E4:E28,0))+INDEX(C4:C28,MATCH(5,E4:E28,0)) -> 9 | F30: =INDEX(F4:F28,MATCH(1,H4:H28,0))+INDEX(F4:F28,MATCH(2,H4:H28,0))+INDEX(F4:F28,MATCH(3,H4:H28,0))+INDEX(F4:F28,MATCH(4,H4:H28,0))+INDEX(F4:F28,MATCH(5,H4:H28,0)) -> 3

Sheet DELDIQUE_Denise
A1: DELDIQUE | B1: Denise | F1: =HYPERLINK("#Adhérents!A1","Retour") -> Retour
A3: Date Sortie | B3: Parcours | C3: Net | D3: Net+ | E3: Rang Net | F3: Brut | G3: Brut+ | H3: Rang Brut
A4: 2019-04-09 | B4: Rueil | C4: 9 | D4: =C4+ROW(C4)/1000 -> 9.004 | E4: =RANK(D4,$D$4:$D$28) -> 3 | F4: 3 | G4: =F4+ROW(F4)/1000 -> 3.004 | H4: =RANK(G4,$G$4:$G$28) -> 3
A5: 2019-05-07 | B5: Rueil | C5: 9 | D5: 9.005 | E5: =RANK(D5,$D$4:$D$28) -> 2 | F5: 3 | G5: 3.005 | H5: =RANK(G5,$G$4:$G$28) -> 2
A6: 2019-06-20 | B6: Rueil | C6: 9 | D6: 9.006 | E6: 1 | F6: 3 | G6: 3.006 | H6: =RANK(G6,$G$4:$G$28) -> 1
D7: 0.007 | E7: 25 | G7: 0.007 | H7: 25
D8: 0.008 | E8: 24 | G8: 0.008 | H8: 24
D9: 0.009 | E9: 23 | G9: 0.009 | H9: 23
D10: 0.01 | E10: 22 | G10: 0.01 | H10: 22
D11: 0.011 | E11: 21 | G11: 0.011 | H11: 21
D12: 0.012 | E12: 20 | G12: 0.012 | H12: 20
D13: 0.013 | E13: 19 | G13: 0.013 | H13: 19
D14: 0.014 | E14: 18 | G14: 0.014 | H14: 18
D15: 0.015 | E15: 17 | G15: 0.015 | H15: 17
D16: 0.016 | E16: 16 | G16: 0.016 | H16: 16
D17: 0.017 | E17: 15 | G17: 0.017 | H17: 15
D18: 0.018 | E18: 14 | G18: 0.018 | H18: 14
D19: 0.019 | E19: 13 | G19: 0.019 | H19: 13
D20: 0.02 | E20: 12 | G20: 0.02 | H20: 12
D21: 0.021 | E21: 11 | G21: 0.021 | H21: 11
D22: 0.022 | E22: 10 | G22: 0.022 | H22: 10
D23: 0.023 | E23: 9 | G23: 0.023 | H23: 9
D24: 0.024 | E24: 8 | G24: 0.024 | H24: 8
D25: 0.025 | E25: 7 | G25: 0.025 | H25: 7
D26: 0.026 | E26: 6 | G26: 0.026 | H26: 6
D27: 0.027 | E27: 5 | G27: 0.027 | H27: 5
D28: 0.028 | E28: 4 | G28: 0.028 | H28: 4
B29: Cumul total | C29: =SUM(C4:C28) -> 27 | F29: =SUM(F4:F28) -> 9
B30: 5 meilleurs scores | C30: =INDEX(C4:C28,MATCH(1,E4:E28,0))+INDEX(C4:C28,MATCH(2,E4:E28,0))+INDEX(C4:C28,MATCH(3,E4:E28,0))+INDEX(C4:C28,MATCH(4,E4:E28,0))+INDEX(C4:C28,MATCH(5,E4:E28,0)) -> 27 | F30: =INDEX(F4:F28,MATCH(1,H4:H28,0))+INDEX(F4:F28,MATCH(2,H4:H28,0))+INDEX(F4:F28,MATCH(3,H4:H28,0))+INDEX(F4:F28,MATCH(4,H4:H28,0))+INDEX(F4:F28,MATCH(5,H4:H28,0)) -> 9

Sheet COULOMB_Thierry
A1: COULOMB | B1: Thierry | F1: =HYPERLINK("#Adhérents!A1","Retour") -> Retour
A3: Date Sortie | B3: Parcours | C3: Net | D3: Net+ | E3: Rang Net | F3: Brut | G3: Brut+ | H3: Rang Brut
A4: 2018-09-09 | B4: Feucherolles | C4: 36 | D4: =C4+ROW(C4)/1000 -> 36.004 | E4: =RANK(D4,$D$4:$D$28) -> 1 | F4: 13 | G4: =F4+ROW(F4)/1000 -> 13.004 | H4: =RANK(G4,$G$4:$G$28) -> 3
A5: 2018-09-21 | B5: Les Aisses | C5: 23 | D5: 23.005 | E5: =RANK(D5,$D$4:$D$28) -> 7 | F5: 7 | G5: 7.005 | H5: =RANK(G5,$G$4:$G$28) -> 6
A6: 2018-09-22 | B6: Sologne | C6: 18 | D6: 18.006 | E6: 16 | F6: 6 | G6: 6.006 | H6: =RANK(G6,$G$4:$G$28) -> 15
A7: 2018-10-05 | B7: Isle Adam | C7: 19 | D7: 19.007 | E7: 8 | F7: 5 | G7: 5.007 | H7: 16
A8: 2018-11-10 | B8: Fourqueux | C8: 24 | D8: 24.008 | E8: 6 | F8: 10 | G8: 10.008 | H8: 5
A9: 2018-11-24 | B9: CH Hersant | C9: 18 | D9: 18.009 | E9: 15 | F9: 6 | G9: 6.009 | H9: 14
A10: 2019-02-10 | B10: Aigle | C10: 18 | D10: 18.01 | E10: 14 | F10: 6 | G10: 6.01 | H10: 13
A11: 2019-03-09 | B11: CH Yvelines | C11: 32 | D11: 32.011 | E11: 4 | F11: 12 | G11: 12.011 | H11: 4
A12: 2019-03-10 | B12: National - Aigle | C12: 18 | D12: 18.012 | E12: 13 | F12: 6 | G12: 6.012 | H12: 12
A13: 2018-12-13 | B13: Rueil virtuel | C13: 9 | D13: 9.013 | E13: 17 | F13: 3 | G13: 3.013 | H13: 17
A14: 2019-03-23 | B14: Tremblay sur Mauldre | C14: 18 | D14: =C14+ROW(C14)/1000 -> 18.014 | E14: 12 | F14: 6 | G14: 6.014 | H14: 11
A15: 2019-04-06 | B15: Disney | C15: 18 | D15: 18.015 | E15: 11 | F15: 6 | G15: 6.015 | H15: 10
A16: 2019-04-28 | B16: Marivaux | C16: 34 | D16: 34.016 | E16: 2 | F16: 15 | G16: 15.016 | H16: 2
A17: 2019-05-24 | B17: Haut Poitou | C17: 18 | D17: 18.017 | E17: 10 | F17: 6 | G17: 6.017 | H17: 9
A18: 2019-05-25 | B18: Mignaloux | C18: 25 | D18: =C18+ROW(C18)/1000 -> 25.018 | E18: 5 | F18: 6 | G18: 6.018 | H18: 8
A19: 2019-06-07 | B19: Isle Adam | C19: 18 | D19: 18.019 | E19: 9 | F19: 6 | G19: 6.019 | H19: 7
A20: 2019-06-28 | B20: Vaucouleurs Rivière | C20: 33 | D20: 33.02 | E20: 3 | F20: 16 | G20: 16.02 | H20: 1
D21: 0.021 | E21: 25 | G21: 0.021 | H21: 25
D22: 0.022 | E22: 24 | G22: 0.022 | H22: 24
D23: 0.023 | E23: 23 | G23: 0.023 | H23: 23
D24: 0.024 | E24: 22 | G24: 0.024 | H24: 22
D25: 0.025 | E25: 21 | G25: 0.025 | H25: 21
D26: 0.026 | E26: 20 | G26: 0.026 | H26: 20
D27: 0.027 | E27: 19 | G27: 0.027 | H27: 19
D28: 0.028 | E28: 18 | G28: 0.028 | H28: 18
B29: Cumul total | C29: =SUM(C4:C28) -> 379 | F29: =SUM(F4:F28) -> 135
B30: 5 meilleurs scores | C30: =INDEX(C4:C28,MATCH(1,E4:E28,0))+INDEX(C4:C28,MATCH(2,E4:E28,0))+INDEX(C4:C28,MATCH(3,E4:E28,0))+INDEX(C4:C28,MATCH(4,E4:E28,0))+INDEX(C4:C28,MATCH(5,E4:E28,0)) -> 160 | F30: =INDEX(F4:F28,MATCH(1,H4:H28,0))+INDEX(F4:F28,MATCH(2,H4:H28,0))+INDEX(F4:F28,MATCH(3,H4:H28,0))+INDEX(F4:F28,MATCH(4,H4:H28,0))+INDEX(F4:F28,MATCH(5,H4:H28,0)) -> 66

Sheet DASCOTTE_Philippe
A1: DASCOTTE | B1: Philippe | F1: =HYPERLINK("#Adhérents!A1","Retour") -> Retour
A3: Date Sortie | B3: Parcours | C3: Net | D3: Net+ | E3: Rang Net | F3: Brut | G3: Brut+ | H3: Rang Brut
A4: 2018-09-09 | B4: Feucherolles | C4: 39 | D4: =C4+ROW(C4)/1000 -> 39.004 | E4: =RANK(D4,$D$4:$D$28) -> 3 | F4: 2 | G4: =F4+ROW(F4)/1000 -> 2.004 | H4: =RANK(G4,$G$4:$G$28) -> 10
A5: 2018-09-20 | B5: Rueil | C5: 9 | D5: 9.005 | E5: =RANK(D5,$D$4:$D$28) -> 10 | F5: 3 | G5: 3.005 | H5: =RANK(G5,$G$4:$G$28) -> 9
A6: 2018-10-02 | B6: Rueil | C6: 9 | D6: 9.006 | E6: 9 | F6: 3 | G6: 3.006 | H6: =RANK(G6,$G$4:$G$28) -> 8
A7: 2019-04-09 | B7: Rueil | C7: 9 | D7: 9.007 | E7: 8 | F7: 3 | G7: 3.007 | H7: 7
A8: 2019-04-18 | B8: Rueil virtuel | C8: 9 | D8: 9.008 | E8: 7 | F8: 3 | G8: 3.008 | H8: 6
A9: 2019-04-28 | B9: Marivaux | C9: 46 | D9: 46.009 | E9: 1 | F9: 4 | G9: 4.009 | H9: 3
A10: 2019-03-23 | B10: Tremblay sur Mauldre | C10: 18 | D10: 18.01 | E10: 4 | F10: 6 | G10: 6.01 | H10: 2
A11: 2019-05-23 | B11: Rueil | C11: 9 | D11: 9.011 | E11: 6 | F11: 3 | G11: 3.011 | H11: 5
A12: 2019-06-07 | B12: Isle Adam | C12: 39 | D12: 39.012 | E12: 2 | F12: 6 | G12: 6.012 | H12: 1
A13: 2019-06-20 | B13: Rueil | C13: 9 | D13: 9.013 | E13: 5 | F13: 3 | G13: 3.013 | H13: 4
D14: =C14+ROW(C14)/1000 -> 0.014 | E14: 25 | G14: 0.014 | H14: 25
D15: 0.015 | E15: 24 | G15: 0.015 | H15: 24
D16: 0.016 | E16: 23 | G16: 0.016 | H16: 23
D17: 0.017 | E17: 22 | G17: 0.017 | H17: 22
D18: =C18+ROW(C18)/1000 -> 0.018 | E18: 21 | G18: 0.018 | H18: 21
D19: 0.019 | E19: 20 | G19: 0.019 | H19: 20
D20: 0.02 | E20: 19 | G20: 0.02 | H20: 19
D21: 0.021 | E21: 18 | G21: 0.021 | H21: 18
D22: 0.022 | E22: 17 | G22: 0.022 | H22: 17
D23: 0.023 | E23: 16 | G23: 0.023 | H23: 16
D24: 0.024 | E24: 15 | G24: 0.024 | H24: 15
D25: 0.025 | E25: 14 | G25: 0.025 | H25: 14
D26: 0.026 | E26: 13 | G26: 0.026 | H26: 13
D27: 0.027 | E27: 12 | G27: 0.027 | H27: 12
D28: 0.028 | E28: 11 | G28: 0.028 | H28: 11
B29: Cumul total | C29: =SUM(C4:C28) -> 196 | F29: =SUM(F4:F28) -> 36
B30: 5 meilleurs scores | C30: =INDEX(C4:C28,MATCH(1,E4:E28,0))+INDEX(C4:C28,MATCH(2,E4:E28,0))+INDEX(C4:C28,MATCH(3,E4:E28,0))+INDEX(C4:C28,MATCH(4,E4:E28,0))+INDEX(C4:C28,MATCH(5,E4:E28,0)) -> 151 | F30: =INDEX(F4:F28,MATCH(1,H4:H28,0))+INDEX(F4:F28,MATCH(2,H4:H28,0))+INDEX(F4:F28,MATCH(3,H4:H28,0))+INDEX(F4:F28,MATCH(4,H4:H28,0))+INDEX(F4:F28,MATCH(5,H4:H28,0)) -> 22

Sheet DOGUIN_Dominique
A1: DOGUIN-SFEZ | B1: Dominique | F1: =HYPERLINK("#Adhérents!A1","Retour") -> Retour
A3: Date Sortie | B3: Parcours | C3: Net | D3: Net+ | E3: Rang Net | F3: Brut | G3: Brut+ | H3: Rang Brut
A4: 2018-10-05 | B4: Isle Adam | C4: 30 | D4: =C4+ROW(C4)/1000 -> 30.004 | E4: =RANK(D4,$D$4:$D$28) -> 2 | F4: 5 | G4: =F4+ROW(F4)/1000 -> 5.004 | H4: =RANK(G4,$G$4:$G$28) -> 5
A5: 2018-10-20 | B5: Cergy Vauréal | C5: 25 | D5: 25.005 | E5: =RANK(D5,$D$4:$D$28) -> 3 | F5: 4 | G5: 4.005 | H5: =RANK(G5,$G$4:$G$28) -> 6
A6: 2019-03-10 | B6: National - Aigle | C6: 18 | D6: 18.006 | E6: 7 | F6: 6 | G6: 6.006 | H6: =RANK(G6,$G$4:$G$28) -> 4
A7: 2019-03-23 | B7: Tremblay sur Mauldre | C7: 18 | D7: 18.007 | E7: 6 | F7: 6 | G7: 6.007 | H7: 3
A8: 2019-05-24 | B8: Haut Poitou | C8: 18 | D8: 18.008 | E8: 5 | F8: 6 | G8: 6.008 | H8: 2
A9: 2019-05-25 | B9: Mignaloux | C9: 39 | D9: 39.009 | E9: 1 | F9: 9 | G9: 9.009 | H9: 1
A10: 2019-06-28 | B10: Vaucouleurs Rivière | C10: 24 | D10: 24.01 | E10: 4 | F10: 2 | G10: 2.01 | H10: 7
D11: 0.011 | E11: 25 | G11: 0.011 | H11: 25
D12: 0.012 | E12: 24 | G12: 0.012 | H12: 24
D13: 0.013 | E13: 23 | G13: 0.013 | H13: 23
D14: =C14+ROW(C14)/1000 -> 0.014 | E14: 22 | G14: 0.014 | H14: 22
D15: 0.015 | E15: 21 | G15: 0.015 | H15: 21
D16: 0.016 | E16: 20 | G16: 0.016 | H16: 20
D17: 0.017 | E17: 19 | G17: 0.017 | H17: 19
D18: =C18+ROW(C18)/1000 -> 0.018 | E18: 18 | G18: 0.018 | H18: 18
D19: 0.019 | E19: 17 | G19: 0.019 | H19: 17
D20: 0.02 | E20: 16 | G20: 0.02 | H20: 16
D21: 0.021 | E21: 15 | G21: 0.021 | H21: 15
D22: 0.022 | E22: 14 | G22: 0.022 | H22: 14
D23: 0.023 | E23: 13 | G23: 0.023 | H23: 13
D24: 0.024 | E24: 12 | G24: 0.024 | H24: 12
D25: 0.025 | E25: 11 | G25: 0.025 | H25: 11
D26: 0.026 | E26: 10 | G26: 0.026 | H26: 10
D27: 0.027 | E27: 9 | G27: 0.027 | H27: 9
D28: 0.028 | E28: 8 | G28: 0.028 | H28: 8
B29: Cumul total | C29: =SUM(C4:C28) -> 172 | F29: =SUM(F4:F28) -> 38
B30: 5 meilleurs scores | C30: =INDEX(C4:C28,MATCH(1,E4:E28,0))+INDEX(C4:C28,MATCH(2,E4:E28,0))+INDEX(C4:C28,MATCH(3,E4:E28,0))+INDEX(C4:C28,MATCH(4,E4:E28,0))+INDEX(C4:C28,MATCH(5,E4:E28,0)) -> 136 | F30: =INDEX(F4:F28,MATCH(1,H4:H28,0))+INDEX(F4:F28,MATCH(2,H4:H28,0))+INDEX(F4:F28,MATCH(3,H4:H28,0))+INDEX(F4:F28,MATCH(4,H4:H28,0))+INDEX(F4:F28,MATCH(5,H4:H28,0)) -> 32

Sheet DOGUIN_Yohann
A1: DOGUIN | B1: Yohann | F1: =HYPERLINK("#Adhérents!A1","Retour") -> Retour
A3: Date Sortie | B3: Parcours | C3: Net | D3: Net+ | E3: Rang Net | F3: Brut | G3: Brut+ | H3: Rang Brut
A4: 2019-03-23 | B4: Tremblay sur Mauldre | C4: 18 | D4: =C4+ROW(C4)/1000 -> 18.004 | E4: =RANK(D4,$D$4:$D$28) -> 1 | F4: 6 | G4: =F4+ROW(F4)/1000 -> 6.004 | H4: =RANK(G4,$G$4:$G$28) -> 1
D5: 0.005 | E5: =RANK(D5,$D$4:$D$28) -> 25 | G5: 0.005 | H5: =RANK(G5,$G$4:$G$28) -> 25
D6: 0.006 | E6: 24 | G6: 0.006 | H6: =RANK(G6,$G$4:$G$28) -> 24
D7: 0.007 | E7: 23 | G7: 0.007 | H7: 23
D8: 0.008 | E8: 22 | G8: 0.008 | H8: 22
D9: 0.009 | E9: 21 | G9: 0.009 | H9: 21
D10: 0.01 | E10: 20 | G10: 0.01 | H10: 20
D11: 0.011 | E11: 19 | G11: 0.011 | H11: 19
D12: 0.012 | E12: 18 | G12: 0.012 | H12: 18
D13: 0.013 | E13: 17 | G13: 0.013 | H13: 17
D14: 0.014 | E14: 16 | G14: 0.014 | H14: 16
D15: 0.015 | E15: 15 | G15: 0.015 | H15: 15
D16: 0.016 | E16: 14 | G16: 0.016 | H16: 14
D17: 0.017 | E17: 13 | G17: 0.017 | H17: 13
D18: 0.018 | E18: 12 | G18: 0.018 | H18: 12
D19: 0.019 | E19: 11 | G19: 0.019 | H19: 11
D20: 0.02 | E20: 10 | G20: 0.02 | H20: 10
D21: 0.021 | E21: 9 | G21: 0.021 | H21: 9
D22: 0.022 | E22: 8 | G22: 0.022 | H22: 8
D23: 0.023 | E23: 7 | G23: 0.023 | H23: 7
D24: 0.024 | E24: 6 | G24: 0.024 | H24: 6
D25: 0.025 | E25: 5 | G25: 0.025 | H25: 5
D26: 0.026 | E26: 4 | G26: 0.026 | H26: 4
D27: 0.027 | E27: 3 | G27: 0.027 | H27: 3
D28: 0.028 | E28: 2 | G28: 0.028 | H28: 2
B29: Cumul total | C29: =SUM(C4:C28) -> 18 | F29: =SUM(F4:F28) -> 6
B30: 5 meilleurs scores | C30: =INDEX(C4:C28,MATCH(1,E4:E28,0))+INDEX(C4:C28,MATCH(2,E4:E28,0))+INDEX(C4:C28,MATCH(3,E4:E28,0))+INDEX(C4:C28,MATCH(4,E4:E28,0))+INDEX(C4:C28,MATCH(5,E4:E28,0)) -> 18 | F30: =INDEX(F4:F28,MATCH(1,H4:H28,0))+INDEX(F4:F28,MATCH(2,H4:H28,0))+INDEX(F4:F28,MATCH(3,H4:H28,0))+INDEX(F4:F28,MATCH(4,H4:H28,0))+INDEX(F4:F28,MATCH(5,H4:H28,0)) -> 6

Sheet ELMALEH_Alfred
A1: ELMALEH | B1: Alfred | F1: =HYPERLINK("#Adhérents!A1","Retour") -> Retour
A3: Date Sortie | B3: Parcours | C3: Net | D3: Net+ | E3: Rang Net | F3: Brut | G3: Brut+ | H3: Rang Brut
A4: 2018-12-13 | B4: Rueil virtuel | C4: 9 | D4: =C4+ROW(C4)/1000 -> 9.004 | E4: =RANK(D4,$D$4:$D$28) -> 1 | F4: 3 | G4: =F4+ROW(F4)/1000 -> 3.004 | H4: =RANK(G4,$G$4:$G$28) -> 1
D5: 0.005 | E5: =RANK(D5,$D$4:$D$28) -> 25 | G5: 0.005 | H5: =RANK(G5,$G$4:$G$28) -> 25
D6: 0.006 | E6: 24 | G6: 0.006 | H6: =RANK(G6,$G$4:$G$28) -> 24
D7: 0.007 | E7: 23 | G7: 0.007 | H7: 23
D8: 0.008 | E8: 22 | G8: 0.008 | H8: 22
D9: 0.009 | E9: 21 | G9: 0.009 | H9: 21
D10: 0.01 | E10: 20 | G10: 0.01 | H10: 20
D11: 0.011 | E11: 19 | G11: 0.011 | H11: 19
D12: 0.012 | E12: 18 | G12: 0.012 | H12: 18
D13: 0.013 | E13: 17 | G13: 0.013 | H13: 17
D14: 0.014 | E14: 16 | G14: 0.014 | H14: 16
D15: 0.015 | E15: 15 | G15: 0.015 | H15: 15
D16: 0.016 | E16: 14 | G16: 0.016 | H16: 14
D17: 0.017 | E17: 13 | G17: 0.017 | H17: 13
D18: 0.018 | E18: 12 | G18: 0.018 | H18: 12
D19: 0.019 | E19: 11 | G19: 0.019 | H19: 11
D20: 0.02 | E20: 10 | G20: 0.02 | H20: 10
D21: 0.021 | E21: 9 | G21: 0.021 | H21: 9
D22: 0.022 | E22: 8 | G22: 0.022 | H22: 8
D23: 0.023 | E23: 7 | G23: 0.023 | H23: 7
D24: 0.024 | E24: 6 | G24: 0.024 | H24: 6
D25: 0.025 | E25: 5 | G25: 0.025 | H25: 5
D26: 0.026 | E26: 4 | G26: 0.026 | H26: 4
D27: 0.027 | E27: 3 | G27: 0.027 | H27: 3
D28: 0.028 | E28: 2 | G28: 0.028 | H28: 2
B29: Cumul total | C29: =SUM(C4:C28) -> 9 | F29: =SUM(F4:F28) -> 3
B30: 5 meilleurs scores | C30: =INDEX(C4:C28,MATCH(1,E4:E28,0))+INDEX(C4:C28,MATCH(2,E4:E28,0))+INDEX(C4:C28,MATCH(3,E4:E28,0))+INDEX(C4:C28,MATCH(4,E4:E28,0))+INDEX(C4:C28,MATCH(5,E4:E28,0)) -> 9 | F30: =INDEX(F4:F28,MATCH(1,H4:H28,0))+INDEX(F4:F28,MATCH(2,H4:H28,0))+INDEX(F4:F28,MATCH(3,H4:H28,0))+INDEX(F4:F28,MATCH(4,H4:H28,0))+INDEX(F4:F28,MATCH(5,H4:H28,0)) -> 3

Sheet DOGUIN_Pierre
A1: DOGUIN | B1: Pierre | F1: =HYPERLINK("#Adhérents!A1","Retour") -> Retour
A3: Date Sortie | B3: Parcours | C3: Net | D3: Net+ | E3: Rang Net | F3: Brut | G3: Brut+ | H3: Rang Brut
A4: 2018-09-09 | B4: Feucherolles | C4: 28 | D4: =C4+ROW(C4)/1000 -> 28.004 | E4: =RANK(D4,$D$4:$D$28) -> 7 | F4: 8 | G4: =F4+ROW(F4)/1000 -> 8.004 | H4: =RANK(G4,$G$4:$G$28) -> 10
A5: 2018-09-20 | B5: Rueil | C5: 9 | D5: 9.005 | E5: =RANK(D5,$D$4:$D$28) -> 22 | F5: 3 | G5: 3.005 | H5: =RANK(G5,$G$4:$G$28) -> 22
A6: 2018-10-05 | B6: Isle Adam | C6: 27 | D6: 27.006 | E6: 8 | F6: 9 | G6: 9.006 | H6: =RANK(G6,$G$4:$G$28) -> 8
A7: 2018-10-20 | B7: Cergy Vauréal | C7: 24 | D7: 24.007 | E7: 10 | F7: 10 | G7: 10.007 | H7: 7
A8: 2018-11-10 | B8: Fourqueux | C8: 20 | D8: 20.008 | E8: 12 | F8: 5 | G8: 5.008 | H8: 17
A9: 2018-11-24 | B9: CH Hersant | C9: 18 | D9: 18.009 | E9: 17 | F9: 6 | G9: 6.009 | H9: 16
A10: 2018-11-29 | B10: CH Marivaux | C10: 28 | D10: 28.01 | E10: 6 | F10: 7 | G10: 7.01 | H10: 11
A11: 2019-02-10 | B11: Aigle | C11: 18 | D11: 18.011 | E11: 16 | F11: 6 | G11: 6.011 | H11: 15
A12: 2019-02-16 | B12: CH Seraincourt | C12: 41 | D12: 41.012 | E12: 1 | F12: 15 | G12: 15.012 | H12: 1
A13: 2019-03-16 | B13: CH Hersant | C13: 28 | D13: 28.013 | E13: 5 | F13: 11 | G13: 11.013 | H13: 6
A14: 2018-12-13 | B14: Rueil virtuel | C14: 9 | D14: =C14+ROW(C14)/1000 -> 9.014 | E14: 21 | F14: 3 | G14: 3.014 | H14: 21
A15: 2018-10-02 | B15: Rueil | C15: 9 | D15: 9.015 | E15: 20 | F15: 3 | G15: 3.015 | H15: 20
A16: 2019-04-06 | B16: Disney | C16: 18 | D16: 18.016 | E16: 15 | F16: 6 | G16: 6.016 | H16: 14
A17: 2019-04-09 | B17: Rueil | C17: 9 | D17: 9.017 | E17: 19 | F17: 3 | G17: 3.017 | H17: 19
A18: 2019-04-18 | B18: Rueil virtuel | C18: 9 | D18: =C18+ROW(C18)/1000 -> 9.018 | E18: 18 | F18: 3 | G18: 3.018 | H18: 18
A19: 2019-04-28 | B19: Marivaux | C19: 29 | D19: 29.019 | E19: 3 | F19: 12 | G19: 12.019 | H19: 3
A20: 2019-03-23 | B20: Tremblay sur Mauldre | C20: 18 | D20: 18.02 | E20: 14 | F20: 6 | G20: 6.02 | H20: 13
A21: 2019-05-24 | B21: Haut Poitou | C21: 18 | D21: 18.021 | E21: 13 | F21: 6 | G21: 6.021 | H21: 12
A22: 2019-05-25 | B22: Mignaloux | C22: 31 | D22: 31.022 | E22: 2 | F22: 13 | G22: 13.022 | H22: 2
A23: 2019-06-07 | B23: Isle Adam | C23: 28 | D23: 28.023 | E23: 4 | F23: 11 | G23: 11.023 | H23: 5
A24: 2019-06-22 | B24: Golf Parc Hersant | C24: 25 | D24: 25.024 | E24: 9 | F24: 11 | G24: 11.024 | H24: 4
A25: 2019-06-28 | B25: Vaucouleurs Rivière | C25: 21 | D25: 21.025 | E25: 11 | F25: 8 | G25: 8.025 | H25: 9
D26: 0.026 | E26: 25 | G26: 0.026 | H26: 25
D27: 0.027 | E27: 24 | G27: 0.027 | H27: 24
D28: 0.028 | E28: 23 | G28: 0.028 | H28: 23
B29: Cumul total | C29: =SUM(C4:C28) -> 465 | F29: =SUM(F4:F28) -> 165
B30: 5 meilleurs scores | C30: =INDEX(C4:C28,MATCH(1,E4:E28,0))+INDEX(C4:C28,MATCH(2,E4:E28,0))+INDEX(C4:C28,MATCH(3,E4:E28,0))+INDEX(C4:C28,MATCH(4,E4:E28,0))+INDEX(C4:C28,MATCH(5,E4:E28,0)) -> 157 | F30: =INDEX(F4:F28,MATCH(1,H4:H28,0))+INDEX(F4:F28,MATCH(2,H4:H28,0))+INDEX(F4:F28,MATCH(3,H4:H28,0))+INDEX(F4:F28,MATCH(4,H4:H28,0))+INDEX(F4:F28,MATCH(5,H4:H28,0)) -> 62

Sheet GATIGNOL_Christian
A1: GATIGNOL | B1: Christian | F1: =HYPERLINK("#Adhérents!A1","Retour") -> Retour
A3: Date Sortie | B3: Parcours | C3: Net | D3: Net+ | E3: Rang Net | F3: Brut | G3: Brut+ | H3: Rang Brut
A4: 2018-09-09 | B4: Feucherolles | C4: 44 | D4: =C4+ROW(C4)/1000 -> 44.004 | E4: =RANK(D4,$D$4:$D$28) -> 1 | F4: 8 | G4: =F4+ROW(F4)/1000 -> 8.004 | H4: =RANK(G4,$G$4:$G$28) -> 5
A5: 2018-09-21 | B5: Les Aisses | C5: 28 | D5: 28.005 | E5: =RANK(D5,$D$4:$D$28) -> 7 | F5: 6 | G5: 6.005 | H5: =RANK(G5,$G$4:$G$28) -> 10
A6: 2018-09-22 | B6: Sologne | C6: 18 | D6: 18.006 | E6: 12 | F6: 6 | G6: 6.006 | H6: =RANK(G6,$G$4:$G$28) -> 9
A7: 2018-10-05 | B7: Isle Adam | C7: 31 | D7: 31.007 | E7: 5 | F7: 4 | G7: 4.007 | H7: 11
A8: 2019-02-10 | B8: Aigle | C8: 18 | D8: 18.008 | E8: 11 | F8: 6 | G8: 6.008 | H8: 8
A9: 2019-03-10 | B9: National - Aigle | C9: 18 | D9: 18.009 | E9: 10 | F9: 6 | G9: 6.009 | H9: 7
A10: 2018-12-13 | B10: Rueil virtuel | C10: 9 | D10: 9.01 | E10: 14 | F10: 3 | G10: 3.01 | H10: 13
A11: 2019-04-18 | B11: Rueil virtuel | C11: 9 | D11: 9.011 | E11: 13 | F11: 3 | G11: 3.011 | H11: 12
A12: 2019-04-28 | B12: Marivaux | C12: 37 | D12: 37.012 | E12: 2 | F12: 8 | G12: 8.012 | H12: 4
A13: 2019-05-24 | B13: Haut Poitou | C13: 18 | D13: 18.013 | E13: 9 | F13: 6 | G13: 6.013 | H13: 6
A14: 2019-05-25 | B14: Mignaloux | C14: 29 | D14: =C14+ROW(C14)/1000 -> 29.014 | E14: 6 | F14: 2 | G14: 2.014 | H14: 14
A15: 2019-06-07 | B15: Isle Adam | C15: 36 | D15: 36.015 | E15: 4 | F15: 9 | G15: 9.015 | H15: 2
A16: 2019-06-22 | B16: Golf Parc Hersant | C16: 26 | D16: 26.016 | E16: 8 | F16: 8 | G16: 8.016 | H16: 3
A17: 2019-06-28 | B17: Vaucouleurs Rivière | C17: 36 | D17: 36.017 | E17: 3 | F17: 11 | G17: 11.017 | H17: 1
D18: =C18+ROW(C18)/1000 -> 0.018 | E18: 25 | G18: 0.018 | H18: 25
D19: 0.019 | E19: 24 | G19: 0.019 | H19: 24
D20: 0.02 | E20: 23 | G20: 0.02 | H20: 23
D21: 0.021 | E21: 22 | G21: 0.021 | H21: 22
D22: 0.022 | E22: 21 | G22: 0.022 | H22: 21
D23: 0.023 | E23: 20 | G23: 0.023 | H23: 20
D24: 0.024 | E24: 19 | G24: 0.024 | H24: 19
D25: 0.025 | E25: 18 | G25: 0.025 | H25: 18
D26: 0.026 | E26: 17 | G26: 0.026 | H26: 17
D27: 0.027 | E27: 16 | G27: 0.027 | H27: 16
D28: 0.028 | E28: 15 | G28: 0.028 | H28: 15
B29: Cumul total | C29: =SUM(C4:C28) -> 357 | F29: =SUM(F4:F28) -> 86
B30: 5 meilleurs scores | C30: =INDEX(C4:C28,MATCH(1,E4:E28,0))+INDEX(C4:C28,MATCH(2,E4:E28,0))+INDEX(C4:C28,MATCH(3,E4:E28,0))+INDEX(C4:C28,MATCH(4,E4:E28,0))+INDEX(C4:C28,MATCH(5,E4:E28,0)) -> 184 | F30: =INDEX(F4:F28,MATCH(1,H4:H28,0))+INDEX(F4:F28,MATCH(2,H4:H28,0))+INDEX(F4:F28,MATCH(3,H4:H28,0))+INDEX(F4:F28,MATCH(4,H4:H28,0))+INDEX(F4:F28,MATCH(5,H4:H28,0)) -> 44

Sheet GATIGNOL_Patricia
A1: GATIGNOL | B1: Patricia | F1: =HYPERLINK("#Adhérents!A1","Retour") -> Retour
A3: Date Sortie | B3: Parcours | C3: Net | D3: Net+ | E3: Rang Net | F3: Brut | G3: Brut+ | H3: Rang Brut
A4: 2018-09-09 | B4: Feucherolles | C4: 26 | D4: =C4+ROW(C4)/1000 -> 26.004 | E4: =RANK(D4,$D$4:$D$28) -> 1 | F4: 1 | G4: =F4+ROW(F4)/1000 -> 1.004 | H4: =RANK(G4,$G$4:$G$28) -> 9
A5: 2018-09-21 | B5: Les Aisses | C5: 25 | D5: 25.005 | E5: =RANK(D5,$D$4:$D$28) -> 3 | F5: 3 | G5: 3.005 | H5: =RANK(G5,$G$4:$G$28) -> 8
A6: 2018-09-22 | B6: Sologne | C6: 18 | D6: 18.006 | E6: 7 | F6: 6 | G6: 6.006 | H6: =RANK(G6,$G$4:$G$28) -> 2
A7: 2018-10-05 | B7: Isle Adam | C7: 24 | D7: 24.007 | E7: 4 | F7: 6 | G7: 6.007 | H7: 1
A8: 2018-12-13 | B8: Rueil virtuel | C8: 9 | D8: 9.008 | E8: 9 | F8: 3 | G8: 3.008 | H8: 7
A9: 2019-04-18 | B9: Rueil virtuel | C9: 9 | D9: 9.009 | E9: 8 | F9: 3 | G9: 3.009 | H9: 6
A10: 2019-04-28 | B10: Marivaux | C10: 21 | D10: 21.01 | E10: 6 | F10: 3 | G10: 3.01 | H10: 5
A11: 2019-06-22 | B11: Golf Parc Hersant | C11: 25 | D11: 25.011 | E11: 2 | F11: 5 | G11: 5.011 | H11: 3
A12: 2019-06-28 | B12: Vaucouleurs Rivière | C12: 22 | D12: 22.012 | E12: 5 | F12: 4 | G12: 4.012 | H12: 4
D13: 0.013 | E13: 25 | G13: 0.013 | H13: 25
D14: =C14+ROW(C14)/1000 -> 0.014 | E14: 24 | G14: 0.014 | H14: 24
D15: 0.015 | E15: 23 | G15: 0.015 | H15: 23
D16: 0.016 | E16: 22 | G16: 0.016 | H16: 22
D17: 0.017 | E17: 21 | G17: 0.017 | H17: 21
D18: =C18+ROW(C18)/1000 -> 0.018 | E18: 20 | G18: 0.018 | H18: 20
D19: 0.019 | E19: 19 | G19: 0.019 | H19: 19
D20: 0.02 | E20: 18 | G20: 0.02 | H20: 18
D21: 0.021 | E21: 17 | G21: 0.021 | H21: 17
D22: 0.022 | E22: 16 | G22: 0.022 | H22: 16
D23: 0.023 | E23: 15 | G23: 0.023 | H23: 15
D24: 0.024 | E24: 14 | G24: 0.024 | H24: 14
D25: 0.025 | E25: 13 | G25: 0.025 | H25: 13
D26: 0.026 | E26: 12 | G26: 0.026 | H26: 12
D27: 0.027 | E27: 11 | G27: 0.027 | H27: 11
D28: 0.028 | E28: 10 | G28: 0.028 | H28: 10
B29: Cumul total | C29: =SUM(C4:C28) -> 179 | F29: =SUM(F4:F28) -> 34
B30: 5 meilleurs scores | C30: =INDEX(C4:C28,MATCH(1,E4:E28,0))+INDEX(C4:C28,MATCH(2,E4:E28,0))+INDEX(C4:C28,MATCH(3,E4:E28,0))+INDEX(C4:C28,MATCH(4,E4:E28,0))+INDEX(C4:C28,MATCH(5,E4:E28,0)) -> 122 | F30: =INDEX(F4:F28,MATCH(1,H4:H28,0))+INDEX(F4:F28,MATCH(2,H4:H28,0))+INDEX(F4:F28,MATCH(3,H4:H28,0))+INDEX(F4:F28,MATCH(4,H4:H28,0))+INDEX(F4:F28,MATCH(5,H4:H28,0)) -> 24

Sheet GERSON_David
A1: GERSON | B1: David | F1: =HYPERLINK("#Adhérents!A1","Retour") -> Retour
A3: Date Sortie | B3: Parcours | C3: Net | D3: Net+ | E3: Rang Net | F3: Brut | G3: Brut+ | H3: Rang Brut
A4: 2018-09-09 | B4: Feucherolles | C4: 39 | D4: =C4+ROW(C4)/1000 -> 39.004 | E4: =RANK(D4,$D$4:$D$28) -> 1 | F4: 15 | G4: =F4+ROW(F4)/1000 -> 15.004 | H4: =RANK(G4,$G$4:$G$28) -> 1
A5: 2018-09-21 | B5: Les Aisses | C5: 26 | D5: 26.005 | E5: =RANK(D5,$D$4:$D$28) -> 3 | F5: 11 | G5: 11.005 | H5: =RANK(G5,$G$4:$G$28) -> 2
A6: 2018-09-22 | B6: Sologne | C6: 18 | D6: 18.006 | E6: 12 | F6: 6 | G6: 6.006 | H6: =RANK(G6,$G$4:$G$28) -> 11
A7: 2018-11-10 | B7: Fourqueux | C7: 18 | D7: 18.007 | E7: 11 | F7: 4 | G7: 4.007 | H7: 12
A8: 2019-02-10 | B8: Aigle | C8: 18 | D8: 18.008 | E8: 10 | F8: 6 | G8: 6.008 | H8: 10
A9: 2019-03-10 | B9: National - Aigle | C9: 18 | D9: 18.009 | E9: 9 | F9: 6 | G9: 6.009 | H9: 9
A10: 2019-04-06 | B10: Disney | C10: 18 | D10: 18.01 | E10: 8 | F10: 6 | G10: 6.01 | H10: 8
A11: 2019-04-28 | B11: Marivaux | C11: 25 | D11: 25.011 | E11: 4 | F11: 6 | G11: 6.011 | H11: 7
A12: 2019-05-24 | B12: Haut Poitou | C12: 18 | D12: 18.012 | E12: 7 | F12: 6 | G12: 6.012 | H12: 6
A13: 2019-05-25 | B13: Mignaloux | C13: 29 | D13: 29.013 | E13: 2 | F13: 10 | G13: 10.013 | H13: 3
A14: 2019-06-22 | B14: Golf Parc Hersant | C14: 23 | D14: =C14+ROW(C14)/1000 -> 23.014 | E14: 6 | F14: 8 | G14: 8.014 | H14: 5
A15: 2019-06-28 | B15: Vaucouleurs Rivière | C15: 24 | D15: 24.015 | E15: 5 | F15: 8 | G15: 8.015 | H15: 4
D16: 0.016 | E16: 25 | G16: 0.016 | H16: 25
D17: 0.017 | E17: 24 | G17: 0.017 | H17: 24
D18: =C18+ROW(C18)/1000 -> 0.018 | E18: 23 | G18: 0.018 | H18: 23
D19: 0.019 | E19: 22 | G19: 0.019 | H19: 22
D20: 0.02 | E20: 21 | G20: 0.02 | H20: 21
D21: 0.021 | E21: 20 | G21: 0.021 | H21: 20
D22: 0.022 | E22: 19 | G22: 0.022 | H22: 19
D23: 0.023 | E23: 18 | G23: 0.023 | H23: 18
D24: 0.024 | E24: 17 | G24: 0.024 | H24: 17
D25: 0.025 | E25: 16 | G25: 0.025 | H25: 16
D26: 0.026 | E26: 15 | G26: 0.026 | H26: 15
D27: 0.027 | E27: 14 | G27: 0.027 | H27: 14
D28: 0.028 | E28: 13 | G28: 0.028 | H28: 13
B29: Cumul total | C29: =SUM(C4:C28) -> 274 | F29: =SUM(F4:F28) -> 92
B30: 5 meilleurs scores | C30: =INDEX(C4:C28,MATCH(1,E4:E28,0))+INDEX(C4:C28,MATCH(2,E4:E28,0))+INDEX(C4:C28,MATCH(3,E4:E28,0))+INDEX(C4:C28,MATCH(4,E4:E28,0))+INDEX(C4:C28,MATCH(5,E4:E28,0)) -> 143 | F30: =INDEX(F4:F28,MATCH(1,H4:H28,0))+INDEX(F4:F28,MATCH(2,H4:H28,0))+INDEX(F4:F28,MATCH(3,H4:H28,0))+INDEX(F4:F28,MATCH(4,H4:H28,0))+INDEX(F4:F28,MATCH(5,H4:H28,0)) -> 52

Sheet GOBIN_Lydie
A1: GOBIN | B1: Lydie | F1: =HYPERLINK("#Adhérents!A1","Retour") -> Retour
A3: Date Sortie | B3: Parcours | C3: Net | D3: Net+ | E3: Rang Net | F3: Brut | G3: Brut+ | H3: Rang Brut
A4: 2018-09-09 | B4: Feucherolles | C4: 34 | D4: =C4+ROW(C4)/1000 -> 34.004 | E4: =RANK(D4,$D$4:$D$28) -> 2 | F4: 4 | G4: =F4+ROW(F4)/1000 -> 4.004 | H4: =RANK(G4,$G$4:$G$28) -> 4
A5: 2018-09-21 | B5: Les Aisses | C5: 18 | D5: 18.005 | E5: =RANK(D5,$D$4:$D$28) -> 7 | F5: 1 | G5: 1.005 | H5: =RANK(G5,$G$4:$G$28) -> 8
A6: 2018-09-22 | B6: Sologne | C6: 18 | D6: 18.006 | E6: 6 | F6: 6 | G6: 6.006 | H6: =RANK(G6,$G$4:$G$28) -> 3
A7: 2018-10-05 | B7: Isle Adam | C7: 23 | D7: 23.007 | E7: 5 | F7: 3 | G7: 3.007 | H7: 5
A8: 2018-10-20 | B8: Cergy Vauréal | C8: 31 | D8: 31.008 | E8: 4 | F8: 8 | G8: 8.008 | H8: 1
A9: 2018-11-10 | B9: Fourqueux | C9: 17 | D9: 17.009 | E9: 8 | F9: 1 | G9: 1.009 | H9: 7
A10: 2019-05-25 | B10: Mignaloux | C10: 33 | D10: 33.01 | E10: 3 | F10: 2 | G10: 2.01 | H10: 6
A11: 2019-06-28 | B11: Vaucouleurs Rivière | C11: 34 | D11: 34.011 | E11: 1 | F11: 6 | G11: 6.011 | H11: 2
D12: 0.012 | E12: 25 | G12: 0.012 | H12: 25
D13: 0.013 | E13: 24 | G13: 0.013 | H13: 24
D14: 0.014 | E14: 23 | G14: 0.014 | H14: 23
D15: 0.015 | E15: 22 | G15: 0.015 | H15: 22
D16: 0.016 | E16: 21 | G16: 0.016 | H16: 21
D17: 0.017 | E17: 20 | G17: 0.017 | H17: 20
D18: 0.018 | E18: 19 | G18: 0.018 | H18: 19
D19: 0.019 | E19: 18 | G19: 0.019 | H19: 18
D20: 0.02 | E20: 17 | G20: 0.02 | H20: 17
D21: 0.021 | E21: 16 | G21: 0.021 | H21: 16
D22: 0.022 | E22: 15 | G22: 0.022 | H22: 15
D23: 0.023 | E23: 14 | G23: 0.023 | H23: 14
D24: 0.024 | E24: 13 | G24: 0.024 | H24: 13
D25: 0.025 | E25: 12 | G25: 0.025 | H25: 12
D26: 0.026 | E26: 11 | G26: 0.026 | H26: 11
D27: 0.027 | E27: 10 | G27: 0.027 | H27: 10
D28: 0.028 | E28: 9 | G28: 0.028 | H28: 9
B29: Cumul total | C29: =SUM(C4:C28) -> 208 | F29: =SUM(F4:F28) -> 31
B30: 5 meilleurs scores | C30: =INDEX(C4:C28,MATCH(1,E4:E28,0))+INDEX(C4:C28,MATCH(2,E4:E28,0))+INDEX(C4:C28,MATCH(3,E4:E28,0))+INDEX(C4:C28,MATCH(4,E4:E28,0))+INDEX(C4:C28,MATCH(5,E4:E28,0)) -> 155 | F30: =INDEX(F4:F28,MATCH(1,H4:H28,0))+INDEX(F4:F28,MATCH(2,H4:H28,0))+INDEX(F4:F28,MATCH(3,H4:H28,0))+INDEX(F4:F28,MATCH(4,H4:H28,0))+INDEX(F4:F28,MATCH(5,H4:H28,0)) -> 27

Sheet GOBIN_Philippe
A1: GOBIN | B1: Philippe | D1: =HYPERLINK("#Adhérents!A1","Retour") -> Retour
A3: Date Sortie | B3: Parcours | C3: Net | D3: Brut | E3: Net+ | F3: Brut+ | G3: Rang Net | H3: Rang Brut
A4: 2018-09-09 | B4: Feucherolles | C4: 33 | D4: 10 | E4: =C4-ROW(C4)/1000 -> 32.996 | F4: =D4-ROW(D4)/1000 -> 9.996 | G4: =RANK(E4,$E$4:$E$28) -> 3 | H4: =RANK(F4,$F$4:$F$28) -> 4
A5: 2018-09-21 | B5: Les Aisses | C5: 22 | D5: 6 | E5: =C5-ROW(C5)/1000 -> 21.995 | F5: 5.995 | G5: 7 | H5: 8
A6: 2018-09-22 | B6: Sologne | C6: 18 | D6: 6 | E6: 17.994 | F6: 5.994 | G6: 10 | H6: 9
A7: 2018-10-05 | B7: Isle Adam | C7: 38 | D7: 18 | E7: 37.993 | F7: 17.993 | G7: 1 | H7: 1
A8: 2018-10-16 | B8: Saint Nom La Breteche | C8: 18 | D8: 6 | E8: 17.992 | F8: 5.992 | G8: 11 | H8: 10
A9: 2018-10-20 | B9: Cergy Vauréal | C9: 21 | D9: 8 | E9: 20.991 | F9: 7.991 | G9: 8 | H9: 6
A10: 2018-11-10 | B10: Fourqueux | C10: 18 | D10: 3 | E10: 17.99 | F10: 2.99 | G10: 12 | H10: 17
A11: 2018-11-24 | B11: CH Hersant | C11: 18 | D11: 6 | E11: 17.989 | F11: 5.989 | G11: 13 | H11: 11
A12: 2018-11-29 | B12: CH Marivaux | C12: 23 | D12: 10 | E12: 22.988 | F12: 9.988 | G12: 6 | H12: 5
A13: 2019-01-12 | B13: CH Ableiges | C13: 31 | D13: 12 | E13: 30.987 | F13: 11.987 | G13: 4 | H13: 3
A14: 2019-02-10 | B14: Aigle | C14: 18 | D14: 6 | E14: 17.986 | F14: 5.986 | G14: 14 | H14: 12
A15: 2019-02-16 | B15: CH Seraincourt | C15: 25 | D15: 8 | E15: 24.985 | F15: 7.985 | G15: 5 | H15: 7
A16: 2018-12-13 | B16: Rueil virtuel | C16: 9 | D16: 3 | E16: 8.984 | F16: 2.984 | G16: 18 | H16: 18
A17: 2018-10-02 | B17: Rueil | C17: 9 | D17: 3 | E17: 8.983 | F17: 2.983 | G17: 19 | H17: 19
A18: 2019-04-06 | B18: Disney | C18: 18 | D18: 6 | E18: 17.982 | F18: 5.982 | G18: 15 | H18: 13
A19: 2019-04-09 | B19: Rueil | C19: 9 | D19: 3 | E19: 8.981 | F19: 2.981 | G19: 20 | H19: 20
A20: 2019-04-18 | B20: Rueil virtuel | C20: 9 | D20: 3 | E20: 8.98 | F20: 2.98 | G20: 21 | H20: 21
A21: 2019-03-23 | B21: Tremblay sur Mauldre | C21: 18 | D21: 6 | E21: 17.979 | F21: 5.979 | G21: 16 | H21: 14
A22: 2019-05-24 | B22: Haut Poitou | C22: 18 | D22: 6 | E22: 17.978 | F22: 5.978 | G22: 17 | H22: 15
A23: 2019-05-25 | B23: Mignaloux | C23: 38 | D23: 18 | E23: 37.977 | F23: 17.977 | G23: 2 | H23: 2
A24: 2019-06-28 | B24: Vaucouleurs Rivière | C24: 20 | D24: 6 | E24: 19.976 | F24: 5.976 | G24: 9 | H24: 16
E25: -0.025 | F25: -0.025 | G25: 22 | H25: 22
E26: -0.026 | F26: -0.026 | G26: 23 | H26: 23
E27: -0.027 | F27: -0.027 | G27: 24 | H27: 24
E28: -0.028 | F28: -0.028 | G28: 25 | H28: 25
B29: Cumul total | C29: =SUM(C4:C28) -> 431 | D29: =SUM(D4:D28) -> 153
B30: 5 meilleurs scores | C30: =INDEX(C4:C28,MATCH(1,G4:G28,0))+INDEX(C4:C28,MATCH(2,G4:G28,0))+INDEX(C4:C28,MATCH(3,G4:G28,0))+INDEX(C4:C28,MATCH(4,G4:G28,0))+INDEX(C4:C28,MATCH(5,G4:G28,0)) -> 165 | D30: =INDEX(D4:D28,MATCH(1,H4:H28,0))+INDEX(D4:D28,MATCH(2,H4:H28,0))+INDEX(D4:D28,MATCH(3,H4:H28,0))+INDEX(D4:D28,MATCH(4,H4:H28,0))+INDEX(D4:D28,MATCH(5,H4:H28,0)) -> 68

Sheet GU_Qin
A1: GU | B1: Qin | F1: =HYPERLINK("#Adhérents!A1","Retour") -> Retour
A3: Date Sortie | B3: Parcours | C3: Net | D3: Net+ | E3: Rang Net | F3: Brut | G3: Brut+ | H3: Rang Brut
A4: 2018-09-09 | B4: Feucherolles | C4: 27 | D4: =C4+ROW(C4)/1000 -> 27.004 | E4: =RANK(D4,$D$4:$D$28) -> 1 | F4: 0 | G4: =F4+ROW(F4)/1000 -> 0.004 | H4: =RANK(G4,$G$4:$G$28) -> 25
A5: 2019-03-10 | B5: National - Aigle | C5: 18 | D5: 18.005 | E5: =RANK(D5,$D$4:$D$28) -> 2 | F5: 6 | G5: 6.005 | H5: =RANK(G5,$G$4:$G$28) -> 1
A6: 2019-05-23 | B6: Rueil | C6: 9 | D6: 9.006 | E6: 4 | F6: 3 | G6: 3.006 | H6: =RANK(G6,$G$4:$G$28) -> 3
A7: 2019-06-20 | B7: Rueil | C7: 9 | D7: 9.007 | E7: 3 | F7: 3 | G7: 3.007 | H7: 2
D8: 0.008 | E8: 25 | G8: 0.008 | H8: 24
D9: 0.009 | E9: 24 | G9: 0.009 | H9: 23
D10: 0.01 | E10: 23 | G10: 0.01 | H10: 22
D11: 0.011 | E11: 22 | G11: 0.011 | H11: 21
D12: 0.012 | E12: 21 | G12: 0.012 | H12: 20
D13: 0.013 | E13: 20 | G13: 0.013 | H13: 19
D14: =C14+ROW(C14)/1000 -> 0.014 | E14: 19 | G14: 0.014 | H14: 18
D15: 0.015 | E15: 18 | G15: 0.015 | H15: 17
D16: 0.016 | E16: 17 | G16: 0.016 | H16: 16
D17: 0.017 | E17: 16 | G17: 0.017 | H17: 15
D18: =C18+ROW(C18)/1000 -> 0.018 | E18: 15 | G18: 0.018 | H18: 14
D19: 0.019 | E19: 14 | G19: 0.019 | H19: 13
D20: 0.02 | E20: 13 | G20: 0.02 | H20: 12
D21: 0.021 | E21: 12 | G21: 0.021 | H21: 11
D22: 0.022 | E22: 11 | G22: 0.022 | H22: 10
D23: 0.023 | E23: 10 | G23: 0.023 | H23: 9
D24: 0.024 | E24: 9 | G24: 0.024 | H24: 8
D25: 0.025 | E25: 8 | G25: 0.025 | H25: 7
D26: 0.026 | E26: 7 | G26: 0.026 | H26: 6
D27: 0.027 | E27: 6 | G27: 0.027 | H27: 5
D28: 0.028 | E28: 5 | G28: 0.028 | H28: 4
B29: Cumul total | C29: =SUM(C4:C28) -> 63 | F29: =SUM(F4:F28) -> 12
B30: 5 meilleurs scores | C30: =INDEX(C4:C28,MATCH(1,E4:E28,0))+INDEX(C4:C28,MATCH(2,E4:E28,0))+INDEX(C4:C28,MATCH(3,E4:E28,0))+INDEX(C4:C28,MATCH(4,E4:E28,0))+INDEX(C4:C28,MATCH(5,E4:E28,0)) -> 63 | F30: =INDEX(F4:F28,MATCH(1,H4:H28,0))+INDEX(F4:F28,MATCH(2,H4:H28,0))+INDEX(F4:F28,MATCH(3,H4:H28,0))+INDEX(F4:F28,MATCH(4,H4:H28,0))+INDEX(F4:F28,MATCH(5,H4:H28,0)) -> 12

Sheet KUHFUSS MONVAL_Luce
A1: KUHFUSS MONVAL | B1: Luce | F1: =HYPERLINK("#Adhérents!A1","Retour") -> Retour
A3: Date Sortie | B3: Parcours | C3: Net | D3: Net+ | E3: Rang Net | F3: Brut | G3: Brut+ | H3: Rang Brut
A4: 2019-04-28 | B4: Marivaux | C4: 21 | D4: =C4+ROW(C4)/1000 -> 21.004 | E4: =RANK(D4,$D$4:$D$28) -> 1 | F4: 1 | G4: =F4+ROW(F4)/1000 -> 1.004 | H4: =RANK(G4,$G$4:$G$28) -> 1
D5: 0.005 | E5: =RANK(D5,$D$4:$D$28) -> 25 | G5: 0.005 | H5: =RANK(G5,$G$4:$G$28) -> 25
D6: 0.006 | E6: 24 | G6: 0.006 | H6: =RANK(G6,$G$4:$G$28) -> 24
D7: 0.007 | E7: 23 | G7: 0.007 | H7: 23
D8: 0.008 | E8: 22 | G8: 0.008 | H8: 22
D9: 0.009 | E9: 21 | G9: 0.009 | H9: 21
D10: 0.01 | E10: 20 | G10: 0.01 | H10: 20
D11: 0.011 | E11: 19 | G11: 0.011 | H11: 19
D12: 0.012 | E12: 18 | G12: 0.012 | H12: 18
D13: 0.013 | E13: 17 | G13: 0.013 | H13: 17
D14: 0.014 | E14: 16 | G14: 0.014 | H14: 16
D15: 0.015 | E15: 15 | G15: 0.015 | H15: 15
D16: 0.016 | E16: 14 | G16: 0.016 | H16: 14
D17: 0.017 | E17: 13 | G17: 0.017 | H17: 13
D18: 0.018 | E18: 12 | G18: 0.018 | H18: 12
D19: 0.019 | E19: 11 | G19: 0.019 | H19: 11
D20: 0.02 | E20: 10 | G20: 0.02 | H20: 10
D21: 0.021 | E21: 9 | G21: 0.021 | H21: 9
D22: 0.022 | E22: 8 | G22: 0.022 | H22: 8
D23: 0.023 | E23: 7 | G23: 0.023 | H23: 7
D24: 0.024 | E24: 6 | G24: 0.024 | H24: 6
D25: 0.025 | E25: 5 | G25: 0.025 | H25: 5
D26: 0.026 | E26: 4 | G26: 0.026 | H26: 4
D27: 0.027 | E27: 3 | G27: 0.027 | H27: 3
D28: 0.028 | E28: 2 | G28: 0.028 | H28: 2
B29: Cumul total | C29: =SUM(C4:C28) -> 21 | F29: =SUM(F4:F28) -> 1
B30: 5 meilleurs scores | C30: =INDEX(C4:C28,MATCH(1,E4:E28,0))+INDEX(C4:C28,MATCH(2,E4:E28,0))+INDEX(C4:C28,MATCH(3,E4:E28,0))+INDEX(C4:C28,MATCH(4,E4:E28,0))+INDEX(C4:C28,MATCH(5,E4:E28,0)) -> 21 | F30: =INDEX(F4:F28,MATCH(1,H4:H28,0))+INDEX(F4:F28,MATCH(2,H4:H28,0))+INDEX(F4:F28,MATCH(3,H4:H28,0))+INDEX(F4:F28,MATCH(4,H4:H28,0))+INDEX(F4:F28,MATCH(5,H4:H28,0)) -> 1

Sheet JANOT_Nicolas
A1: JANOT | B1: Nicolas | F1: =HYPERLINK("#Adhérents!A1","Retour") -> Retour
A3: Date Sortie | B3: Parcours | C3: Net | D3: Net+ | E3: Rang Net | F3: Brut | G3: Brut+ | H3: Rang Brut
A4: 2018-09-09 | B4: Feucherolles | C4: 47 | D4: =C4+ROW(C4)/1000 -> 47.004 | E4: =RANK(D4,$D$4:$D$28) -> 1 | F4: 8 | G4: =F4+ROW(F4)/1000 -> 8.004 | H4: =RANK(G4,$G$4:$G$28) -> 2
A5: 2018-10-05 | B5: Isle Adam | C5: 29 | D5: 29.005 | E5: =RANK(D5,$D$4:$D$28) -> 4 | F5: 6 | G5: 6.005 | H5: =RANK(G5,$G$4:$G$28) -> 4
A6: 2018-10-20 | B6: Cergy Vauréal | C6: 20 | D6: 20.006 | E6: 8 | F6: 3 | G6: 3.006 | H6: =RANK(G6,$G$4:$G$28) -> 11
A7: 2019-02-20 | B7: CH Marivaux | C7: 30 | D7: 30.007 | E7: 3 | F7: 5 | G7: 5.007 | H7: 5
A8: 2019-03-10 | B8: National - Aigle | C8: 18 | D8: 18.008 | E8: 9 | F8: 6 | G8: 6.008 | H8: 3
A9: 2019-03-16 | B9: CH Hersant | C9: 28 | D9: 28.009 | E9: 5 | F9: 3 | G9: 3.009 | H9: 10
A10: 2019-03-28 | B10: Rueil | C10: 9 | D10: 9.01 | E10: 12 | F10: 3 | G10: 3.01 | H10: 9
A11: 2019-04-09 | B11: Rueil | C11: 9 | D11: 9.011 | E11: 11 | F11: 3 | G11: 3.011 | H11: 8
A12: 2019-04-28 | B12: Marivaux | C12: 27 | D12: 27.012 | E12: 6 | F12: 3 | G12: 3.012 | H12: 7
A13: 2019-05-23 | B13: Rueil | C13: 9 | D13: 9.013 | E13: 10 | F13: 3 | G13: 3.013 | H13: 6
A14: 2019-06-22 | B14: Golf Parc Hersant | C14: 21 | D14: 21.014 | E14: 7 | F14: 2 | G14: 2.014 | H14: 12
A15: 2019-06-28 | B15: Vaucouleurs Rivière | C15: 38 | D15: 38.015 | E15: 2 | F15: 13 | G15: 13.015 | H15: 1
D16: 0.016 | E16: 25 | G16: 0.016 | H16: 25
D17: 0.017 | E17: 24 | G17: 0.017 | H17: 24
D18: 0.018 | E18: 23 | G18: 0.018 | H18: 23
D19: 0.019 | E19: 22 | G19: 0.019 | H19: 22
D20: 0.02 | E20: 21 | G20: 0.02 | H20: 21
D21: 0.021 | E21: 20 | G21: 0.021 | H21: 20
D22: 0.022 | E22: 19 | G22: 0.022 | H22: 19
D23: 0.023 | E23: 18 | G23: 0.023 | H23: 18
D24: 0.024 | E24: 17 | G24: 0.024 | H24: 17
D25: 0.025 | E25: 16 | G25: 0.025 | H25: 16
D26: 0.026 | E26: 15 | G26: 0.026 | H26: 15
D27: 0.027 | E27: 14 | G27: 0.027 | H27: 14
D28: 0.028 | E28: 13 | G28: 0.028 | H28: 13
B29: Cumul total | C29: =SUM(C4:C28) -> 285 | F29: =SUM(F4:F28) -> 58
B30: 5 meilleurs scores | C30: =INDEX(C4:C28,MATCH(1,E4:E28,0))+INDEX(C4:C28,MATCH(2,E4:E28,0))+INDEX(C4:C28,MATCH(3,E4:E28,0))+INDEX(C4:C28,MATCH(4,E4:E28,0))+INDEX(C4:C28,MATCH(5,E4:E28,0)) -> 172 | F30: =INDEX(F4:F28,MATCH(1,H4:H28,0))+INDEX(F4:F28,MATCH(2,H4:H28,0))+INDEX(F4:F28,MATCH(3,H4:H28,0))+INDEX(F4:F28,MATCH(4,H4:H28,0))+INDEX(F4:F28,MATCH(5,H4:H28,0)) -> 38

Sheet LE BON_Jean-François
A1: LE BON | B1: Jean-François | F1: =HYPERLINK("#Adhérents!A1","Retour") -> Retour
A3: Date Sortie | B3: Parcours | C3: Net | D3: Net+ | E3: Rang Net | F3: Brut | G3: Brut+ | H3: Rang Brut
A4: 2018-09-09 | B4: Feucherolles | C4: 32 | D4: =C4+ROW(C4)/1000 -> 32.004 | E4: =RANK(D4,$D$4:$D$28) -> 1 | F4: 18 | G4: =F4+ROW(F4)/1000 -> 18.004 | H4: =RANK(G4,$G$4:$G$28) -> 2
A5: 2019-03-23 | B5: Tremblay sur Mauldre | C5: 18 | D5: 18.005 | E5: =RANK(D5,$D$4:$D$28) -> 3 | F5: 6 | G5: 6.005 | H5: =RANK(G5,$G$4:$G$28) -> 3
A6: 2019-06-22 | B6: Golf Parc Hersant | C6: 25 | D6: 25.006 | E6: 2 | F6: 20 | G6: 20.006 | H6: =RANK(G6,$G$4:$G$28) -> 1
D7: 0.007 | E7: 25 | G7: 0.007 | H7: 25
D8: 0.008 | E8: 24 | G8: 0.008 | H8: 24
D9: 0.009 | E9: 23 | G9: 0.009 | H9: 23
D10: 0.01 | E10: 22 | G10: 0.01 | H10: 22
D11: 0.011 | E11: 21 | G11: 0.011 | H11: 21
D12: 0.012 | E12: 20 | G12: 0.012 | H12: 20
D13: 0.013 | E13: 19 | G13: 0.013 | H13: 19
D14: 0.014 | E14: 18 | G14: 0.014 | H14: 18
D15: 0.015 | E15: 17 | G15: 0.015 | H15: 17
D16: 0.016 | E16: 16 | G16: 0.016 | H16: 16
D17: 0.017 | E17: 15 | G17: 0.017 | H17: 15
D18: 0.018 | E18: 14 | G18: 0.018 | H18: 14
D19: 0.019 | E19: 13 | G19: 0.019 | H19: 13
D20: 0.02 | E20: 12 | G20: 0.02 | H20: 12
D21: 0.021 | E21: 11 | G21: 0.021 | H21: 11
D22: 0.022 | E22: 10 | G22: 0.022 | H22: 10
D23: 0.023 | E23: 9 | G23: 0.023 | H23: 9
D24: 0.024 | E24: 8 | G24: 0.024 | H24: 8
D25: 0.025 | E25: 7 | G25: 0.025 | H25: 7
D26: 0.026 | E26: 6 | G26: 0.026 | H26: 6
D27: 0.027 | E27: 5 | G27: 0.027 | H27: 5
D28: 0.028 | E28: 4 | G28: 0.028 | H28: 4
B29: Cumul total | C29: =SUM(C4:C28) -> 75 | F29: =SUM(F4:F28) -> 44
B30: 5 meilleurs scores | C30: =INDEX(C4:C28,MATCH(1,E4:E28,0))+INDEX(C4:C28,MATCH(2,E4:E28,0))+INDEX(C4:C28,MATCH(3,E4:E28,0))+INDEX(C4:C28,MATCH(4,E4:E28,0))+INDEX(C4:C28,MATCH(5,E4:E28,0)) -> 75 | F30: =INDEX(F4:F28,MATCH(1,H4:H28,0))+INDEX(F4:F28,MATCH(2,H4:H28,0))+INDEX(F4:F28,MATCH(3,H4:H28,0))+INDEX(F4:F28,MATCH(4,H4:H28,0))+INDEX(F4:F28,MATCH(5,H4:H28,0)) -> 44

Sheet LACHAZETTE_Franck
A1: LACHAZETTE | B1: Franck | F1: =HYPERLINK("#Adhérents!A1","Retour") -> Retour
A3: Date Sortie | B3: Parcours | C3: Net | D3: Net+ | E3: Rang Net | F3: Brut | G3: Brut+ | H3: Rang Brut
A4: 2018-09-21 | B4: Les Aisses | C4: 31 | D4: =C4+ROW(C4)/1000 -> 31.004 | E4: =RANK(D4,$D$4:$D$28) -> 3 | F4: 14 | G4: =F4+ROW(F4)/1000 -> 14.004 | H4: =RANK(G4,$G$4:$G$28) -> 5
A5: 2018-09-22 | B5: Sologne | C5: 18 | D5: 18.005 | E5: =RANK(D5,$D$4:$D$28) -> 11 | F5: 6 | G5: 6.005 | H5: =RANK(G5,$G$4:$G$28) -> 11
A6: 2018-10-20 | B6: Cergy Vauréal | C6: 25 | D6: 25.006 | E6: 6 | F6: 13 | G6: 13.006 | H6: =RANK(G6,$G$4:$G$28) -> 6
A7: 2019-02-10 | B7: Aigle | C7: 18 | D7: 18.007 | E7: 10 | F7: 6 | G7: 6.007 | H7: 10
A8: 2019-03-10 | B8: National - Aigle | C8: 18 | D8: 18.008 | E8: 9 | F8: 6 | G8: 6.008 | H8: 9
A9: 2019-04-06 | B9: Disney | C9: 18 | D9: 18.009 | E9: 8 | F9: 6 | G9: 6.009 | H9: 8
A10: 2019-04-18 | B10: Rueil virtuel | C10: 9 | D10: 9.01 | E10: 12 | F10: 3 | G10: 3.01 | H10: 12
A11: 2019-04-28 | B11: Marivaux | C11: 33 | D11: 33.011 | E11: 2 | F11: 18 | G11: 18.011 | H11: 1
A12: 2019-05-24 | B12: Haut Poitou | C12: 18 | D12: 18.012 | E12: 7 | F12: 6 | G12: 6.012 | H12: 7
A13: 2019-05-25 | B13: Mignaloux | C13: 36 | D13: 36.013 | E13: 1 | F13: 17 | G13: 17.013 | H13: 3
A14: 2019-06-22 | B14: Golf Parc Hersant | C14: 28 | D14: =C14+ROW(C14)/1000 -> 28.014 | E14: 5 | F14: 17 | G14: 17.014 | H14: 2
A15: 2019-06-28 | B15: Vaucouleurs Rivière | C15: 29 | D15: 29.015 | E15: 4 | F15: 14 | G15: 14.015 | H15: 4
D16: 0.016 | E16: 25 | G16: 0.016 | H16: 25
D17: 0.017 | E17: 24 | G17: 0.017 | H17: 24
D18: =C18+ROW(C18)/1000 -> 0.018 | E18: 23 | G18: 0.018 | H18: 23
D19: 0.019 | E19: 22 | G19: 0.019 | H19: 22
D20: 0.02 | E20: 21 | G20: 0.02 | H20: 21
D21: 0.021 | E21: 20 | G21: 0.021 | H21: 20
D22: 0.022 | E22: 19 | G22: 0.022 | H22: 19
D23: 0.023 | E23: 18 | G23: 0.023 | H23: 18
D24: 0.024 | E24: 17 | G24: 0.024 | H24: 17
D25: 0.025 | E25: 16 | G25: 0.025 | H25: 16
D26: 0.026 | E26: 15 | G26: 0.026 | H26: 15
D27: 0.027 | E27: 14 | G27: 0.027 | H27: 14
D28: 0.028 | E28: 13 | G28: 0.028 | H28: 13
B29: Cumul total | C29: =SUM(C4:C28) -> 281 | F29: =SUM(F4:F28) -> 126
B30: 5 meilleurs scores | C30: =INDEX(C4:C28,MATCH(1,E4:E28,0))+INDEX(C4:C28,MATCH(2,E4:E28,0))+INDEX(C4:C28,MATCH(3,E4:E28,0))+INDEX(C4:C28,MATCH(4,E4:E28,0))+INDEX(C4:C28,MATCH(5,E4:E28,0)) -> 157 | F30: =INDEX(F4:F28,MATCH(1,H4:H28,0))+INDEX(F4:F28,MATCH(2,H4:H28,0))+INDEX(F4:F28,MATCH(3,H4:H28,0))+INDEX(F4:F28,MATCH(4,H4:H28,0))+INDEX(F4:F28,MATCH(5,H4:H28,0)) -> 80

Sheet LARRERE_Martin
A1: LARRERE | B1: Martin | F1: =HYPERLINK("#Adhérents!A1","Retour") -> Retour
A3: Date Sortie | B3: Parcours | C3: Net | D3: Net+ | E3: Rang Net | F3: Brut | G3: Brut+ | H3: Rang Brut
A4: 2018-11-10 | B4: Fourqueux | C4: 24 | D4: =C4+ROW(C4)/1000 -> 24.004 | E4: =RANK(D4,$D$4:$D$28) -> 6 | F4: 7 | G4: =F4+ROW(F4)/1000 -> 7.004 | H4: =RANK(G4,$G$4:$G$28) -> 6
A5: 2019-01-12 | B5: CH Ableiges | C5: 33 | D5: 33.005 | E5: =RANK(D5,$D$4:$D$28) -> 4 | F5: 15 | G5: 15.005 | H5: =RANK(G5,$G$4:$G$28) -> 1
A6: 2019-02-10 | B6: Aigle | C6: 18 | D6: 18.006 | E6: 7 | F6: 6 | G6: 6.006 | H6: =RANK(G6,$G$4:$G$28) -> 7
A7: 2019-02-16 | B7: CH Seraincourt | C7: 35 | D7: 35.007 | E7: 3 | F7: 13 | G7: 13.007 | H7: 4
A8: 2019-03-09 | B8: CH Yvelines | C8: 26 | D8: 26.008 | E8: 5 | F8: 9 | G8: 9.008 | H8: 5
A9: 2019-06-07 | B9: Isle Adam | C9: 35 | D9: 35.009 | E9: 2 | F9: 14 | G9: 14.009 | H9: 2
A10: 2019-06-22 | B10: Golf Parc Hersant | C10: 35 | D10: 35.01 | E10: 1 | F10: 13 | G10: 13.01 | H10: 3
D11: 0.011 | E11: 25 | G11: 0.011 | H11: 25
D12: 0.012 | E12: 24 | G12: 0.012 | H12: 24
D13: 0.013 | E13: 23 | G13: 0.013 | H13: 23
D14: 0.014 | E14: 22 | G14: 0.014 | H14: 22
D15: 0.015 | E15: 21 | G15: 0.015 | H15: 21
D16: 0.016 | E16: 20 | G16: 0.016 | H16: 20
D17: 0.017 | E17: 19 | G17: 0.017 | H17: 19
D18: 0.018 | E18: 18 | G18: 0.018 | H18: 18
D19: 0.019 | E19: 17 | G19: 0.019 | H19: 17
D20: 0.02 | E20: 16 | G20: 0.02 | H20: 16
D21: 0.021 | E21: 15 | G21: 0.021 | H21: 15
D22: 0.022 | E22: 14 | G22: 0.022 | H22: 14
D23: 0.023 | E23: 13 | G23: 0.023 | H23: 13
D24: 0.024 | E24: 12 | G24: 0.024 | H24: 12
D25: 0.025 | E25: 11 | G25: 0.025 | H25: 11
D26: 0.026 | E26: 10 | G26: 0.026 | H26: 10
D27: 0.027 | E27: 9 | G27: 0.027 | H27: 9
D28: 0.028 | E28: 8 | G28: 0.028 | H28: 8
B29: Cumul total | C29: =SUM(C4:C28) -> 206 | F29: =SUM(F4:F28) -> 77
B30: 5 meilleurs scores | C30: =INDEX(C4:C28,MATCH(1,E4:E28,0))+INDEX(C4:C28,MATCH(2,E4:E28,0))+INDEX(C4:C28,MATCH(3,E4:E28,0))+INDEX(C4:C28,MATCH(4,E4:E28,0))+INDEX(C4:C28,MATCH(5,E4:E28,0)) -> 164 | F30: =INDEX(F4:F28,MATCH(1,H4:H28,0))+INDEX(F4:F28,MATCH(2,H4:H28,0))+INDEX(F4:F28,MATCH(3,H4:H28,0))+INDEX(F4:F28,MATCH(4,H4:H28,0))+INDEX(F4:F28,MATCH(5,H4:H28,0)) -> 64

Sheet LOPEZ_Cédric
A1: LOPEZ | B1: Cédric | F1: =HYPERLINK("#Adhérents!A1","Retour") -> Retour
A3: Date Sortie | B3: Parcours | C3: Net | D3: Net+ | E3: Rang Net | F3: Brut | G3: Brut+ | H3: Rang Brut
A4: 2019-03-28 | B4: Rueil | C4: 9 | D4: =C4+ROW(C4)/1000 -> 9.004 | E4: =RANK(D4,$D$4:$D$28) -> 4 | F4: 3 | G4: =F4+ROW(F4)/1000 -> 3.004 | H4: =RANK(G4,$G$4:$G$28) -> 4
A5: 2019-04-25 | B5: Rueil | C5: 9 | D5: 9.005 | E5: =RANK(D5,$D$4:$D$28) -> 3 | F5: 3 | G5: 3.005 | H5: =RANK(G5,$G$4:$G$28) -> 3
A6: 2019-05-07 | B6: Rueil | C6: 9 | D6: 9.006 | E6: 2 | F6: 3 | G6: 3.006 | H6: =RANK(G6,$G$4:$G$28) -> 2
A7: 2019-05-23 | B7: Rueil | C7: 9 | D7: 9.007 | E7: 1 | F7: 3 | G7: 3.007 | H7: 1
D8: 0.008 | E8: 25 | G8: 0.008 | H8: 25
D9: 0.009 | E9: 24 | G9: 0.009 | H9: 24
D10: 0.01 | E10: 23 | G10: 0.01 | H10: 23
D11: 0.011 | E11: 22 | G11: 0.011 | H11: 22
D12: 0.012 | E12: 21 | G12: 0.012 | H12: 21
D13: 0.013 | E13: 20 | G13: 0.013 | H13: 20
D14: 0.014 | E14: 19 | G14: 0.014 | H14: 19
D15: 0.015 | E15: 18 | G15: 0.015 | H15: 18
D16: 0.016 | E16: 17 | G16: 0.016 | H16: 17
D17: 0.017 | E17: 16 | G17: 0.017 | H17: 16
D18: 0.018 | E18: 15 | G18: 0.018 | H18: 15
D19: 0.019 | E19: 14 | G19: 0.019 | H19: 14
D20: 0.02 | E20: 13 | G20: 0.02 | H20: 13
D21: 0.021 | E21: 12 | G21: 0.021 | H21: 12
D22: 0.022 | E22: 11 | G22: 0.022 | H22: 11
D23: 0.023 | E23: 10 | G23: 0.023 | H23: 10
D24: 0.024 | E24: 9 | G24: 0.024 | H24: 9
D25: 0.025 | E25: 8 | G25: 0.025 | H25: 8
D26: 0.026 | E26: 7 | G26: 0.026 | H26: 7
D27: 0.027 | E27: 6 | G27: 0.027 | H27: 6
D28: 0.028 | E28: 5 | G28: 0.028 | H28: 5
B29: Cumul total | C29: =SUM(C4:C28) -> 36 | F29: =SUM(F4:F28) -> 12
B30: 5 meilleurs scores | C30: =INDEX(C4:C28,MATCH(1,E4:E28,0))+INDEX(C4:C28,MATCH(2,E4:E28,0))+INDEX(C4:C28,MATCH(3,E4:E28,0))+INDEX(C4:C28,MATCH(4,E4:E28,0))+INDEX(C4:C28,MATCH(5,E4:E28,0)) -> 36 | F30: =INDEX(F4:F28,MATCH(1,H4:H28,0))+INDEX(F4:F28,MATCH(2,H4:H28,0))+INDEX(F4:F28,MATCH(3,H4:H28,0))+INDEX(F4:F28,MATCH(4,H4:H28,0))+INDEX(F4:F28,MATCH(5,H4:H28,0)) -> 12

Sheet LEFRANC_Virginie
A1: LEFRANC | B1: Virginie | F1: =HYPERLINK("#Adhérents!A1","Retour") -> Retour
A3: Date Sortie | B3: Parcours | C3: Net | D3: Net+ | E3: Rang Net | F3: Brut | G3: Brut+ | H3: Rang Brut
A4: 2018-09-21 | B4: Les Aisses | C4: 30 | D4: =C4+ROW(C4)/1000 -> 30.004 | E4: =RANK(D4,$D$4:$D$28) -> 4 | F4: 6 | G4: =F4+ROW(F4)/1000 -> 6.004 | H4: =RANK(G4,$G$4:$G$28) -> 8
A5: 2018-09-22 | B5: Sologne | C5: 18 | D5: 18.005 | E5: =RANK(D5,$D$4:$D$28) -> 9 | F5: 6 | G5: 6.005 | H5: =RANK(G5,$G$4:$G$28) -> 7
A6: 2018-10-05 | B6: Isle Adam | C6: 32 | D6: 32.006 | E6: 3 | F6: 6 | G6: 6.006 | H6: =RANK(G6,$G$4:$G$28) -> 6
A7: 2018-10-20 | B7: Cergy Vauréal | C7: 37 | D7: 37.007 | E7: 1 | F7: 11 | G7: 11.007 | H7: 1
A8: 2019-03-10 | B8: National - Aigle | C8: 18 | D8: 18.008 | E8: 8 | F8: 6 | G8: 6.008 | H8: 5
A9: 2018-12-13 | B9: Rueil virtuel | C9: 9 | D9: 9.009 | E9: 12 | F9: 3 | G9: 3.009 | H9: 12
A10: 2019-04-09 | B10: Rueil | C10: 9 | D10: =C10+ROW(C10)/1000 -> 9.01 | E10: 11 | F10: 3 | G10: 3.01 | H10: 11
A11: 2019-04-28 | B11: Marivaux | C11: 36 | D11: =C11+ROW(C11)/1000 -> 36.011 | E11: 2 | F11: 10 | G11: 10.011 | H11: 2
A12: 2019-05-07 | B12: Rueil | C12: 9 | D12: =C12+ROW(C12)/1000 -> 9.012 | E12: 10 | F12: 3 | G12: 3.012 | H12: 10
A13: 2019-03-23 | B13: Tremblay sur Mauldre | C13: 18 | D13: 18.013 | E13: 7 | F13: 6 | G13: 6.013 | H13: 4
A14: 2019-06-22 | B14: Golf Parc Hersant | C14: 27 | D14: =C14+ROW(C14)/1000 -> 27.014 | E14: 5 | F14: 6 | G14: 6.014 | H14: 3
A15: 2019-06-28 | B15: Vaucouleurs Rivière | C15: 22 | D15: 22.015 | E15: 6 | F15: 5 | G15: 5.015 | H15: 9
D16: 0.016 | E16: 25 | G16: 0.016 | H16: 25
D17: 0.017 | E17: 24 | G17: 0.017 | H17: 24
D18: =C18+ROW(C18)/1000 -> 0.018 | E18: 23 | G18: 0.018 | H18: 23
D19: 0.019 | E19: 22 | G19: 0.019 | H19: 22
D20: 0.02 | E20: 21 | G20: 0.02 | H20: 21
D21: 0.021 | E21: 20 | G21: 0.021 | H21: 20
D22: 0.022 | E22: 19 | G22: 0.022 | H22: 19
D23: 0.023 | E23: 18 | G23: 0.023 | H23: 18
D24: 0.024 | E24: 17 | G24: 0.024 | H24: 17
D25: 0.025 | E25: 16 | G25: 0.025 | H25: 16
D26: 0.026 | E26: 15 | G26: 0.026 | H26: 15
D27: 0.027 | E27: 14 | G27: 0.027 | H27: 14
D28: 0.028 | E28: 13 | G28: 0.028 | H28: 13
B29: Cumul total | C29: =SUM(C4:C28) -> 265 | F29: =SUM(F4:F28) -> 71
B30: 5 meilleurs scores | C30: =INDEX(C4:C28,MATCH(1,E4:E28,0))+INDEX(C4:C28,MATCH(2,E4:E28,0))+INDEX(C4:C28,MATCH(3,E4:E28,0))+INDEX(C4:C28,MATCH(4,E4:E28,0))+INDEX(C4:C28,MATCH(5,E4:E28,0)) -> 162 | F30: =INDEX(F4:F28,MATCH(1,H4:H28,0))+INDEX(F4:F28,MATCH(2,H4:H28,0))+INDEX(F4:F28,MATCH(3,H4:H28,0))+INDEX(F4:F28,MATCH(4,H4:H28,0))+INDEX(F4:F28,MATCH(5,H4:H28,0)) -> 39

Sheet MABILE_Claude
A1: MABILE | B1: Claude | F1: =HYPERLINK("#Adhérents!A1","Retour") -> Retour
A3: Date Sortie | B3: Parcours | C3: Net | D3: Net+ | E3: Rang Net | F3: Brut | G3: Brut+ | H3: Rang Brut
A4: 2018-09-21 | B4: Les Aisses | C4: 24 | D4: =C4+ROW(C4)/1000 -> 24.004 | E4: =RANK(D4,$D$4:$D$28) -> 2 | F4: 7 | G4: =F4+ROW(F4)/1000 -> 7.004 | H4: =RANK(G4,$G$4:$G$28) -> 3
A5: 2018-09-22 | B5: Sologne | C5: 18 | D5: 18.005 | E5: =RANK(D5,$D$4:$D$28) -> 8 | F5: 6 | G5: 6.005 | H5: =RANK(G5,$G$4:$G$28) -> 8
A6: 2018-10-16 | B6: Saint Nom La Breteche | C6: 18 | D6: 18.006 | E6: 7 | F6: 6 | G6: 6.006 | H6: =RANK(G6,$G$4:$G$28) -> 7
A7: 2018-11-10 | B7: Fourqueux | C7: 21 | D7: 21.007 | E7: 3 | F7: 8 | G7: 8.007 | H7: 2
A8: 2019-04-06 | B8: Disney | C8: 18 | D8: 18.008 | E8: 6 | F8: 6 | G8: 6.008 | H8: 6
A9: 2019-04-18 | B9: Rueil virtuel | C9: 9 | D9: 9.009 | E9: 9 | F9: 3 | G9: 3.009 | H9: 9
A10: 2019-03-23 | B10: Tremblay sur Mauldre | C10: 18 | D10: 18.01 | E10: 5 | F10: 6 | G10: 6.01 | H10: 5
A11: 2019-05-24 | B11: Haut Poitou | C11: 18 | D11: 18.011 | E11: 4 | F11: 6 | G11: 6.011 | H11: 4
A12: 2019-05-25 | B12: Mignaloux | C12: 30 | D12: 30.012 | E12: 1 | F12: 12 | G12: 12.012 | H12: 1
D13: 0.013 | E13: 25 | G13: 0.013 | H13: 25
D14: =C14+ROW(C14)/1000 -> 0.014 | E14: 24 | G14: 0.014 | H14: 24
D15: 0.015 | E15: 23 | G15: 0.015 | H15: 23
D16: 0.016 | E16: 22 | G16: 0.016 | H16: 22
D17: 0.017 | E17: 21 | G17: 0.017 | H17: 21
D18: =C18+ROW(C18)/1000 -> 0.018 | E18: 20 | G18: 0.018 | H18: 20
D19: 0.019 | E19: 19 | G19: 0.019 | H19: 19
D20: 0.02 | E20: 18 | G20: 0.02 | H20: 18
D21: 0.021 | E21: 17 | G21: 0.021 | H21: 17
D22: 0.022 | E22: 16 | G22: 0.022 | H22: 16
D23: 0.023 | E23: 15 | G23: 0.023 | H23: 15
D24: 0.024 | E24: 14 | G24: 0.024 | H24: 14
D25: 0.025 | E25: 13 | G25: 0.025 | H25: 13
D26: 0.026 | E26: 12 | G26: 0.026 | H26: 12
D27: 0.027 | E27: 11 | G27: 0.027 | H27: 11
D28: 0.028 | E28: 10 | G28: 0.028 | H28: 10
B29: Cumul total | C29: =SUM(C4:C28) -> 174 | F29: =SUM(F4:F28) -> 60
B30: 5 meilleurs scores | C30: =INDEX(C4:C28,MATCH(1,E4:E28,0))+INDEX(C4:C28,MATCH(2,E4:E28,0))+INDEX(C4:C28,MATCH(3,E4:E28,0))+INDEX(C4:C28,MATCH(4,E4:E28,0))+INDEX(C4:C28,MATCH(5,E4:E28,0)) -> 111 | F30: =INDEX(F4:F28,MATCH(1,H4:H28,0))+INDEX(F4:F28,MATCH(2,H4:H28,0))+INDEX(F4:F28,MATCH(3,H4:H28,0))+INDEX(F4:F28,MATCH(4,H4:H28,0))+INDEX(F4:F28,MATCH(5,H4:H28,0)) -> 39

Sheet MHAMDI_Jalel
A1: M'HAMDI | B1: Jalel | F1: =HYPERLINK("#Adhérents!A1","Retour") -> Retour
A3: Date Sortie | B3: Parcours | C3: Net | D3: Net+ | E3: Rang Net | F3: Brut | G3: Brut+ | H3: Rang Brut
A4: 2018-09-09 | B4: Feucherolles | C4: 33 | D4: =C4+ROW(C4)/1000 -> 33.004 | E4: =RANK(D4,$D$4:$D$28) -> 3 | F4: 10 | G4: =F4+ROW(F4)/1000 -> 10.004 | H4: =RANK(G4,$G$4:$G$28) -> 4
A5: 2018-09-21 | B5: Les Aisses | C5: 35 | D5: 35.005 | E5: =RANK(D5,$D$4:$D$28) -> 2 | F5: 11 | G5: 11.005 | H5: =RANK(G5,$G$4:$G$28) -> 3
A6: 2018-09-22 | B6: Sologne | C6: 18 | D6: 18.006 | E6: 10 | F6: 6 | G6: 6.006 | H6: =RANK(G6,$G$4:$G$28) -> 9
A7: 2018-10-05 | B7: Isle Adam | C7: 26 | D7: 26.007 | E7: 7 | F7: 6 | G7: 6.007 | H7: 8
A8: 2018-10-20 | B8: Cergy Vauréal | C8: 29 | D8: 29.008 | E8: 5 | F8: 9 | G8: 9.008 | H8: 5
A9: 2019-03-10 | B9: National - Aigle | C9: 18 | D9: 18.009 | E9: 9 | F9: 6 | G9: 6.009 | H9: 7
A10: 2019-04-18 | B10: Rueil virtuel | C10: 9 | D10: 9.01 | E10: 11 | F10: 3 | G10: 3.01 | H10: 11
A11: 2019-05-24 | B11: Haut Poitou | C11: 18 | D11: 18.011 | E11: 8 | F11: 6 | G11: 6.011 | H11: 6
A12: 2019-05-25 | B12: Mignaloux | C12: 26 | D12: 26.012 | E12: 6 | F12: 5 | G12: 5.012 | H12: 10
A13: 2019-06-07 | B13: Isle Adam | C13: 32 | D13: 32.013 | E13: 4 | F13: 11 | G13: 11.013 | H13: 2
A14: 2019-06-22 | B14: Golf Parc Hersant | C14: 38 | D14: =C14+ROW(C14)/1000 -> 38.014 | E14: 1 | F14: 13 | G14: 13.014 | H14: 1
D15: 0.015 | E15: 25 | G15: 0.015 | H15: 25
D16: 0.016 | E16: 24 | G16: 0.016 | H16: 24
D17: 0.017 | E17: 23 | G17: 0.017 | H17: 23
D18: =C18+ROW(C18)/1000 -> 0.018 | E18: 22 | G18: 0.018 | H18: 22
D19: 0.019 | E19: 21 | G19: 0.019 | H19: 21
D20: 0.02 | E20: 20 | G20: 0.02 | H20: 20
D21: 0.021 | E21: 19 | G21: 0.021 | H21: 19
D22: 0.022 | E22: 18 | G22: 0.022 | H22: 18
D23: 0.023 | E23: 17 | G23: 0.023 | H23: 17
D24: 0.024 | E24: 16 | G24: 0.024 | H24: 16
D25: 0.025 | E25: 15 | G25: 0.025 | H25: 15
D26: 0.026 | E26: 14 | G26: 0.026 | H26: 14
D27: 0.027 | E27: 13 | G27: 0.027 | H27: 13
D28: 0.028 | E28: 12 | G28: 0.028 | H28: 12
B29: Cumul total | C29: =SUM(C4:C28) -> 282 | F29: =SUM(F4:F28) -> 86
B30: 5 meilleurs scores | C30: =INDEX(C4:C28,MATCH(1,E4:E28,0))+INDEX(C4:C28,MATCH(2,E4:E28,0))+INDEX(C4:C28,MATCH(3,E4:E28,0))+INDEX(C4:C28,MATCH(4,E4:E28,0))+INDEX(C4:C28,MATCH(5,E4:E28,0)) -> 167 | F30: =INDEX(F4:F28,MATCH(1,H4:H28,0))+INDEX(F4:F28,MATCH(2,H4:H28,0))+INDEX(F4:F28,MATCH(3,H4:H28,0))+INDEX(F4:F28,MATCH(4,H4:H28,0))+INDEX(F4:F28,MATCH(5,H4:H28,0)) -> 54

Sheet MOISSON_Bernard
A1: MOISSON | B1: Bernard | F1: =HYPERLINK("#Adhérents!A1","Retour") -> Retour
A3: Date Sortie | B3: Parcours | C3: Net | D3: Net+ | E3: Rang Net | F3: Brut | G3: Brut+ | H3: Rang Brut
A4: 2018-10-20 | B4: Cergy Vauréal | C4: 35 | D4: =C4+ROW(C4)/1000 -> 35.004 | E4: =RANK(D4,$D$4:$D$28) -> 1 | F4: 9 | G4: =F4+ROW(F4)/1000 -> 9.004 | H4: =RANK(G4,$G$4:$G$28) -> 1
A5: 2018-11-10 | B5: Fourqueux | C5: 15 | D5: 15.005 | E5: =RANK(D5,$D$4:$D$28) -> 6 | F5: 1 | G5: 1.005 | H5: =RANK(G5,$G$4:$G$28) -> 8
A6: 2019-02-10 | B6: Aigle | C6: 18 | D6: 18.006 | E6: 5 | F6: 6 | G6: 6.006 | H6: =RANK(G6,$G$4:$G$28) -> 3
A7: 2019-03-10 | B7: National - Aigle | C7: 18 | D7: 18.007 | E7: 4 | F7: 6 | G7: 6.007 | H7: 2
A8: 2018-12-13 | B8: Rueil virtuel | C8: 9 | D8: 9.008 | E8: 8 | F8: 3 | G8: 3.008 | H8: 7
A9: 2019-04-09 | B9: Rueil | C9: 9 | D9: 9.009 | E9: 7 | F9: 3 | G9: 3.009 | H9: 6
A10: 2019-04-28 | B10: Marivaux | C10: 31 | D10: 31.01 | E10: 2 | F10: 5 | G10: 5.01 | H10: 4
A11: 2019-06-07 | B11: Isle Adam | C11: 28 | D11: 28.011 | E11: 3 | F11: 3 | G11: 3.011 | H11: 5
D12: 0.012 | E12: 25 | G12: 0.012 | H12: 25
D13: 0.013 | E13: 24 | G13: 0.013 | H13: 24
D14: =C14+ROW(C14)/1000 -> 0.014 | E14: 23 | G14: 0.014 | H14: 23
D15: 0.015 | E15: 22 | G15: 0.015 | H15: 22
D16: 0.016 | E16: 21 | G16: 0.016 | H16: 21
D17: 0.017 | E17: 20 | G17: 0.017 | H17: 20
D18: =C18+ROW(C18)/1000 -> 0.018 | E18: 19 | G18: 0.018 | H18: 19
D19: 0.019 | E19: 18 | G19: 0.019 | H19: 18
D20: 0.02 | E20: 17 | G20: 0.02 | H20: 17
D21: 0.021 | E21: 16 | G21: 0.021 | H21: 16
D22: 0.022 | E22: 15 | G22: 0.022 | H22: 15
D23: 0.023 | E23: 14 | G23: 0.023 | H23: 14
D24: 0.024 | E24: 13 | G24: 0.024 | H24: 13
D25: 0.025 | E25: 12 | G25: 0.025 | H25: 12
D26: 0.026 | E26: 11 | G26: 0.026 | H26: 11
D27: 0.027 | E27: 10 | G27: 0.027 | H27: 10
D28: 0.028 | E28: 9 | G28: 0.028 | H28: 9
B29: Cumul total | C29: =SUM(C4:C28) -> 163 | F29: =SUM(F4:F28) -> 36
B30: 5 meilleurs scores | C30: =INDEX(C4:C28,MATCH(1,E4:E28,0))+INDEX(C4:C28,MATCH(2,E4:E28,0))+INDEX(C4:C28,MATCH(3,E4:E28,0))+INDEX(C4:C28,MATCH(4,E4:E28,0))+INDEX(C4:C28,MATCH(5,E4:E28,0)) -> 130 | F30: =INDEX(F4:F28,MATCH(1,H4:H28,0))+INDEX(F4:F28,MATCH(2,H4:H28,0))+INDEX(F4:F28,MATCH(3,H4:H28,0))+INDEX(F4:F28,MATCH(4,H4:H28,0))+INDEX(F4:F28,MATCH(5,H4:H28,0)) -> 29

Sheet NGUYEN_Jean-Paul
A1: NGUYEN | B1: Jean-Paul | F1: =HYPERLINK("#Adhérents!A1","Retour") -> Retour
A3: Date Sortie | B3: Parcours | C3: Net | D3: Net+ | E3: Rang Net | F3: Brut | G3: Brut+ | H3: Rang Brut
A4: 2018-09-09 | B4: Feucherolles | C4: 43 | D4: =C4+ROW(C4)/1000 -> 43.004 | E4: =RANK(D4,$D$4:$D$28) -> 1 | F4: 16 | G4: =F4+ROW(F4)/1000 -> 16.004 | H4: =RANK(G4,$G$4:$G$28) -> 1
A5: 2018-09-21 | B5: Les Aisses | C5: 28 | D5: 28.005 | E5: =RANK(D5,$D$4:$D$28) -> 2 | F5: 8 | G5: 8.005 | H5: =RANK(G5,$G$4:$G$28) -> 4
A6: 2018-09-22 | B6: Sologne | C6: 18 | D6: 18.006 | E6: 8 | F6: 6 | G6: 6.006 | H6: =RANK(G6,$G$4:$G$28) -> 8
A7: 2018-10-05 | B7: Isle Adam | C7: 26 | D7: 26.007 | E7: 3 | F7: 8 | G7: 8.007 | H7: 3
A8: 2019-02-06 | B8: CH Yvelines | C8: 14 | D8: 14.008 | E8: 9 | F8: 1 | G8: 1.008 | H8: 9
A9: 2019-03-10 | B9: National - Aigle | C9: 18 | D9: 18.009 | E9: 7 | F9: 6 | G9: 6.009 | H9: 7
A10: 2019-03-23 | B10: Tremblay sur Mauldre | C10: 18 | D10: 18.01 | E10: 6 | F10: 6 | G10: 6.01 | H10: 6
A11: 2019-05-24 | B11: Haut Poitou | C11: 18 | D11: 18.011 | E11: 5 | F11: 6 | G11: 6.011 | H11: 5
A12: 2019-05-25 | B12: Mignaloux | C12: 23 | D12: 23.012 | E12: 4 | F12: 9 | G12: 9.012 | H12: 2
D13: 0.013 | E13: 25 | G13: 0.013 | H13: 25
D14: =C14+ROW(C14)/1000 -> 0.014 | E14: 24 | G14: 0.014 | H14: 24
D15: 0.015 | E15: 23 | G15: 0.015 | H15: 23
D16: 0.016 | E16: 22 | G16: 0.016 | H16: 22
D17: 0.017 | E17: 21 | G17: 0.017 | H17: 21
D18: =C18+ROW(C18)/1000 -> 0.018 | E18: 20 | G18: 0.018 | H18: 20
D19: 0.019 | E19: 19 | G19: 0.019 | H19: 19
D20: 0.02 | E20: 18 | G20: 0.02 | H20: 18
D21: 0.021 | E21: 17 | G21: 0.021 | H21: 17
D22: 0.022 | E22: 16 | G22: 0.022 | H22: 16
D23: 0.023 | E23: 15 | G23: 0.023 | H23: 15
D24: 0.024 | E24: 14 | G24: 0.024 | H24: 14
D25: 0.025 | E25: 13 | G25: 0.025 | H25: 13
D26: 0.026 | E26: 12 | G26: 0.026 | H26: 12
D27: 0.027 | E27: 11 | G27: 0.027 | H27: 11
D28: 0.028 | E28: 10 | G28: 0.028 | H28: 10
B29: Cumul total | C29: =SUM(C4:C28) -> 206 | F29: =SUM(F4:F28) -> 66
B30: 5 meilleurs scores | C30: =INDEX(C4:C28,MATCH(1,E4:E28,0))+INDEX(C4:C28,MATCH(2,E4:E28,0))+INDEX(C4:C28,MATCH(3,E4:E28,0))+INDEX(C4:C28,MATCH(4,E4:E28,0))+INDEX(C4:C28,MATCH(5,E4:E28,0)) -> 138 | F30: =INDEX(F4:F28,MATCH(1,H4:H28,0))+INDEX(F4:F28,MATCH(2,H4:H28,0))+INDEX(F4:F28,MATCH(3,H4:H28,0))+INDEX(F4:F28,MATCH(4,H4:H28,0))+INDEX(F4:F28,MATCH(5,H4:H28,0)) -> 47

Sheet PAUL_Albert
A1: PAUL | B1: Albert | F1: =HYPERLINK("#Adhérents!A1","Retour") -> Retour
A3: Date Sortie | B3: Parcours | C3: Net | D3: Net+ | E3: Rang Net | F3: Brut | G3: Brut+ | H3: Rang Brut
A4: 2019-04-09 | B4: Rueil | C4: 9 | D4: =C4+ROW(C4)/1000 -> 9.004 | E4: =RANK(D4,$D$4:$D$28) -> 3 | F4: 3 | G4: =F4+ROW(F4)/1000 -> 3.004 | H4: =RANK(G4,$G$4:$G$28) -> 3
A5: 2019-04-25 | B5: Rueil | C5: 9 | D5: 9.005 | E5: =RANK(D5,$D$4:$D$28) -> 2 | F5: 3 | G5: 3.005 | H5: =RANK(G5,$G$4:$G$28) -> 2
A6: 2019-06-20 | B6: Rueil | C6: 9 | D6: 9.006 | E6: 1 | F6: 3 | G6: 3.006 | H6: =RANK(G6,$G$4:$G$28) -> 1
D7: 0.007 | E7: 25 | G7: 0.007 | H7: 25
D8: 0.008 | E8: 24 | G8: 0.008 | H8: 24
D9: 0.009 | E9: 23 | G9: 0.009 | H9: 23
D10: 0.01 | E10: 22 | G10: 0.01 | H10: 22
D11: 0.011 | E11: 21 | G11: 0.011 | H11: 21
D12: 0.012 | E12: 20 | G12: 0.012 | H12: 20
D13: 0.013 | E13: 19 | G13: 0.013 | H13: 19
D14: 0.014 | E14: 18 | G14: 0.014 | H14: 18
D15: 0.015 | E15: 17 | G15: 0.015 | H15: 17
D16: 0.016 | E16: 16 | G16: 0.016 | H16: 16
D17: 0.017 | E17: 15 | G17: 0.017 | H17: 15
D18: 0.018 | E18: 14 | G18: 0.018 | H18: 14
D19: 0.019 | E19: 13 | G19: 0.019 | H19: 13
D20: 0.02 | E20: 12 | G20: 0.02 | H20: 12
D21: 0.021 | E21: 11 | G21: 0.021 | H21: 11
D22: 0.022 | E22: 10 | G22: 0.022 | H22: 10
D23: 0.023 | E23: 9 | G23: 0.023 | H23: 9
D24: 0.024 | E24: 8 | G24: 0.024 | H24: 8
D25: 0.025 | E25: 7 | G25: 0.025 | H25: 7
D26: 0.026 | E26: 6 | G26: 0.026 | H26: 6
D27: 0.027 | E27: 5 | G27: 0.027 | H27: 5
D28: 0.028 | E28: 4 | G28: 0.028 | H28: 4
B29: Cumul total | C29: =SUM(C4:C28) -> 27 | F29: =SUM(F4:F28) -> 9
B30: 5 meilleurs scores | C30: =INDEX(C4:C28,MATCH(1,E4:E28,0))+INDEX(C4:C28,MATCH(2,E4:E28,0))+INDEX(C4:C28,MATCH(3,E4:E28,0))+INDEX(C4:C28,MATCH(4,E4:E28,0))+INDEX(C4:C28,MATCH(5,E4:E28,0)) -> 27 | F30: =INDEX(F4:F28,MATCH(1,H4:H28,0))+INDEX(F4:F28,MATCH(2,H4:H28,0))+INDEX(F4:F28,MATCH(3,H4:H28,0))+INDEX(F4:F28,MATCH(4,H4:H28,0))+INDEX(F4:F28,MATCH(5,H4:H28,0)) -> 9

Sheet PECH_Jean-François
A1: PECH | B1: Jean-François | F1: =HYPERLINK("#Adhérents!A1","Retour") -> Retour
A3: Date Sortie | B3: Parcours | C3: Net | D3: Net+ | E3: Rang Net | F3: Brut | G3: Brut+ | H3: Rang Brut
A4: 2019-04-09 | B4: Rueil | C4: 9 | D4: =C4+ROW(C4)/1000 -> 9.004 | E4: =RANK(D4,$D$4:$D$28) -> 5 | F4: 3 | G4: =F4+ROW(F4)/1000 -> 3.004 | H4: =RANK(G4,$G$4:$G$28) -> 5
A5: 2019-04-25 | B5: Rueil | C5: 9 | D5: 9.005 | E5: =RANK(D5,$D$4:$D$28) -> 4 | F5: 3 | G5: 3.005 | H5: =RANK(G5,$G$4:$G$28) -> 4
A6: 2019-04-28 | B6: Marivaux | C6: 1 | D6: 1.006 | E6: 6 | F6: 0 | G6: 0.006 | H6: =RANK(G6,$G$4:$G$28) -> 25
A7: 2019-05-07 | B7: Rueil | C7: 9 | D7: 9.007 | E7: 3 | F7: 3 | G7: 3.007 | H7: 3
A8: 2019-05-23 | B8: Rueil | C8: 9 | D8: 9.008 | E8: 2 | F8: 3 | G8: 3.008 | H8: 2
A9: 2019-06-20 | B9: Rueil | C9: 9 | D9: 9.009 | E9: 1 | F9: 3 | G9: 3.009 | H9: 1
D10: 0.01 | E10: 25 | G10: 0.01 | H10: 24
D11: 0.011 | E11: 24 | G11: 0.011 | H11: 23
D12: 0.012 | E12: 23 | G12: 0.012 | H12: 22
D13: 0.013 | E13: 22 | G13: 0.013 | H13: 21
D14: 0.014 | E14: 21 | G14: 0.014 | H14: 20
D15: 0.015 | E15: 20 | G15: 0.015 | H15: 19
D16: 0.016 | E16: 19 | G16: 0.016 | H16: 18
D17: 0.017 | E17: 18 | G17: 0.017 | H17: 17
D18: 0.018 | E18: 17 | G18: 0.018 | H18: 16
D19: 0.019 | E19: 16 | G19: 0.019 | H19: 15
D20: 0.02 | E20: 15 | G20: 0.02 | H20: 14
D21: 0.021 | E21: 14 | G21: 0.021 | H21: 13
D22: 0.022 | E22: 13 | G22: 0.022 | H22: 12
D23: 0.023 | E23: 12 | G23: 0.023 | H23: 11
D24: 0.024 | E24: 11 | G24: 0.024 | H24: 10
D25: 0.025 | E25: 10 | G25: 0.025 | H25: 9
D26: 0.026 | E26: 9 | G26: 0.026 | H26: 8
D27: 0.027 | E27: 8 | G27: 0.027 | H27: 7
D28: 0.028 | E28: 7 | G28: 0.028 | H28: 6
B29: Cumul total | C29: =SUM(C4:C28) -> 46 | F29: =SUM(F4:F28) -> 15
B30: 5 meilleurs scores | C30: =INDEX(C4:C28,MATCH(1,E4:E28,0))+INDEX(C4:C28,MATCH(2,E4:E28,0))+INDEX(C4:C28,MATCH(3,E4:E28,0))+INDEX(C4:C28,MATCH(4,E4:E28,0))+INDEX(C4:C28,MATCH(5,E4:E28,0)) -> 45 | F30: =INDEX(F4:F28,MATCH(1,H4:H28,0))+INDEX(F4:F28,MATCH(2,H4:H28,0))+INDEX(F4:F28,MATCH(3,H4:H28,0))+INDEX(F4:F28,MATCH(4,H4:H28,0))+INDEX(F4:F28,MATCH(5,H4:H28,0)) -> 15

Sheet NOTARIANNI_Julien
A1: NOTARIANNI | B1: Julien | F1: =HYPERLINK("#Adhérents!A1","Retour") -> Retour
A3: Date Sortie | B3: Parcours | C3: Net | D3: Net+ | E3: Rang Net | F3: Brut | G3: Brut+ | H3: Rang Brut
A4: 2018-11-10 | B4: Fourqueux | C4: 32 | D4: =C4+ROW(C4)/1000 -> 32.004 | E4: =RANK(D4,$D$4:$D$28) -> 6 | F4: 18 | G4: =F4+ROW(F4)/1000 -> 18.004 | H4: =RANK(G4,$G$4:$G$28) -> 5
A5: 2019-01-12 | B5: CH Ableiges | C5: 32 | D5: 32.005 | E5: =RANK(D5,$D$4:$D$28) -> 5 | F5: 16 | G5: 16.005 | H5: =RANK(G5,$G$4:$G$28) -> 6
A6: 2019-02-10 | B6: Aigle | C6: 18 | D6: 18.006 | E6: 8 | F6: 6 | G6: 6.006 | H6: =RANK(G6,$G$4:$G$28) -> 8
A7: 2019-02-16 | B7: CH Seraincourt | C7: 35 | D7: 35.007 | E7: 3 | F7: 21 | G7: 21.007 | H7: 3
A8: 2019-03-16 | B8: CH Hersant | C8: 39 | D8: 39.008 | E8: 1 | F8: 25 | G8: 25.008 | H8: 1
A9: 2019-04-06 | B9: Disney | C9: 18 | D9: 18.009 | E9: 7 | F9: 6 | G9: 6.009 | H9: 7
A10: 2019-06-07 | B10: Isle Adam | C10: 36 | D10: 36.01 | E10: 2 | F10: 21 | G10: 21.01 | H10: 2
A11: 2019-06-22 | B11: Golf Parc Hersant | C11: 32 | D11: 32.011 | E11: 4 | F11: 18 | G11: 18.011 | H11: 4
D12: 0.012 | E12: 25 | G12: 0.012 | H12: 25
D13: 0.013 | E13: 24 | G13: 0.013 | H13: 24
D14: 0.014 | E14: 23 | G14: 0.014 | H14: 23
D15: 0.015 | E15: 22 | G15: 0.015 | H15: 22
D16: 0.016 | E16: 21 | G16: 0.016 | H16: 21
D17: 0.017 | E17: 20 | G17: 0.017 | H17: 20
D18: 0.018 | E18: 19 | G18: 0.018 | H18: 19
D19: 0.019 | E19: 18 | G19: 0.019 | H19: 18
D20: 0.02 | E20: 17 | G20: 0.02 | H20: 17
D21: 0.021 | E21: 16 | G21: 0.021 | H21: 16
D22: 0.022 | E22: 15 | G22: 0.022 | H22: 15
D23: 0.023 | E23: 14 | G23: 0.023 | H23: 14
D24: 0.024 | E24: 13 | G24: 0.024 | H24: 13
D25: 0.025 | E25: 12 | G25: 0.025 | H25: 12
D26: 0.026 | E26: 11 | G26: 0.026 | H26: 11
D27: 0.027 | E27: 10 | G27: 0.027 | H27: 10
D28: 0.028 | E28: 9 | G28: 0.028 | H28: 9
B29: Cumul total | C29: =SUM(C4:C28) -> 242 | F29: =SUM(F4:F28) -> 131
B30: 5 meilleurs scores | C30: =INDEX(C4:C28,MATCH(1,E4:E28,0))+INDEX(C4:C28,MATCH(2,E4:E28,0))+INDEX(C4:C28,MATCH(3,E4:E28,0))+INDEX(C4:C28,MATCH(4,E4:E28,0))+INDEX(C4:C28,MATCH(5,E4:E28,0)) -> 174 | F30: =INDEX(F4:F28,MATCH(1,H4:H28,0))+INDEX(F4:F28,MATCH(2,H4:H28,0))+INDEX(F4:F28,MATCH(3,H4:H28,0))+INDEX(F4:F28,MATCH(4,H4:H28,0))+INDEX(F4:F28,MATCH(5,H4:H28,0)) -> 103

Sheet PHULPIN_Brigitte
A1: PHULPIN | B1: Brigitte | F1: =HYPERLINK("#Adhérents!A1","Retour") -> Retour
A3: Date Sortie | B3: Parcours | C3: Net | D3: Net+ | E3: Rang Net | F3: Brut | G3: Brut+ | H3: Rang Brut
A4: 2018-10-20 | B4: Cergy Vauréal | C4: 37 | D4: =C4+ROW(C4)/1000 -> 37.004 | E4: =RANK(D4,$D$4:$D$28) -> 1 | F4: 13 | G4: =F4+ROW(F4)/1000 -> 13.004 | H4: =RANK(G4,$G$4:$G$28) -> 1
D5: 0.005 | E5: =RANK(D5,$D$4:$D$28) -> 25 | G5: 0.005 | H5: =RANK(G5,$G$4:$G$28) -> 25
D6: 0.006 | E6: 24 | G6: 0.006 | H6: =RANK(G6,$G$4:$G$28) -> 24
D7: 0.007 | E7: 23 | G7: 0.007 | H7: 23
D8: 0.008 | E8: 22 | G8: 0.008 | H8: 22
D9: 0.009 | E9: 21 | G9: 0.009 | H9: 21
D10: 0.01 | E10: 20 | G10: 0.01 | H10: 20
D11: 0.011 | E11: 19 | G11: 0.011 | H11: 19
D12: 0.012 | E12: 18 | G12: 0.012 | H12: 18
D13: 0.013 | E13: 17 | G13: 0.013 | H13: 17
D14: =C14+ROW(C14)/1000 -> 0.014 | E14: 16 | G14: 0.014 | H14: 16
D15: 0.015 | E15: 15 | G15: 0.015 | H15: 15
D16: 0.016 | E16: 14 | G16: 0.016 | H16: 14
D17: 0.017 | E17: 13 | G17: 0.017 | H17: 13
D18: =C18+ROW(C18)/1000 -> 0.018 | E18: 12 | G18: 0.018 | H18: 12
D19: 0.019 | E19: 11 | G19: 0.019 | H19: 11
D20: 0.02 | E20: 10 | G20: 0.02 | H20: 10
D21: 0.021 | E21: 9 | G21: 0.021 | H21: 9
D22: 0.022 | E22: 8 | G22: 0.022 | H22: 8
D23: 0.023 | E23: 7 | G23: 0.023 | H23: 7
D24: 0.024 | E24: 6 | G24: 0.024 | H24: 6
D25: 0.025 | E25: 5 | G25: 0.025 | H25: 5
D26: 0.026 | E26: 4 | G26: 0.026 | H26: 4
D27: 0.027 | E27: 3 | G27: 0.027 | H27: 3
D28: 0.028 | E28: 2 | G28: 0.028 | H28: 2
B29: Cumul total | C29: =SUM(C4:C28) -> 37 | F29: =SUM(F4:F28) -> 13
B30: 5 meilleurs scores | C30: =INDEX(C4:C28,MATCH(1,E4:E28,0))+INDEX(C4:C28,MATCH(2,E4:E28,0))+INDEX(C4:C28,MATCH(3,E4:E28,0))+INDEX(C4:C28,MATCH(4,E4:E28,0))+INDEX(C4:C28,MATCH(5,E4:E28,0)) -> 37 | F30: =INDEX(F4:F28,MATCH(1,H4:H28,0))+INDEX(F4:F28,MATCH(2,H4:H28,0))+INDEX(F4:F28,MATCH(3,H4:H28,0))+INDEX(F4:F28,MATCH(4,H4:H28,0))+INDEX(F4:F28,MATCH(5,H4:H28,0)) -> 13

Sheet PICARD_Luc
A1: PICARD | B1: Luc | F1: =HYPERLINK("#Adhérents!A1","Retour") -> Retour
A3: Date Sortie | B3: Parcours | C3: Net | D3: Net+ | E3: Rang Net | F3: Brut | G3: Brut+ | H3: Rang Brut
A4: 2018-10-05 | B4: Isle Adam | C4: 18 | D4: =C4+ROW(C4)/1000 -> 18.004 | E4: =RANK(D4,$D$4:$D$28) -> 3 | F4: 1 | G4: =F4+ROW(F4)/1000 -> 1.004 | H4: =RANK(G4,$G$4:$G$28) -> 4
A5: 2018-11-10 | B5: Fourqueux | C5: 23 | D5: 23.005 | E5: =RANK(D5,$D$4:$D$28) -> 2 | F5: 3 | G5: 3.005 | H5: =RANK(G5,$G$4:$G$28) -> 3
A6: 2019-04-18 | B6: Rueil virtuel | C6: 9 | D6: 9.006 | E6: 4 | F6: 3 | G6: 3.006 | H6: =RANK(G6,$G$4:$G$28) -> 2
A7: 2019-06-22 | B7: Golf Parc Hersant | C7: 28 | D7: 28.007 | E7: 1 | F7: 3 | G7: 3.007 | H7: 1
D8: 0.008 | E8: 25 | G8: 0.008 | H8: 25
D9: 0.009 | E9: 24 | G9: 0.009 | H9: 24
D10: 0.01 | E10: 23 | G10: 0.01 | H10: 23
D11: 0.011 | E11: 22 | G11: 0.011 | H11: 22
D12: 0.012 | E12: 21 | G12: 0.012 | H12: 21
D13: 0.013 | E13: 20 | G13: 0.013 | H13: 20
D14: =C14+ROW(C14)/1000 -> 0.014 | E14: 19 | G14: 0.014 | H14: 19
D15: 0.015 | E15: 18 | G15: 0.015 | H15: 18
D16: 0.016 | E16: 17 | G16: 0.016 | H16: 17
D17: 0.017 | E17: 16 | G17: 0.017 | H17: 16
D18: =C18+ROW(C18)/1000 -> 0.018 | E18: 15 | G18: 0.018 | H18: 15
D19: 0.019 | E19: 14 | G19: 0.019 | H19: 14
D20: 0.02 | E20: 13 | G20: 0.02 | H20: 13
D21: 0.021 | E21: 12 | G21: 0.021 | H21: 12
D22: 0.022 | E22: 11 | G22: 0.022 | H22: 11
D23: 0.023 | E23: 10 | G23: 0.023 | H23: 10
D24: 0.024 | E24: 9 | G24: 0.024 | H24: 9
D25: 0.025 | E25: 8 | G25: 0.025 | H25: 8
D26: 0.026 | E26: 7 | G26: 0.026 | H26: 7
D27: 0.027 | E27: 6 | G27: 0.027 | H27: 6
D28: 0.028 | E28: 5 | G28: 0.028 | H28: 5
B29: Cumul total | C29: =SUM(C4:C28) -> 78 | F29: =SUM(F4:F28) -> 10
B30: 5 meilleurs scores | C30: =INDEX(C4:C28,MATCH(1,E4:E28,0))+INDEX(C4:C28,MATCH(2,E4:E28,0))+INDEX(C4:C28,MATCH(3,E4:E28,0))+INDEX(C4:C28,MATCH(4,E4:E28,0))+INDEX(C4:C28,MATCH(5,E4:E28,0)) -> 78 | F30: =INDEX(F4:F28,MATCH(1,H4:H28,0))+INDEX(F4:F28,MATCH(2,H4:H28,0))+INDEX(F4:F28,MATCH(3,H4:H28,0))+INDEX(F4:F28,MATCH(4,H4:H28,0))+INDEX(F4:F28,MATCH(5,H4:H28,0)) -> 10

Sheet PIERRE_Philippe
A1: PIERRE | B1: Philippe | F1: =HYPERLINK("#Adhérents!A1","Retour") -> Retour
A3: Date Sortie | B3: Parcours | C3: Net | D3: Net+ | E3: Rang Net | F3: Brut | G3: Brut+ | H3: Rang Brut
A4: 2018-09-21 | B4: Les Aisses | C4: 29 | D4: =C4+ROW(C4)/1000 -> 29.004 | E4: =RANK(D4,$D$4:$D$28) -> 3 | F4: 6 | G4: =F4+ROW(F4)/1000 -> 6.004 | H4: =RANK(G4,$G$4:$G$28) -> 7
A5: 2018-09-22 | B5: Sologne | C5: 18 | D5: 18.005 | E5: =RANK(D5,$D$4:$D$28) -> 8 | F5: 6 | G5: 6.005 | H5: =RANK(G5,$G$4:$G$28) -> 6
A6: 2018-11-10 | B6: Fourqueux | C6: 23 | D6: 23.006 | E6: 4 | F6: 5 | G6: 5.006 | H6: =RANK(G6,$G$4:$G$28) -> 8
A7: 2019-02-10 | B7: Aigle | C7: 18 | D7: 18.007 | E7: 7 | F7: 6 | G7: 6.007 | H7: 5
A8: 2019-04-06 | B8: Disney | C8: 18 | D8: 18.008 | E8: 6 | F8: 6 | G8: 6.008 | H8: 4
A9: 2019-03-23 | B9: Tremblay sur Mauldre | C9: 18 | D9: 18.009 | E9: 5 | F9: 6 | G9: 6.009 | H9: 3
A10: 2019-06-07 | B10: Isle Adam | C10: 34 | D10: 34.01 | E10: 1 | F10: 10 | G10: 10.01 | H10: 2
A11: 2019-06-28 | B11: Vaucouleurs Rivière | C11: 30 | D11: 30.011 | E11: 2 | F11: 11 | G11: 11.011 | H11: 1
D12: 0.012 | E12: 25 | G12: 0.012 | H12: 25
D13: 0.013 | E13: 24 | G13: 0.013 | H13: 24
D14: 0.014 | E14: 23 | G14: 0.014 | H14: 23
D15: 0.015 | E15: 22 | G15: 0.015 | H15: 22
D16: 0.016 | E16: 21 | G16: 0.016 | H16: 21
D17: 0.017 | E17: 20 | G17: 0.017 | H17: 20
D18: 0.018 | E18: 19 | G18: 0.018 | H18: 19
D19: 0.019 | E19: 18 | G19: 0.019 | H19: 18
D20: 0.02 | E20: 17 | G20: 0.02 | H20: 17
D21: 0.021 | E21: 16 | G21: 0.021 | H21: 16
D22: 0.022 | E22: 15 | G22: 0.022 | H22: 15
D23: 0.023 | E23: 14 | G23: 0.023 | H23: 14
D24: 0.024 | E24: 13 | G24: 0.024 | H24: 13
D25: 0.025 | E25: 12 | G25: 0.025 | H25: 12
D26: 0.026 | E26: 11 | G26: 0.026 | H26: 11
D27: 0.027 | E27: 10 | G27: 0.027 | H27: 10
D28: 0.028 | E28: 9 | G28: 0.028 | H28: 9
B29: Cumul total | C29: =SUM(C4:C28) -> 188 | F29: =SUM(F4:F28) -> 56
B30: 5 meilleurs scores | C30: =INDEX(C4:C28,MATCH(1,E4:E28,0))+INDEX(C4:C28,MATCH(2,E4:E28,0))+INDEX(C4:C28,MATCH(3,E4:E28,0))+INDEX(C4:C28,MATCH(4,E4:E28,0))+INDEX(C4:C28,MATCH(5,E4:E28,0)) -> 134 | F30: =INDEX(F4:F28,MATCH(1,H4:H28,0))+INDEX(F4:F28,MATCH(2,H4:H28,0))+INDEX(F4:F28,MATCH(3,H4:H28,0))+INDEX(F4:F28,MATCH(4,H4:H28,0))+INDEX(F4:F28,MATCH(5,H4:H28,0)) -> 39

Sheet PONSOT-JACQUIN_Catherine
A1: PONSOT-JACQUIN | B1: Catherine | F1: =HYPERLINK("#Adhérents!A1","Retour") -> Retour
A3: Date Sortie | B3: Parcours | C3: Net | D3: Net+ | E3: Rang Net | F3: Brut | G3: Brut+ | H3: Rang Brut
A4: 2019-06-20 | B4: Rueil | C4: 9 | D4: =C4+ROW(C4)/1000 -> 9.004 | E4: =RANK(D4,$D$4:$D$28) -> 1 | F4: 3 | G4: =F4+ROW(F4)/1000 -> 3.004 | H4: =RANK(G4,$G$4:$G$28) -> 1
A5: 2019-06-22 | B5: Golf Parc Hersant | D5: 0.005 | E5: =RANK(D5,$D$4:$D$28) -> 25 | G5: 0.005 | H5: =RANK(G5,$G$4:$G$28) -> 25
D6: 0.006 | E6: 24 | G6: 0.006 | H6: =RANK(G6,$G$4:$G$28) -> 24
D7: 0.007 | E7: 23 | G7: 0.007 | H7: 23
D8: 0.008 | E8: 22 | G8: 0.008 | H8: 22
D9: 0.009 | E9: 21 | G9: 0.009 | H9: 21
D10: 0.01 | E10: 20 | G10: 0.01 | H10: 20
D11: 0.011 | E11: 19 | G11: 0.011 | H11: 19
D12: 0.012 | E12: 18 | G12: 0.012 | H12: 18
D13: 0.013 | E13: 17 | G13: 0.013 | H13: 17
D14: 0.014 | E14: 16 | G14: 0.014 | H14: 16
D15: 0.015 | E15: 15 | G15: 0.015 | H15: 15
D16: 0.016 | E16: 14 | G16: 0.016 | H16: 14
D17: 0.017 | E17: 13 | G17: 0.017 | H17: 13
D18: 0.018 | E18: 12 | G18: 0.018 | H18: 12
D19: 0.019 | E19: 11 | G19: 0.019 | H19: 11
D20: 0.02 | E20: 10 | G20: 0.02 | H20: 10
D21: 0.021 | E21: 9 | G21: 0.021 | H21: 9
D22: 0.022 | E22: 8 | G22: 0.022 | H22: 8
D23: 0.023 | E23: 7 | G23: 0.023 | H23: 7
D24: 0.024 | E24: 6 | G24: 0.024 | H24: 6
D25: 0.025 | E25: 5 | G25: 0.025 | H25: 5
D26: 0.026 | E26: 4 | G26: 0.026 | H26: 4
D27: 0.027 | E27: 3 | G27: 0.027 | H27: 3
D28: 0.028 | E28: 2 | G28: 0.028 | H28: 2
B29: Cumul total | C29: =SUM(C4:C28) -> 9 | F29: =SUM(F4:F28) -> 3
B30: 5 meilleurs scores | C30: =INDEX(C4:C28,MATCH(1,E4:E28,0))+INDEX(C4:C28,MATCH(2,E4:E28,0))+INDEX(C4:C28,MATCH(3,E4:E28,0))+INDEX(C4:C28,MATCH(4,E4:E28,0))+INDEX(C4:C28,MATCH(5,E4:E28,0)) -> 9 | F30: =INDEX(F4:F28,MATCH(1,H4:H28,0))+INDEX(F4:F28,MATCH(2,H4:H28,0))+INDEX(F4:F28,MATCH(3,H4:H28,0))+INDEX(F4:F28,MATCH(4,H4:H28,0))+INDEX(F4:F28,MATCH(5,H4:H28,0)) -> 3

Sheet RIONDET_Jean-Claude
A1: RIONDET | B1: Jean-Claude | F1: =HYPERLINK("#Adhérents!A1","Retour") -> Retour
A3: Date Sortie | B3: Parcours | C3: Net | D3: Net+ | E3: Rang Net | F3: Brut | G3: Brut+ | H3: Rang Brut
A4: 2018-09-09 | B4: Feucherolles | C4: 43 | D4: =C4+ROW(C4)/1000 -> 43.004 | E4: =RANK(D4,$D$4:$D$28) -> 1 | F4: 9 | G4: =F4+ROW(F4)/1000 -> 9.004 | H4: =RANK(G4,$G$4:$G$28) -> 1
A5: 2018-09-21 | B5: Les Aisses | C5: 23 | D5: 23.005 | E5: =RANK(D5,$D$4:$D$28) -> 3 | F5: 3 | G5: 3.005 | H5: =RANK(G5,$G$4:$G$28) -> 8
A6: 2018-09-22 | B6: Sologne | C6: 18 | D6: 18.006 | E6: 7 | F6: 6 | G6: 6.006 | H6: =RANK(G6,$G$4:$G$28) -> 5
A7: 2018-10-20 | B7: Cergy Vauréal | C7: 33 | D7: 33.007 | E7: 2 | F7: 7 | G7: 7.007 | H7: 2
A8: 2019-02-10 | B8: Aigle | C8: 18 | D8: 18.008 | E8: 6 | F8: 6 | G8: 6.008 | H8: 4
A9: 2019-04-28 | B9: Marivaux | C9: 17 | D9: 17.009 | E9: 8 | F9: 5 | G9: 5.009 | H9: 6
A10: 2019-03-23 | B10: Tremblay sur Mauldre | C10: 18 | D10: 18.01 | E10: 5 | F10: 6 | G10: 6.01 | H10: 3
A11: 2019-06-07 | B11: Isle Adam | C11: 19 | D11: 19.011 | E11: 4 | F11: 3 | G11: 3.011 | H11: 7
D12: 0.012 | E12: 25 | G12: 0.012 | H12: 25
D13: 0.013 | E13: 24 | G13: 0.013 | H13: 24
D14: =C14+ROW(C14)/1000 -> 0.014 | E14: 23 | G14: 0.014 | H14: 23
D15: 0.015 | E15: 22 | G15: 0.015 | H15: 22
D16: 0.016 | E16: 21 | G16: 0.016 | H16: 21
D17: 0.017 | E17: 20 | G17: 0.017 | H17: 20
D18: =C18+ROW(C18)/1000 -> 0.018 | E18: 19 | G18: 0.018 | H18: 19
D19: 0.019 | E19: 18 | G19: 0.019 | H19: 18
D20: 0.02 | E20: 17 | G20: 0.02 | H20: 17
D21: 0.021 | E21: 16 | G21: 0.021 | H21: 16
D22: 0.022 | E22: 15 | G22: 0.022 | H22: 15
D23: 0.023 | E23: 14 | G23: 0.023 | H23: 14
D24: 0.024 | E24: 13 | G24: 0.024 | H24: 13
D25: 0.025 | E25: 12 | G25: 0.025 | H25: 12
D26: 0.026 | E26: 11 | G26: 0.026 | H26: 11
D27: 0.027 | E27: 10 | G27: 0.027 | H27: 10
D28: 0.028 | E28: 9 | G28: 0.028 | H28: 9
B29: Cumul total | C29: =SUM(C4:C28) -> 189 | F29: =SUM(F4:F28) -> 45
B30: 5 meilleurs scores | C30: =INDEX(C4:C28,MATCH(1,E4:E28,0))+INDEX(C4:C28,MATCH(2,E4:E28,0))+INDEX(C4:C28,MATCH(3,E4:E28,0))+INDEX(C4:C28,MATCH(4,E4:E28,0))+INDEX(C4:C28,MATCH(5,E4:E28,0)) -> 136 | F30: =INDEX(F4:F28,MATCH(1,H4:H28,0))+INDEX(F4:F28,MATCH(2,H4:H28,0))+INDEX(F4:F28,MATCH(3,H4:H28,0))+INDEX(F4:F28,MATCH(4,H4:H28,0))+INDEX(F4:F28,MATCH(5,H4:H28,0)) -> 34

Sheet ROBERT_Valérie
A1: ROBERT | B1: Valérie | F1: =HYPERLINK("#Adhérents!A1","Retour") -> Retour
A3: Date Sortie | B3: Parcours | C3: Net | D3: Net+ | E3: Rang Net | F3: Brut | G3: Brut+ | H3: Rang Brut
A4: 2018-09-21 | B4: Les Aisses | C4: 21 | D4: =C4+ROW(C4)/1000 -> 21.004 | E4: =RANK(D4,$D$4:$D$28) -> 8 | F4: 4 | G4: =F4+ROW(F4)/1000 -> 4.004 | H4: =RANK(G4,$G$4:$G$28) -> 13
A5: 2018-09-22 | B5: Sologne | C5: 18 | D5: 18.005 | E5: =RANK(D5,$D$4:$D$28) -> 13 | F5: 6 | G5: 6.005 | H5: =RANK(G5,$G$4:$G$28) -> 12
A6: 2018-10-05 | B6: Isle Adam | C6: 30 | D6: 30.006 | E6: 4 | F6: 9 | G6: 9.006 | H6: =RANK(G6,$G$4:$G$28) -> 6
A7: 2018-10-20 | B7: Cergy Vauréal | C7: 32 | D7: 32.007 | E7: 2 | F7: 9 | G7: 9.007 | H7: 5
A8: 2019-02-10 | B8: Aigle | C8: 18 | D8: 18.008 | E8: 12 | F8: 6 | G8: 6.008 | H8: 11
A9: 2019-03-10 | B9: National - Aigle | C9: 18 | D9: 18.009 | E9: 11 | F9: 6 | G9: 6.009 | H9: 10
A10: 2018-12-13 | B10: Rueil virtuel | C10: 9 | D10: 9.01 | E10: 17 | F10: 3 | G10: 3.01 | H10: 17
A11: 2019-04-06 | B11: Disney | C11: 18 | D11: 18.011 | E11: 10 | F11: 6 | G11: 6.011 | H11: 9
A12: 2019-04-18 | B12: Rueil virtuel | C12: 9 | D12: 9.012 | E12: 16 | F12: 3 | G12: 3.012 | H12: 16
A13: 2019-04-25 | B13: Rueil | C13: 9 | D13: 9.013 | E13: 15 | F13: 3 | G13: 3.013 | H13: 15
A14: 2019-04-28 | B14: Marivaux | C14: 34 | D14: =C14+ROW(C14)/1000 -> 34.014 | E14: 1 | F14: 11 | G14: 11.014 | H14: 3
A15: 2019-05-24 | B15: Haut Poitou | C15: 18 | D15: 18.015 | E15: 9 | F15: 6 | G15: 6.015 | H15: 8
A16: 2019-05-25 | B16: Mignaloux | C16: 31 | D16: 31.016 | E16: 3 | F16: 7 | G16: 7.016 | H16: 7
A17: 2019-06-07 | B17: Isle Adam | C17: 29 | D17: 29.017 | E17: 6 | F17: 12 | G17: 12.017 | H17: 1
A18: 2019-06-20 | B18: Rueil | C18: 9 | D18: =C18+ROW(C18)/1000 -> 9.018 | E18: 14 | F18: 3 | G18: 3.018 | H18: 14
A19: 2019-06-22 | B19: Golf Parc Hersant | C19: 28 | D19: 28.019 | E19: 7 | F19: 9 | G19: 9.019 | H19: 4
A20: 2019-06-28 | B20: Vaucouleurs Rivière | C20: 29 | D20: 29.02 | E20: 5 | F20: 11 | G20: 11.02 | H20: 2
D21: 0.021 | E21: 25 | G21: 0.021 | H21: 25
D22: 0.022 | E22: 24 | G22: 0.022 | H22: 24
D23: 0.023 | E23: 23 | G23: 0.023 | H23: 23
D24: 0.024 | E24: 22 | G24: 0.024 | H24: 22
D25: 0.025 | E25: 21 | G25: 0.025 | H25: 21
D26: 0.026 | E26: 20 | G26: 0.026 | H26: 20
D27: 0.027 | E27: 19 | G27: 0.027 | H27: 19
D28: 0.028 | E28: 18 | G28: 0.028 | H28: 18
B29: Cumul total | C29: =SUM(C4:C28) -> 360 | F29: =SUM(F4:F28) -> 114
B30: 5 meilleurs scores | C30: =INDEX(C4:C28,MATCH(1,E4:E28,0))+INDEX(C4:C28,MATCH(2,E4:E28,0))+INDEX(C4:C28,MATCH(3,E4:E28,0))+INDEX(C4:C28,MATCH(4,E4:E28,0))+INDEX(C4:C28,MATCH(5,E4:E28,0)) -> 156 | F30: =INDEX(F4:F28,MATCH(1,H4:H28,0))+INDEX(F4:F28,MATCH(2,H4:H28,0))+INDEX(F4:F28,MATCH(3,H4:H28,0))+INDEX(F4:F28,MATCH(4,H4:H28,0))+INDEX(F4:F28,MATCH(5,H4:H28,0)) -> 52

Sheet ROUSSEAU_Jean-Marc
A1: ROUSSEAU | B1: Jean-Marc | F1: =HYPERLINK("#Adhérents!A1","Retour") -> Retour
A3: Date Sortie | B3: Parcours | C3: Net | D3: Net+ | E3: Rang Net | F3: Brut | G3: Brut+ | H3: Rang Brut
A4: 2019-04-09 | B4: Rueil | C4: 9 | D4: =C4+ROW(C4)/1000 -> 9.004 | E4: =RANK(D4,$D$4:$D$28) -> 4 | F4: 3 | G4: =F4+ROW(F4)/1000 -> 3.004 | H4: =RANK(G4,$G$4:$G$28) -> 4
A5: 2019-04-25 | B5: Rueil | C5: 9 | D5: 9.005 | E5: =RANK(D5,$D$4:$D$28) -> 3 | F5: 3 | G5: 3.005 | H5: =RANK(G5,$G$4:$G$28) -> 3
A6: 2019-05-23 | B6: Rueil | C6: 9 | D6: 9.006 | E6: 2 | F6: 3 | G6: 3.006 | H6: =RANK(G6,$G$4:$G$28) -> 2
A7: 2019-06-20 | B7: Rueil | C7: 9 | D7: 9.007 | E7: 1 | F7: 3 | G7: 3.007 | H7: 1
D8: 0.008 | E8: 25 | G8: 0.008 | H8: 25
D9: 0.009 | E9: 24 | G9: 0.009 | H9: 24
D10: 0.01 | E10: 23 | G10: 0.01 | H10: 23
D11: 0.011 | E11: 22 | G11: 0.011 | H11: 22
D12: 0.012 | E12: 21 | G12: 0.012 | H12: 21
D13: 0.013 | E13: 20 | G13: 0.013 | H13: 20
D14: 0.014 | E14: 19 | G14: 0.014 | H14: 19
D15: 0.015 | E15: 18 | G15: 0.015 | H15: 18
D16: 0.016 | E16: 17 | G16: 0.016 | H16: 17
D17: 0.017 | E17: 16 | G17: 0.017 | H17: 16
D18: 0.018 | E18: 15 | G18: 0.018 | H18: 15
D19: 0.019 | E19: 14 | G19: 0.019 | H19: 14
D20: 0.02 | E20: 13 | G20: 0.02 | H20: 13
D21: 0.021 | E21: 12 | G21: 0.021 | H21: 12
D22: 0.022 | E22: 11 | G22: 0.022 | H22: 11
D23: 0.023 | E23: 10 | G23: 0.023 | H23: 10
D24: 0.024 | E24: 9 | G24: 0.024 | H24: 9
D25: 0.025 | E25: 8 | G25: 0.025 | H25: 8
D26: 0.026 | E26: 7 | G26: 0.026 | H26: 7
D27: 0.027 | E27: 6 | G27: 0.027 | H27: 6
D28: 0.028 | E28: 5 | G28: 0.028 | H28: 5
B29: Cumul total | C29: =SUM(C4:C28) -> 36 | F29: =SUM(F4:F28) -> 12
B30: 5 meilleurs scores | C30: =INDEX(C4:C28,MATCH(1,E4:E28,0))+INDEX(C4:C28,MATCH(2,E4:E28,0))+INDEX(C4:C28,MATCH(3,E4:E28,0))+INDEX(C4:C28,MATCH(4,E4:E28,0))+INDEX(C4:C28,MATCH(5,E4:E28,0)) -> 36 | F30: =INDEX(F4:F28,MATCH(1,H4:H28,0))+INDEX(F4:F28,MATCH(2,H4:H28,0))+INDEX(F4:F28,MATCH(3,H4:H28,0))+INDEX(F4:F28,MATCH(4,H4:H28,0))+INDEX(F4:F28,MATCH(5,H4:H28,0)) -> 12

Sheet ROME_Virginie
A1: ROME | B1: Virginie | F1: =HYPERLINK("#Adhérents!A1","Retour") -> Retour
A3: Date Sortie | B3: Parcours | C3: Net | D3: Net+ | E3: Rang Net | F3: Brut | G3: Brut+ | H3: Rang Brut
A4: 2018-09-21 | B4: Les Aisses | C4: 33 | D4: =C4+ROW(C4)/1000 -> 33.004 | E4: =RANK(D4,$D$4:$D$28) -> 1 | F4: 5 | G4: =F4+ROW(F4)/1000 -> 5.004 | H4: =RANK(G4,$G$4:$G$28) -> 3
A5: 2018-09-22 | B5: Sologne | C5: 18 | D5: 18.005 | E5: =RANK(D5,$D$4:$D$28) -> 3 | F5: 6 | G5: 6.005 | H5: =RANK(G5,$G$4:$G$28) -> 2
A6: 2018-10-05 | B6: Isle Adam | C6: 29 | D6: 29.006 | E6: 2 | F6: 6 | G6: 6.006 | H6: =RANK(G6,$G$4:$G$28) -> 1
D7: 0.007 | E7: 25 | G7: 0.007 | H7: 25
D8: 0.008 | E8: 24 | G8: 0.008 | H8: 24
D9: 0.009 | E9: 23 | G9: 0.009 | H9: 23
D10: 0.01 | E10: 22 | G10: 0.01 | H10: 22
D11: 0.011 | E11: 21 | G11: 0.011 | H11: 21
D12: 0.012 | E12: 20 | G12: 0.012 | H12: 20
D13: 0.013 | E13: 19 | G13: 0.013 | H13: 19
D14: =C14+ROW(C14)/1000 -> 0.014 | E14: 18 | G14: 0.014 | H14: 18
D15: 0.015 | E15: 17 | G15: 0.015 | H15: 17
D16: 0.016 | E16: 16 | G16: 0.016 | H16: 16
D17: 0.017 | E17: 15 | G17: 0.017 | H17: 15
D18: =C18+ROW(C18)/1000 -> 0.018 | E18: 14 | G18: 0.018 | H18: 14
D19: 0.019 | E19: 13 | G19: 0.019 | H19: 13
D20: 0.02 | E20: 12 | G20: 0.02 | H20: 12
D21: 0.021 | E21: 11 | G21: 0.021 | H21: 11
D22: 0.022 | E22: 10 | G22: 0.022 | H22: 10
D23: 0.023 | E23: 9 | G23: 0.023 | H23: 9
D24: 0.024 | E24: 8 | G24: 0.024 | H24: 8
D25: 0.025 | E25: 7 | G25: 0.025 | H25: 7
D26: 0.026 | E26: 6 | G26: 0.026 | H26: 6
D27: 0.027 | E27: 5 | G27: 0.027 | H27: 5
D28: 0.028 | E28: 4 | G28: 0.028 | H28: 4
B29: Cumul total | C29: =SUM(C4:C28) -> 80 | F29: =SUM(F4:F28) -> 17
B30: 5 meilleurs scores | C30: =INDEX(C4:C28,MATCH(1,E4:E28,0))+INDEX(C4:C28,MATCH(2,E4:E28,0))+INDEX(C4:C28,MATCH(3,E4:E28,0))+INDEX(C4:C28,MATCH(4,E4:E28,0))+INDEX(C4:C28,MATCH(5,E4:E28,0)) -> 80 | F30: =INDEX(F4:F28,MATCH(1,H4:H28,0))+INDEX(F4:F28,MATCH(2,H4:H28,0))+INDEX(F4:F28,MATCH(3,H4:H28,0))+INDEX(F4:F28,MATCH(4,H4:H28,0))+INDEX(F4:F28,MATCH(5,H4:H28,0)) -> 17

Sheet SZAFIR_Nathalie
A1: SZAFIR | B1: Nathalie | F1: =HYPERLINK("#Adhérents!A1","Retour") -> Retour
A3: Date Sortie | B3: Parcours | C3: Net | D3: Net+ | E3: Rang Net | F3: Brut | G3: Brut+ | H3: Rang Brut
A4: 2018-10-05 | B4: Isle Adam | C4: 25 | D4: =C4+ROW(C4)/1000 -> 25.004 | E4: =RANK(D4,$D$4:$D$28) -> 2 | F4: 1 | G4: =F4+ROW(F4)/1000 -> 1.004 | H4: =RANK(G4,$G$4:$G$28) -> 3
A5: 2018-10-20 | B5: Cergy Vauréal | C5: 33 | D5: 33.005 | E5: =RANK(D5,$D$4:$D$28) -> 1 | F5: 2 | G5: 2.005 | H5: =RANK(G5,$G$4:$G$28) -> 2
A6: 2019-03-23 | B6: Tremblay sur Mauldre | C6: 18 | D6: 18.006 | E6: 3 | F6: 6 | G6: 6.006 | H6: =RANK(G6,$G$4:$G$28) -> 1
D7: 0.007 | E7: 25 | G7: 0.007 | H7: 25
D8: 0.008 | E8: 24 | G8: 0.008 | H8: 24
D9: 0.009 | E9: 23 | G9: 0.009 | H9: 23
D10: 0.01 | E10: 22 | G10: 0.01 | H10: 22
D11: 0.011 | E11: 21 | G11: 0.011 | H11: 21
D12: 0.012 | E12: 20 | G12: 0.012 | H12: 20
D13: 0.013 | E13: 19 | G13: 0.013 | H13: 19
D14: 0.014 | E14: 18 | G14: 0.014 | H14: 18
D15: 0.015 | E15: 17 | G15: 0.015 | H15: 17
D16: 0.016 | E16: 16 | G16: 0.016 | H16: 16
D17: 0.017 | E17: 15 | G17: 0.017 | H17: 15
D18: 0.018 | E18: 14 | G18: 0.018 | H18: 14
D19: 0.019 | E19: 13 | G19: 0.019 | H19: 13
D20: 0.02 | E20: 12 | G20: 0.02 | H20: 12
D21: 0.021 | E21: 11 | G21: 0.021 | H21: 11
D22: 0.022 | E22: 10 | G22: 0.022 | H22: 10
D23: 0.023 | E23: 9 | G23: 0.023 | H23: 9
D24: 0.024 | E24: 8 | G24: 0.024 | H24: 8
D25: 0.025 | E25: 7 | G25: 0.025 | H25: 7
D26: 0.026 | E26: 6 | G26: 0.026 | H26: 6
D27: 0.027 | E27: 5 | G27: 0.027 | H27: 5
D28: 0.028 | E28: 4 | G28: 0.028 | H28: 4
B29: Cumul total | C29: =SUM(C4:C28) -> 76 | F29: =SUM(F4:F28) -> 9
B30: 5 meilleurs scores | C30: =INDEX(C4:C28,MATCH(1,E4:E28,0))+INDEX(C4:C28,MATCH(2,E4:E28,0))+INDEX(C4:C28,MATCH(3,E4:E28,0))+INDEX(C4:C28,MATCH(4,E4:E28,0))+INDEX(C4:C28,MATCH(5,E4:E28,0)) -> 76 | F30: =INDEX(F4:F28,MATCH(1,H4:H28,0))+INDEX(F4:F28,MATCH(2,H4:H28,0))+INDEX(F4:F28,MATCH(3,H4:H28,0))+INDEX(F4:F28,MATCH(4,H4:H28,0))+INDEX(F4:F28,MATCH(5,H4:H28,0)) -> 9

Sheet SZAFIR_Patrick
A1: SZAFIR | B1: Patrick | F1: =HYPERLINK("#Adhérents!A1","Retour") -> Retour
A3: Date Sortie | B3: Parcours | C3: Net | D3: Net+ | E3: Rang Net | F3: Brut | G3: Brut+ | H3: Rang Brut
A4: 2018-09-09 | B4: Feucherolles | C4: 31 | D4: =C4+ROW(C4)/1000 -> 31.004 | E4: =RANK(D4,$D$4:$D$28) -> 4 | F4: 9 | G4: =F4+ROW(F4)/1000 -> 9.004 | H4: =RANK(G4,$G$4:$G$28) -> 6
A5: 2018-10-20 | B5: Cergy Vauréal | C5: 33 | D5: 33.005 | E5: =RANK(D5,$D$4:$D$28) -> 3 | F5: 16 | G5: 16.005 | H5: =RANK(G5,$G$4:$G$28) -> 2
A6: 2018-11-10 | B6: Fourqueux | C6: 25 | D6: 25.006 | E6: 6 | F6: 8 | G6: 8.006 | H6: =RANK(G6,$G$4:$G$28) -> 8
A7: 2018-11-24 | B7: CH Hersant | C7: 18 | D7: 18.007 | E7: 12 | F7: 6 | G7: 6.007 | H7: 12
A8: 2019-02-10 | B8: Aigle | C8: 18 | D8: 18.008 | E8: 11 | F8: 6 | G8: 6.008 | H8: 11
A9: 2019-03-16 | B9: CH Hersant | C9: 23 | D9: 23.009 | E9: 8 | F9: 11 | G9: 11.009 | H9: 4
A10: 2019-04-18 | B10: Rueil virtuel | C10: 9 | D10: 9.01 | E10: 13 | F10: 3 | G10: 3.01 | H10: 13
A11: 2019-04-28 | B11: Marivaux | C11: 33 | D11: 33.011 | E11: 2 | F11: 13 | G11: 13.011 | H11: 3
A12: 2019-03-23 | B12: Tremblay sur Mauldre | C12: 18 | D12: 18.012 | E12: 10 | F12: 6 | G12: 6.012 | H12: 10
A13: 2019-05-24 | B13: Haut Poitou | C13: 18 | D13: 18.013 | E13: 9 | F13: 6 | G13: 6.013 | H13: 9
A14: 2019-05-25 | B14: Mignaloux | C14: 38 | D14: =C14+ROW(C14)/1000 -> 38.014 | E14: 1 | F14: 16 | G14: 16.014 | H14: 1
A15: 2019-06-22 | B15: Golf Parc Hersant | C15: 24 | D15: 24.015 | E15: 7 | F15: 10 | G15: 10.015 | H15: 5
A16: 2019-06-28 | B16: Vaucouleurs Rivière | C16: 25 | D16: 25.016 | E16: 5 | F16: 8 | G16: 8.016 | H16: 7
D17: 0.017 | E17: 25 | G17: 0.017 | H17: 25
D18: =C18+ROW(C18)/1000 -> 0.018 | E18: 24 | G18: 0.018 | H18: 24
D19: 0.019 | E19: 23 | G19: 0.019 | H19: 23
D20: 0.02 | E20: 22 | G20: 0.02 | H20: 22
D21: 0.021 | E21: 21 | G21: 0.021 | H21: 21
D22: 0.022 | E22: 20 | G22: 0.022 | H22: 20
D23: 0.023 | E23: 19 | G23: 0.023 | H23: 19
D24: 0.024 | E24: 18 | G24: 0.024 | H24: 18
D25: 0.025 | E25: 17 | G25: 0.025 | H25: 17
D26: 0.026 | E26: 16 | G26: 0.026 | H26: 16
D27: 0.027 | E27: 15 | G27: 0.027 | H27: 15
D28: 0.028 | E28: 14 | G28: 0.028 | H28: 14
B29: Cumul total | C29: =SUM(C4:C28) -> 313 | F29: =SUM(F4:F28) -> 118
B30: 5 meilleurs scores | C30: =INDEX(C4:C28,MATCH(1,E4:E28,0))+INDEX(C4:C28,MATCH(2,E4:E28,0))+INDEX(C4:C28,MATCH(3,E4:E28,0))+INDEX(C4:C28,MATCH(4,E4:E28,0))+INDEX(C4:C28,MATCH(5,E4:E28,0)) -> 160 | F30: =INDEX(F4:F28,MATCH(1,H4:H28,0))+INDEX(F4:F28,MATCH(2,H4:H28,0))+INDEX(F4:F28,MATCH(3,H4:H28,0))+INDEX(F4:F28,MATCH(4,H4:H28,0))+INDEX(F4:F28,MATCH(5,H4:H28,0)) -> 66

Sheet TERNEL_Cyprien
A1: TERNEL | B1: Cyprien | F1: =HYPERLINK("#Adhérents!A1","Retour") -> Retour
A3: Date Sortie | B3: Parcours | C3: Net | D3: Net+ | E3: Rang Net | F3: Brut | G3: Brut+ | H3: Rang Brut
A4: 2019-03-23 | B4: Tremblay sur Mauldre | C4: 18 | D4: =C4+ROW(C4)/1000 -> 18.004 | E4: =RANK(D4,$D$4:$D$28) -> 1 | F4: 6 | G4: =F4+ROW(F4)/1000 -> 6.004 | H4: =RANK(G4,$G$4:$G$28) -> 1
D5: 0.005 | E5: =RANK(D5,$D$4:$D$28) -> 25 | G5: 0.005 | H5: =RANK(G5,$G$4:$G$28) -> 25
D6: 0.006 | E6: 24 | G6: 0.006 | H6: =RANK(G6,$G$4:$G$28) -> 24
D7: 0.007 | E7: 23 | G7: 0.007 | H7: 23
D8: 0.008 | E8: 22 | G8: 0.008 | H8: 22
D9: 0.009 | E9: 21 | G9: 0.009 | H9: 21
D10: 0.01 | E10: 20 | G10: 0.01 | H10: 20
D11: 0.011 | E11: 19 | G11: 0.011 | H11: 19
D12: 0.012 | E12: 18 | G12: 0.012 | H12: 18
D13: 0.013 | E13: 17 | G13: 0.013 | H13: 17
D14: =C14+ROW(C14)/1000 -> 0.014 | E14: 16 | G14: 0.014 | H14: 16
D15: 0.015 | E15: 15 | G15: 0.015 | H15: 15
D16: 0.016 | E16: 14 | G16: 0.016 | H16: 14
D17: 0.017 | E17: 13 | G17: 0.017 | H17: 13
D18: =C18+ROW(C18)/1000 -> 0.018 | E18: 12 | G18: 0.018 | H18: 12
D19: 0.019 | E19: 11 | G19: 0.019 | H19: 11
D20: 0.02 | E20: 10 | G20: 0.02 | H20: 10
D21: 0.021 | E21: 9 | G21: 0.021 | H21: 9
D22: 0.022 | E22: 8 | G22: 0.022 | H22: 8
D23: 0.023 | E23: 7 | G23: 0.023 | H23: 7
D24: 0.024 | E24: 6 | G24: 0.024 | H24: 6
D25: 0.025 | E25: 5 | G25: 0.025 | H25: 5
D26: 0.026 | E26: 4 | G26: 0.026 | H26: 4
D27: 0.027 | E27: 3 | G27: 0.027 | H27: 3
D28: 0.028 | E28: 2 | G28: 0.028 | H28: 2
B29: Cumul total | C29: =SUM(C4:C28) -> 18 | F29: =SUM(F4:F28) -> 6
B30: 5 meilleurs scores | C30: =INDEX(C4:C28,MATCH(1,E4:E28,0))+INDEX(C4:C28,MATCH(2,E4:E28,0))+INDEX(C4:C28,MATCH(3,E4:E28,0))+INDEX(C4:C28,MATCH(4,E4:E28,0))+INDEX(C4:C28,MATCH(5,E4:E28,0)) -> 18 | F30: =INDEX(F4:F28,MATCH(1,H4:H28,0))+INDEX(F4:F28,MATCH(2,H4:H28,0))+INDEX(F4:F28,MATCH(3,H4:H28,0))+INDEX(F4:F28,MATCH(4,H4:H28,0))+INDEX(F4:F28,MATCH(5,H4:H28,0)) -> 6

Sheet TRAVERS_Philippe
A1: TRAVERS | B1: Philippe | F1: =HYPERLINK("#Adhérents!A1","Retour") -> Retour
A3: Date Sortie | B3: Parcours | C3: Net | D3: Net+ | E3: Rang Net | F3: Brut | G3: Brut+ | H3: Rang Brut
A4: 2018-09-09 | B4: Feucherolles | C4: 37 | D4: =C4+ROW(C4)/1000 -> 37.004 | E4: =RANK(D4,$D$4:$D$28) -> 2 | F4: 6 | G4: =F4+ROW(F4)/1000 -> 6.004 | H4: =RANK(G4,$G$4:$G$28) -> 9
A5: 2018-10-20 | B5: Cergy Vauréal | C5: 31 | D5: 31.005 | E5: 5 | F5: 8 | G5: 8.005 | H5: 3
A6: 2019-01-12 | B6: CH Ableiges | C6: 31 | D6: 31.006 | E6: 4 | F6: 6 | G6: 6.006 | H6: 8
A7: 2019-02-16 | B7: CH Seraincourt | C7: 25 | D7: 25.007 | E7: 7 | F7: 6 | G7: 6.007 | H7: 7
A8: 2019-04-06 | B8: Disney | C8: 18 | D8: 18.008 | E8: 9 | F8: 6 | G8: 6.008 | H8: 6
A9: 2019-04-28 | B9: Marivaux | C9: 28 | D9: 28.009 | E9: 6 | F9: 6 | G9: 6.009 | H9: 5
A10: 2019-03-23 | B10: Tremblay sur Mauldre | C10: 18 | D10: 18.01 | E10: 8 | F10: 6 | G10: 6.01 | H10: 4
A11: 2019-06-22 | B11: Golf Parc Hersant | C11: 34 | D11: 34.011 | E11: 3 | F11: 9 | G11: 9.011 | H11: 2
A12: 2019-06-28 | B12: Vaucouleurs Rivière | C12: 39 | D12: 39.012 | E12: 1 | F12: 10 | G12: 10.012 | H12: 1
D13: 0.013 | E13: 25 | G13: 0.013 | H13: 25
D14: 0.014 | E14: 24 | G14: 0.014 | H14: 24
D15: 0.015 | E15: 23 | G15: 0.015 | H15: 23
D16: 0.016 | E16: 22 | G16: 0.016 | H16: 22
D17: 0.017 | E17: 21 | G17: 0.017 | H17: 21
D18: 0.018 | E18: 20 | G18: 0.018 | H18: 20
D19: 0.019 | E19: 19 | G19: 0.019 | H19: 19
D20: 0.02 | E20: 18 | G20: 0.02 | H20: 18
D21: 0.021 | E21: 17 | G21: 0.021 | H21: 17
D22: 0.022 | E22: 16 | G22: 0.022 | H22: 16
D23: 0.023 | E23: 15 | G23: 0.023 | H23: 15
D24: 0.024 | E24: 14 | G24: 0.024 | H24: 14
D25: 0.025 | E25: 13 | G25: 0.025 | H25: 13
D26: 0.026 | E26: 12 | G26: 0.026 | H26: 12
D27: 0.027 | E27: 11 | G27: 0.027 | H27: 11
D28: 0.028 | E28: 10 | G28: 0.028 | H28: 10
B29: Cumul total | C29: =SUM(C4:C28) -> 261 | F29: =SUM(F4:F28) -> 63
B30: 5 meilleurs scores | C30: =INDEX(C4:C28,MATCH(1,E4:E28,0))+INDEX(C4:C28,MATCH(2,E4:E28,0))+INDEX(C4:C28,MATCH(3,E4:E28,0))+INDEX(C4:C28,MATCH(4,E4:E28,0))+INDEX(C4:C28,MATCH(5,E4:E28,0)) -> 172 | F30: =INDEX(F4:F28,MATCH(1,H4:H28,0))+INDEX(F4:F28,MATCH(2,H4:H28,0))+INDEX(F4:F28,MATCH(3,H4:H28,0))+INDEX(F4:F28,MATCH(4,H4:H28,0))+INDEX(F4:F28,MATCH(5,H4:H28,0)) -> 39

Sheet VERBRAEKEN_Erik
A1: VERBRAEKEN | B1: Erik | F1: =HYPERLINK("#Adhérents!A1","Retour") -> Retour
A3: Date Sortie | B3: Parcours | C3: Net | D3: Net+ | E3: Rang Net | F3: Brut | G3: Brut+ | H3: Rang Brut
A4: 2018-11-24 | B4: CH Hersant | C4: 18 | D4: =C4+ROW(C4)/1000 -> 18.004 | E4: =RANK(D4,$D$4:$D$28) -> 9 | F4: 6 | G4: =F4+ROW(F4)/1000 -> 6.004 | H4: =RANK(G4,$G$4:$G$28) -> 7
A5: 2019-01-12 | B5: CH Ableiges | C5: 28 | D5: 28.005 | E5: =RANK(D5,$D$4:$D$28) -> 1 | F5: 18 | G5: 18.005 | H5: =RANK(G5,$G$4:$G$28) -> 1
A6: 2019-02-10 | B6: Aigle | C6: 18 | D6: 18.006 | E6: 8 | F6: 6 | G6: 6.006 | H6: =RANK(G6,$G$4:$G$28) -> 6
A7: 2019-03-10 | B7: National - Aigle | C7: 18 | D7: 18.007 | E7: 7 | F7: 6 | G7: 6.007 | H7: 5
A8: 2018-12-13 | B8: Rueil virtuel | C8: 9 | D8: 9.008 | E8: 10 | F8: 3 | G8: 3.008 | H8: 9
A9: 2019-04-06 | B9: Disney | C9: 18 | D9: 18.009 | E9: 6 | F9: 6 | G9: 6.009 | H9: 4
A10: 2019-03-23 | B10: Tremblay sur Mauldre | C10: 18 | D10: 18.01 | E10: 5 | F10: 6 | G10: 6.01 | H10: 3
A11: 2019-05-24 | B11: Haut Poitou | C11: 18 | D11: 18.011 | E11: 4 | F11: 6 | G11: 6.011 | H11: 2
A12: 2019-05-25 | B12: Mignaloux | C12: 23 | D12: 23.012 | E12: 3 | F12: 4 | G12: 4.012 | H12: 8
A13: 2019-06-28 | B13: Vaucouleurs Rivière | C13: 26 | D13: 26.013 | E13: 2 | F13: 2 | G13: 2.013 | H13: 10
D14: 0.014 | E14: 25 | G14: 0.014 | H14: 25
D15: 0.015 | E15: 24 | G15: 0.015 | H15: 24
D16: 0.016 | E16: 23 | G16: 0.016 | H16: 23
D17: 0.017 | E17: 22 | G17: 0.017 | H17: 22
D18: 0.018 | E18: 21 | G18: 0.018 | H18: 21
D19: 0.019 | E19: 20 | G19: 0.019 | H19: 20
D20: 0.02 | E20: 19 | G20: 0.02 | H20: 19
D21: 0.021 | E21: 18 | G21: 0.021 | H21: 18
D22: 0.022 | E22: 17 | G22: 0.022 | H22: 17
D23: 0.023 | E23: 16 | G23: 0.023 | H23: 16
D24: 0.024 | E24: 15 | G24: 0.024 | H24: 15
D25: 0.025 | E25: 14 | G25: 0.025 | H25: 14
D26: 0.026 | E26: 13 | G26: 0.026 | H26: 13
D27: 0.027 | E27: 12 | G27: 0.027 | H27: 12
D28: 0.028 | E28: 11 | G28: 0.028 | H28: 11
B29: Cumul total | C29: =SUM(C4:C28) -> 194 | F29: =SUM(F4:F28) -> 63
B30: 5 meilleurs scores | C30: =INDEX(C4:C28,MATCH(1,E4:E28,0))+INDEX(C4:C28,MATCH(2,E4:E28,0))+INDEX(C4:C28,MATCH(3,E4:E28,0))+INDEX(C4:C28,MATCH(4,E4:E28,0))+INDEX(C4:C28,MATCH(5,E4:E28,0)) -> 113 | F30: =INDEX(F4:F28,MATCH(1,H4:H28,0))+INDEX(F4:F28,MATCH(2,H4:H28,0))+INDEX(F4:F28,MATCH(3,H4:H28,0))+INDEX(F4:F28,MATCH(4,H4:H28,0))+INDEX(F4:F28,MATCH(5,H4:H28,0)) -> 42

Sheet VILLANI_Mathieu
A1: VILLANI | B1: Mathieu | F1: =HYPERLINK("#Adhérents!A1","Retour") -> Retour
A3: Date Sortie | B3: Parcours | C3: Net | D3: Net+ | E3: Rang Net | F3: Brut | G3: Brut+ | H3: Rang Brut
A4: 2018-09-09 | B4: Feucherolles | C4: 36 | D4: =C4+ROW(C4)/1000 -> 36.004 | E4: =RANK(D4,$D$4:$D$28) -> 3 | F4: 22 | G4: =F4+ROW(F4)/1000 -> 22.004 | H4: =RANK(G4,$G$4:$G$28) -> 6
A5: 2018-09-21 | B5: Les Aisses | C5: 31 | D5: 31.005 | E5: =RANK(D5,$D$4:$D$28) -> 8 | F5: 19 | G5: 19.005 | H5: =RANK(G5,$G$4:$G$28) -> 9
A6: 2018-09-22 | B6: Sologne | C6: 18 | D6: 18.006 | E6: 15 | F6: 6 | G6: 6.006 | H6: =RANK(G6,$G$4:$G$28) -> 15
A7: 2018-10-05 | B7: Isle Adam | C7: 40 | D7: 40.007 | E7: 1 | F7: 28 | G7: 28.007 | H7: 1
A8: 2019-03-09 | B8: CH Yvelines | C8: 27 | D8: 27.008 | E8: 10 | F8: 18 | G8: 18.008 | H8: 10
A9: 2019-03-10 | B9: National - Aigle | C9: 18 | D9: 18.009 | E9: 14 | F9: 6 | G9: 6.009 | H9: 14
A10: 2019-03-16 | B10: CH Hersant | C10: 35 | D10: 35.01 | E10: 4 | F10: 25 | G10: 25.01 | H10: 2
A11: 2019-04-06 | B11: Disney | C11: 18 | D11: 18.011 | E11: 13 | F11: 6 | G11: 6.011 | H11: 13
A12: 2019-04-09 | B12: Rueil | C12: 9 | D12: 9.012 | E12: 16 | F12: 3 | G12: 3.012 | H12: 16
A13: 2019-04-28 | B13: Marivaux | C13: 34 | D13: 34.013 | E13: 5 | F13: 23 | G13: 23.013 | H13: 4
A14: 2019-03-23 | B14: Tremblay sur Mauldre | C14: 18 | D14: =C14+ROW(C14)/1000 -> 18.014 | E14: 12 | F14: 6 | G14: 6.014 | H14: 12
A15: 2019-05-24 | B15: Haut Poitou | C15: 18 | D15: 18.015 | E15: 11 | F15: 6 | G15: 6.015 | H15: 11
A16: 2019-05-25 | B16: Mignaloux | C16: 37 | D16: 37.016 | E16: 2 | F16: 24 | G16: 24.016 | H16: 3
A17: 2019-06-07 | B17: Isle Adam | C17: 30 | D17: 30.017 | E17: 9 | F17: 19 | G17: 19.017 | H17: 8
A18: 2019-06-22 | B18: Golf Parc Hersant | C18: 31 | D18: =C18+ROW(C18)/1000 -> 31.018 | E18: 7 | F18: 22 | G18: 22.018 | H18: 5
A19: 2019-06-28 | B19: Vaucouleurs Rivière | C19: 33 | D19: 33.019 | E19: 6 | F19: 20 | G19: 20.019 | H19: 7
D20: 0.02 | E20: 25 | G20: 0.02 | H20: 25
D21: 0.021 | E21: 24 | G21: 0.021 | H21: 24
D22: 0.022 | E22: 23 | G22: 0.022 | H22: 23
D23: 0.023 | E23: 22 | G23: 0.023 | H23: 22
D24: 0.024 | E24: 21 | G24: 0.024 | H24: 21
D25: 0.025 | E25: 20 | G25: 0.025 | H25: 20
D26: 0.026 | E26: 19 | G26: 0.026 | H26: 19
D27: 0.027 | E27: 18 | G27: 0.027 | H27: 18
D28: 0.028 | E28: 17 | G28: 0.028 | H28: 17
B29: Cumul total | C29: =SUM(C4:C28) -> 433 | F29: =SUM(F4:F28) -> 253
B30: 5 meilleurs scores | C30: =INDEX(C4:C28,MATCH(1,E4:E28,0))+INDEX(C4:C28,MATCH(2,E4:E28,0))+INDEX(C4:C28,MATCH(3,E4:E28,0))+INDEX(C4:C28,MATCH(4,E4:E28,0))+INDEX(C4:C28,MATCH(5,E4:E28,0)) -> 182 | F30: =INDEX(F4:F28,MATCH(1,H4:H28,0))+INDEX(F4:F28,MATCH(2,H4:H28,0))+INDEX(F4:F28,MATCH(3,H4:H28,0))+INDEX(F4:F28,MATCH(4,H4:H28,0))+INDEX(F4:F28,MATCH(5,H4:H28,0)) -> 122

Sheet VINAY_Guillaume
A1: VINAY | B1: Guillaume | F1: =HYPERLINK("#Adhérents!A1","Retour") -> Retour
A3: Date Sortie | B3: Parcours | C3: Net | D3: Net+ | E3: Rang Net | F3: Brut | G3: Brut+ | H3: Rang Brut
A4: 2018-09-21 | B4: Les Aisses | C4: 29 | D4: =C4+ROW(C4)/1000 -> 29.004 | E4: =RANK(D4,$D$4:$D$28) -> 5 | F4: 12 | G4: =F4+ROW(F4)/1000 -> 12.004 | H4: =RANK(G4,$G$4:$G$28) -> 5
A5: 2018-09-22 | B5: Sologne | C5: 18 | D5: 18.005 | E5: =RANK(D5,$D$4:$D$28) -> 8 | F5: 6 | G5: 6.005 | H5: =RANK(G5,$G$4:$G$28) -> 8
A6: 2018-11-10 | B6: Fourqueux | C6: 30 | D6: 30.006 | E6: 4 | F6: 12 | G6: 12.006 | H6: =RANK(G6,$G$4:$G$28) -> 4
A7: 2018-11-29 | B7: CH Marivaux | C7: 32 | D7: 32.007 | E7: 1 | F7: 14 | G7: 14.007 | H7: 1
A8: 2019-02-10 | B8: Aigle | C8: 18 | D8: 18.008 | E8: 7 | F8: 6 | G8: 6.008 | H8: 7
A9: 2018-12-13 | B9: Rueil virtuel | C9: 9 | D9: 9.009 | E9: 10 | F9: 3 | G9: 3.009 | H9: 10
A10: 2019-04-18 | B10: Rueil virtuel | C10: 9 | D10: 9.01 | E10: 9 | F10: 3 | G10: 3.01 | H10: 9
A11: 2019-03-23 | B11: Tremblay sur Mauldre | C11: 18 | D11: 18.011 | E11: 6 | F11: 6 | G11: 6.011 | H11: 6
A12: 2019-06-07 | B12: Isle Adam | C12: 31 | D12: 31.012 | E12: 3 | F12: 12 | G12: 12.012 | H12: 3
A13: 2019-06-28 | B13: Vaucouleurs Rivière | C13: 31 | D13: 31.013 | E13: 2 | F13: 12 | G13: 12.013 | H13: 2
D14: =C14+ROW(C14)/1000 -> 0.014 | E14: 25 | G14: 0.014 | H14: 25
D15: 0.015 | E15: 24 | G15: 0.015 | H15: 24
D16: 0.016 | E16: 23 | G16: 0.016 | H16: 23
D17: 0.017 | E17: 22 | G17: 0.017 | H17: 22
D18: =C18+ROW(C18)/1000 -> 0.018 | E18: 21 | G18: 0.018 | H18: 21
D19: 0.019 | E19: 20 | G19: 0.019 | H19: 20
D20: 0.02 | E20: 19 | G20: 0.02 | H20: 19
D21: 0.021 | E21: 18 | G21: 0.021 | H21: 18
D22: 0.022 | E22: 17 | G22: 0.022 | H22: 17
D23: 0.023 | E23: 16 | G23: 0.023 | H23: 16
D24: 0.024 | E24: 15 | G24: 0.024 | H24: 15
D25: 0.025 | E25: 14 | G25: 0.025 | H25: 14
D26: 0.026 | E26: 13 | G26: 0.026 | H26: 13
D27: 0.027 | E27: 12 | G27: 0.027 | H27: 12
D28: 0.028 | E28: 11 | G28: 0.028 | H28: 11
B29: Cumul total | C29: =SUM(C4:C28) -> 225 | F29: =SUM(F4:F28) -> 86
B30: 5 meilleurs scores | C30: =INDEX(C4:C28,MATCH(1,E4:E28,0))+INDEX(C4:C28,MATCH(2,E4:E28,0))+INDEX(C4:C28,MATCH(3,E4:E28,0))+INDEX(C4:C28,MATCH(4,E4:E28,0))+INDEX(C4:C28,MATCH(5,E4:E28,0)) -> 153 | F30: =INDEX(F4:F28,MATCH(1,H4:H28,0))+INDEX(F4:F28,MATCH(2,H4:H28,0))+INDEX(F4:F28,MATCH(3,H4:H28,0))+INDEX(F4:F28,MATCH(4,H4:H28,0))+INDEX(F4:F28,MATCH(5,H4:H28,0)) -> 62

Sheet WATIER_Laurent
A1: WATIER | B1: Laurent | F1: =HYPERLINK("#Adhérents!A1","Retour") -> Retour
A3: Date Sortie | B3: Parcours | C3: Net | D3: Net+ | E3: Rang Net | F3: Brut | G3: Brut+ | H3: Rang Brut
A4: 2018-11-10 | B4: Fourqueux | C4: 18 | D4: =C4+ROW(C4)/1000 -> 18.004 | E4: =RANK(D4,$D$4:$D$28) -> 1 | F4: 2 | G4: =F4+ROW(F4)/1000 -> 2.004 | H4: =RANK(G4,$G$4:$G$28) -> 1
D5: 0.005 | E5: =RANK(D5,$D$4:$D$28) -> 25 | G5: 0.005 | H5: =RANK(G5,$G$4:$G$28) -> 25
D6: 0.006 | E6: 24 | G6: 0.006 | H6: =RANK(G6,$G$4:$G$28) -> 24
D7: 0.007 | E7: 23 | G7: 0.007 | H7: 23
D8: 0.008 | E8: 22 | G8: 0.008 | H8: 22
D9: 0.009 | E9: 21 | G9: 0.009 | H9: 21
D10: 0.01 | E10: 20 | G10: 0.01 | H10: 20
D11: 0.011 | E11: 19 | G11: 0.011 | H11: 19
D12: 0.012 | E12: 18 | G12: 0.012 | H12: 18
D13: 0.013 | E13: 17 | G13: 0.013 | H13: 17
D14: =C14+ROW(C14)/1000 -> 0.014 | E14: 16 | G14: 0.014 | H14: 16
D15: 0.015 | E15: 15 | G15: 0.015 | H15: 15
D16: 0.016 | E16: 14 | G16: 0.016 | H16: 14
D17: 0.017 | E17: 13 | G17: 0.017 | H17: 13
D18: =C18+ROW(C18)/1000 -> 0.018 | E18: 12 | G18: 0.018 | H18: 12
D19: 0.019 | E19: 11 | G19: 0.019 | H19: 11
D20: 0.02 | E20: 10 | G20: 0.02 | H20: 10
D21: 0.021 | E21: 9 | G21: 0.021 | H21: 9
D22: 0.022 | E22: 8 | G22: 0.022 | H22: 8
D23: 0.023 | E23: 7 | G23: 0.023 | H23: 7
D24: 0.024 | E24: 6 | G24: 0.024 | H24: 6
D25: 0.025 | E25: 5 | G25: 0.025 | H25: 5
D26: 0.026 | E26: 4 | G26: 0.026 | H26: 4
D27: 0.027 | E27: 3 | G27: 0.027 | H27: 3
D28: 0.028 | E28: 2 | G28: 0.028 | H28: 2
B29: Cumul total | C29: =SUM(C4:C28) -> 18 | F29: =SUM(F4:F28) -> 2
B30: 5 meilleurs scores | C30: =INDEX(C4:C28,MATCH(1,E4:E28,0))+INDEX(C4:C28,MATCH(2,E4:E28,0))+INDEX(C4:C28,MATCH(3,E4:E28,0))+INDEX(C4:C28,MATCH(4,E4:E28,0))+INDEX(C4:C28,MATCH(5,E4:E28,0)) -> 18 | F30: =INDEX(F4:F28,MATCH(1,H4:H28,0))+INDEX(F4:F28,MATCH(2,H4:H28,0))+INDEX(F4:F28,MATCH(3,H4:H28,0))+INDEX(F4:F28,MATCH(4,H4:H28,0))+INDEX(F4:F28,MATCH(5,H4:H28,0)) -> 2

Sheet WERMESTER_Stéphane
A1: WERMESTER | B1: Stéphane | F1: =HYPERLINK("#Adhérents!A1","Retour") -> Retour
A3: Date Sortie | B3: Parcours | C3: Net | D3: Net+ | E3: Rang Net | F3: Brut | G3: Brut+ | H3: Rang Brut
A4: 2018-12-13 | B4: Rueil virtuel | C4: 9 | D4: =C4+ROW(C4)/1000 -> 9.004 | E4: =RANK(D4,$D$4:$D$28) -> 2 | F4: 3 | G4: =F4+ROW(F4)/1000 -> 3.004 | H4: =RANK(G4,$G$4:$G$28) -> 2
A5: 2019-06-07 | B5: Isle Adam | C5: 34 | D5: 34.005 | E5: =RANK(D5,$D$4:$D$28) -> 1 | F5: 4 | G5: 4.005 | H5: =RANK(G5,$G$4:$G$28) -> 1
D6: 0.006 | E6: 25 | G6: 0.006 | H6: =RANK(G6,$G$4:$G$28) -> 25
D7: 0.007 | E7: 24 | G7: 0.007 | H7: 24
D8: 0.008 | E8: 23 | G8: 0.008 | H8: 23
D9: 0.009 | E9: 22 | G9: 0.009 | H9: 22
D10: 0.01 | E10: 21 | G10: 0.01 | H10: 21
D11: 0.011 | E11: 20 | G11: 0.011 | H11: 20
D12: 0.012 | E12: 19 | G12: 0.012 | H12: 19
D13: 0.013 | E13: 18 | G13: 0.013 | H13: 18
D14: =C14+ROW(C14)/1000 -> 0.014 | E14: 17 | G14: 0.014 | H14: 17
D15: 0.015 | E15: 16 | G15: 0.015 | H15: 16
D16: 0.016 | E16: 15 | G16: 0.016 | H16: 15
D17: 0.017 | E17: 14 | G17: 0.017 | H17: 14
D18: =C18+ROW(C18)/1000 -> 0.018 | E18: 13 | G18: 0.018 | H18: 13
D19: 0.019 | E19: 12 | G19: 0.019 | H19: 12
D20: 0.02 | E20: 11 | G20: 0.02 | H20: 11
D21: 0.021 | E21: 10 | G21: 0.021 | H21: 10
D22: 0.022 | E22: 9 | G22: 0.022 | H22: 9
D23: 0.023 | E23: 8 | G23: 0.023 | H23: 8
D24: 0.024 | E24: 7 | G24: 0.024 | H24: 7
D25: 0.025 | E25: 6 | G25: 0.025 | H25: 6
D26: 0.026 | E26: 5 | G26: 0.026 | H26: 5
D27: 0.027 | E27: 4 | G27: 0.027 | H27: 4
D28: 0.028 | E28: 3 | G28: 0.028 | H28: 3
B29: Cumul total | C29: =SUM(C4:C28) -> 43 | F29: =SUM(F4:F28) -> 7
B30: 5 meilleurs scores | C30: =INDEX(C4:C28,MATCH(1,E4:E28,0))+INDEX(C4:C28,MATCH(2,E4:E28,0))+INDEX(C4:C28,MATCH(3,E4:E28,0))+INDEX(C4:C28,MATCH(4,E4:E28,0))+INDEX(C4:C28,MATCH(5,E4:E28,0)) -> 43 | F30: =INDEX(F4:F28,MATCH(1,H4:H28,0))+INDEX(F4:F28,MATCH(2,H4:H28,0))+INDEX(F4:F28,MATCH(3,H4:H28,0))+INDEX(F4:F28,MATCH(4,H4:H28,0))+INDEX(F4:F28,MATCH(5,H4:H28,0)) -> 7

Sheet YUSTOS_Philippe
A1: YUSTOS | B1: Philippe | F1: =HYPERLINK("#Adhérents!A1","Retour") -> Retour
A3: Date Sortie | B3: Parcours | C3: Net | D3: Net+ | E3: Rang Net | F3: Brut | G3: Brut+ | H3: Rang Brut
A4: 2018-09-09 | B4: Feucherolles | C4: 34 | D4: =C4+ROW(C4)/1000 -> 34.004 | E4: =RANK(D4,$D$4:$D$28) -> 2 | F4: 6 | G4: =F4+ROW(F4)/1000 -> 6.004 | H4: =RANK(G4,$G$4:$G$28) -> 9
A5: 2018-10-05 | B5: Isle Adam | C5: 39 | D5: 39.005 | E5: =RANK(D5,$D$4:$D$28) -> 1 | F5: 12 | G5: 12.005 | H5: =RANK(G5,$G$4:$G$28) -> 1
A6: 2018-11-10 | B6: Fourqueux | C6: 17 | D6: 17.006 | E6: 11 | F6: 2 | G6: 2.006 | H6: =RANK(G6,$G$4:$G$28) -> 14
A7: 2019-02-10 | B7: Aigle | C7: 18 | D7: 18.007 | E7: 10 | F7: 6 | G7: 6.007 | H7: 8
A8: 2018-12-13 | B8: Rueil virtuel | C8: 9 | D8: 9.008 | E8: 14 | F8: 3 | G8: 3.008 | H8: 13
A9: 2018-10-02 | B9: Rueil | D9: 0.009 | E9: 25 | G9: 0.009 | H9: 25
A10: 2019-04-06 | B10: Disney | C10: 18 | D10: 18.01 | E10: 9 | F10: 6 | G10: 6.01 | H10: 7
A11: 2019-04-18 | B11: Rueil virtuel | C11: 9 | D11: 9.011 | E11: 13 | F11: 3 | G11: 3.011 | H11: 12
A12: 2019-04-28 | B12: Marivaux | C12: 29 | D12: 29.012 | E12: 4 | F12: 10 | G12: 10.012 | H12: 2
A13: 2019-03-23 | B13: Tremblay sur Mauldre | C13: 18 | D13: 18.013 | E13: 8 | F13: 6 | G13: 6.013 | H13: 6
A14: 2019-05-24 | B14: Haut Poitou | C14: 18 | D14: =C14+ROW(C14)/1000 -> 18.014 | E14: 7 | F14: 6 | G14: 6.014 | H14: 5
A15: 2019-05-25 | B15: Mignaloux | C15: 26 | D15: 26.015 | E15: 5 | F15: 4 | G15: 4.015 | H15: 10
A16: 2019-06-07 | B16: Isle Adam | C16: 31 | D16: 31.016 | E16: 3 | F16: 9 | G16: 9.016 | H16: 3
A17: 2019-06-20 | B17: Rueil | C17: 9 | D17: 9.017 | E17: 12 | F17: 3 | G17: 3.017 | H17: 11
A18: 2019-06-28 | B18: Vaucouleurs Rivière | C18: 25 | D18: =C18+ROW(C18)/1000 -> 25.018 | E18: 6 | F18: 7 | G18: 7.018 | H18: 4
D19: 0.019 | E19: 24 | G19: 0.019 | H19: 24
D20: 0.02 | E20: 23 | G20: 0.02 | H20: 23
D21: 0.021 | E21: 22 | G21: 0.021 | H21: 22
D22: 0.022 | E22: 21 | G22: 0.022 | H22: 21
D23: 0.023 | E23: 20 | G23: 0.023 | H23: 20
D24: 0.024 | E24: 19 | G24: 0.024 | H24: 19
D25: 0.025 | E25: 18 | G25: 0.025 | H25: 18
D26: 0.026 | E26: 17 | G26: 0.026 | H26: 17
D27: 0.027 | E27: 16 | G27: 0.027 | H27: 16
D28: 0.028 | E28: 15 | G28: 0.028 | H28: 15
B29: Cumul total | C29: =SUM(C4:C28) -> 300 | F29: =SUM(F4:F28) -> 83
B30: 5 meilleurs scores | C30: =INDEX(C4:C28,MATCH(1,E4:E28,0))+INDEX(C4:C28,MATCH(2,E4:E28,0))+INDEX(C4:C28,MATCH(3,E4:E28,0))+INDEX(C4:C28,MATCH(4,E4:E28,0))+INDEX(C4:C28,MATCH(5,E4:E28,0)) -> 159 | F30: =INDEX(F4:F28,MATCH(1,H4:H28,0))+INDEX(F4:F28,MATCH(2,H4:H28,0))+INDEX(F4:F28,MATCH(3,H4:H28,0))+INDEX(F4:F28,MATCH(4,H4:H28,0))+INDEX(F4:F28,MATCH(5,H4:H28,0)) -> 44
